﻿Body,Body name,Date,Transaction number,Invoice Number,Amount,Supplier Name,Supplier ID,VAT Registration Number,Expense Area,Expense Type,Expense Code,BVACOP,ProClass,ProClass Description,Extended Description,Profit Centre
http://statistics.data.gov.uk/id/local-authority/00BU,Trafford,11/12/2020,1901389205,20,"10,438.00",Altrincham Grammar School for Boys,403,GB121527841,YP:Altrincham Gramma,SCHOOL BUDGET SHARE,280040,,,,Redacted,103403
http://statistics.data.gov.uk/id/local-authority/00BU,Trafford,11/12/2020,1901389199,20,"9,594.00",AGGS Academy Trust,404,,YP:Altrincham Gramma,SCHOOL BUDGET SHARE,280040,,,,Redacted,103404
http://statistics.data.gov.uk/id/local-authority/00BU,Trafford,11/12/2020,1901389281,20,"466,536.00",Sale High School,406,GB149191256,YP:Sale High School,SCHOOL BUDGET SHARE,280040,,171011,EDUCATION :  Children,Redacted,101406
http://statistics.data.gov.uk/id/local-authority/00BU,Trafford,21/12/2020,1901390257,20,"1,375.92",Sale High School,406,GB149191256,YP:Sale High School,Schools' Unall Ch Bk,220852,,171011,EDUCATION :  Children,,102406
http://statistics.data.gov.uk/id/local-authority/00BU,Trafford,21/12/2020,1901390257,20,"1,744.87",Sale High School,406,GB149191256,YP:Sale High School,Schools' Unall Ch Bk,220852,,171011,EDUCATION :  Children,,102406
http://statistics.data.gov.uk/id/local-authority/00BU,Trafford,21/12/2020,1901390257,20,"8,012.60",Sale High School,406,GB149191256,YP:Sale High School,Schools' Unall Ch Bk,220852,,171011,EDUCATION :  Children,,102406
http://statistics.data.gov.uk/id/local-authority/00BU,Trafford,21/12/2020,1901390257,20,"52,883.60",Sale High School,406,GB149191256,YP:Sale High School,Schools' Unall Ch Bk,220852,,171011,EDUCATION :  Children,,102406
http://statistics.data.gov.uk/id/local-authority/00BU,Trafford,21/12/2020,1901390257,20,"8,198.89",Sale High School,406,GB149191256,YP:Sale High School,Schools' Unall Ch Bk,220852,,171011,EDUCATION :  Children,,102406
http://statistics.data.gov.uk/id/local-authority/00BU,Trafford,21/12/2020,1901390257,20,"-6,164.99",Sale High School,406,GB149191256,YP:Sale High School,SCH UNALL CHQ BK INC,360107,,171011,EDUCATION :  Children,,102406
http://statistics.data.gov.uk/id/local-authority/00BU,Trafford,21/12/2020,1901390257,20,"-564,470.76",Sale High School,406,GB149191256,YP:Sale High School,SCH UNALL CHQ BK INC,360107,,171011,EDUCATION :  Children,,102406
http://statistics.data.gov.uk/id/local-authority/00BU,Trafford,21/12/2020,1901390257,20,"-72,215.88",Sale High School,406,GB149191256,School Cash Advances,CB Schs Contra Entry,290025,,171011,EDUCATION :  Children,,900110
http://statistics.data.gov.uk/id/local-authority/00BU,Trafford,21/12/2020,1901390257,20,"570,635.75",Sale High School,406,GB149191256,School Cash Advances,SCH UNALL CHQ BK INC,360107,,171011,EDUCATION :  Children,,900110
http://statistics.data.gov.uk/id/local-authority/00BU,Trafford,21/12/2020,1901390258,20,"-2,110.54",Sale High School,406,GB149191256,YP:Sale High School,Schools' Unall Ch Bk,220852,,171011,EDUCATION :  Children,,102406
http://statistics.data.gov.uk/id/local-authority/00BU,Trafford,21/12/2020,1901390258,20,"3,462.22",Sale High School,406,GB149191256,YP:Sale High School,Schools' Unall Ch Bk,220852,,171011,EDUCATION :  Children,,102406
http://statistics.data.gov.uk/id/local-authority/00BU,Trafford,21/12/2020,1901390258,20,"5,879.00",Sale High School,406,GB149191256,YP:Sale High School,Schools' Unall Ch Bk,220852,,171011,EDUCATION :  Children,,102406
http://statistics.data.gov.uk/id/local-authority/00BU,Trafford,21/12/2020,1901390258,20,"47,257.85",Sale High School,406,GB149191256,YP:Sale High School,Schools' Unall Ch Bk,220852,,171011,EDUCATION :  Children,,102406
http://statistics.data.gov.uk/id/local-authority/00BU,Trafford,21/12/2020,1901390258,20,"-24,062.22",Sale High School,406,GB149191256,YP:Sale High School,Schools' Unall Ch Bk,220852,,171011,EDUCATION :  Children,,102406
http://statistics.data.gov.uk/id/local-authority/00BU,Trafford,21/12/2020,1901390258,20,-80.77,Sale High School,406,GB149191256,YP:Sale High School,SCH UNALL CHQ BK INC,360107,,171011,EDUCATION :  Children,,102406
http://statistics.data.gov.uk/id/local-authority/00BU,Trafford,21/12/2020,1901390258,20,"-453,328.95",Sale High School,406,GB149191256,YP:Sale High School,SCH UNALL CHQ BK INC,360107,,171011,EDUCATION :  Children,,102406
http://statistics.data.gov.uk/id/local-authority/00BU,Trafford,21/12/2020,1901390258,20,"-30,426.31",Sale High School,406,GB149191256,School Cash Advances,CB Schs Contra Entry,290025,,171011,EDUCATION :  Children,,900110
http://statistics.data.gov.uk/id/local-authority/00BU,Trafford,21/12/2020,1901390258,20,"453,409.72",Sale High School,406,GB149191256,School Cash Advances,SCH UNALL CHQ BK INC,360107,,171011,EDUCATION :  Children,,900110
http://statistics.data.gov.uk/id/local-authority/00BU,Trafford,11/12/2020,1901389210,20,"10,715.00",BROADOAK  SCHOOL,412,,YP:Broadoak High Sch,SCHOOL BUDGET SHARE,280040,,,,Redacted,103412
http://statistics.data.gov.uk/id/local-authority/00BU,Trafford,11/12/2020,1901389209,20,"12,161.00",Flixton Girls School Academy Trust,413,GB124660431,YP:Flixton Girls Hig,SCHOOL BUDGET SHARE,280040,,201700,FINANCIAL SERVICES : Grants,Redacted,103413
http://statistics.data.gov.uk/id/local-authority/00BU,Trafford,11/12/2020,1901389278,20,"108,638.00",Lostock College,414,,School Cash Advances,SCHOOL BUDGET SHARE,280040,,171011,EDUCATION :  Children,Redacted,900110
http://statistics.data.gov.uk/id/local-authority/00BU,Trafford,21/12/2020,1901390054,12934,"45,510.00",Lostock College,414,,BAL OF RISK CLAIMS,UNINS LOSSES / EXC,220802,,171011,EDUCATION :  Children,12934,610438
http://statistics.data.gov.uk/id/local-authority/00BU,Trafford,24/12/2020,1901391427,20,"3,105.15",Lostock College,414,,YP:Lostock College,Schools' Unall Ch Bk,220852,,171011,EDUCATION :  Children,,102414
http://statistics.data.gov.uk/id/local-authority/00BU,Trafford,24/12/2020,1901391427,20,"1,662.96",Lostock College,414,,YP:Lostock College,Schools' Unall Ch Bk,220852,,171011,EDUCATION :  Children,,102414
http://statistics.data.gov.uk/id/local-authority/00BU,Trafford,24/12/2020,1901391427,20,-31.80,Lostock College,414,,YP:Lostock College,Schools' Unall Ch Bk,220852,,171011,EDUCATION :  Children,,102414
http://statistics.data.gov.uk/id/local-authority/00BU,Trafford,24/12/2020,1901391427,20,"57,765.40",Lostock College,414,,YP:Lostock College,Schools' Unall Ch Bk,220852,,171011,EDUCATION :  Children,,102414
http://statistics.data.gov.uk/id/local-authority/00BU,Trafford,24/12/2020,1901391427,20,"73,743.87",Lostock College,414,,YP:Lostock College,Schools' Unall Ch Bk,220852,,171011,EDUCATION :  Children,,102414
http://statistics.data.gov.uk/id/local-authority/00BU,Trafford,24/12/2020,1901391427,20,-9.08,Lostock College,414,,YP:Lostock College,SCH UNALL CHQ BK INC,360107,,171011,EDUCATION :  Children,,102414
http://statistics.data.gov.uk/id/local-authority/00BU,Trafford,24/12/2020,1901391427,20,12.40,Lostock College,414,,YP:Lostock College,SCH UNALL CHQ BK INC,360107,,171011,EDUCATION :  Children,,102414
http://statistics.data.gov.uk/id/local-authority/00BU,Trafford,24/12/2020,1901391427,20,"-2,110.27",Lostock College,414,,YP:Lostock College,SCH UNALL CHQ BK INC,360107,,171011,EDUCATION :  Children,,102414
http://statistics.data.gov.uk/id/local-authority/00BU,Trafford,24/12/2020,1901391427,20,"-136,245.58",Lostock College,414,,School Cash Advances,CB Schs Contra Entry,290025,,171011,EDUCATION :  Children,,900110
http://statistics.data.gov.uk/id/local-authority/00BU,Trafford,24/12/2020,1901391427,20,"2,106.95",Lostock College,414,,School Cash Advances,SCH UNALL CHQ BK INC,360107,,171011,EDUCATION :  Children,,900110
http://statistics.data.gov.uk/id/local-authority/00BU,Trafford,24/12/2020,1901391428,20,"14,467.00",Lostock College,414,,YP:Lostock College,Schools' Unall Ch Bk,220852,,171011,EDUCATION :  Children,,102414
http://statistics.data.gov.uk/id/local-authority/00BU,Trafford,24/12/2020,1901391428,20,367.46,Lostock College,414,,YP:Lostock College,Schools' Unall Ch Bk,220852,,171011,EDUCATION :  Children,,102414
http://statistics.data.gov.uk/id/local-authority/00BU,Trafford,24/12/2020,1901391428,20,"50,222.15",Lostock College,414,,YP:Lostock College,Schools' Unall Ch Bk,220852,,171011,EDUCATION :  Children,,102414
http://statistics.data.gov.uk/id/local-authority/00BU,Trafford,24/12/2020,1901391428,20,"22,681.85",Lostock College,414,,YP:Lostock College,Schools' Unall Ch Bk,220852,,171011,EDUCATION :  Children,,102414
http://statistics.data.gov.uk/id/local-authority/00BU,Trafford,24/12/2020,1901391428,20,2.20,Lostock College,414,,YP:Lostock College,SCH UNALL CHQ BK INC,360107,,171011,EDUCATION :  Children,,102414
http://statistics.data.gov.uk/id/local-authority/00BU,Trafford,24/12/2020,1901391428,20,"-8,889.40",Lostock College,414,,YP:Lostock College,SCH UNALL CHQ BK INC,360107,,171011,EDUCATION :  Children,,102414
http://statistics.data.gov.uk/id/local-authority/00BU,Trafford,24/12/2020,1901391428,20,"-87,738.46",Lostock College,414,,School Cash Advances,CB Schs Contra Entry,290025,,171011,EDUCATION :  Children,,900110
http://statistics.data.gov.uk/id/local-authority/00BU,Trafford,24/12/2020,1901391428,20,"8,887.20",Lostock College,414,,School Cash Advances,SCH UNALL CHQ BK INC,360107,,171011,EDUCATION :  Children,,900110
http://statistics.data.gov.uk/id/local-authority/00BU,Trafford,07/12/2020,1901388152,20,"15,863.66",Blessed Thomas Halford Sch,424,,B.T.H. School,Schools' Unall Ch Bk,220852,,171000,EDUCATION : Services,,102424
http://statistics.data.gov.uk/id/local-authority/00BU,Trafford,07/12/2020,1901388152,20,"7,556.00",Blessed Thomas Halford Sch,424,,B.T.H. School,Schools' Unall Ch Bk,220852,,171000,EDUCATION : Services,,102424
http://statistics.data.gov.uk/id/local-authority/00BU,Trafford,07/12/2020,1901388152,20,"39,406.25",Blessed Thomas Halford Sch,424,,B.T.H. School,Schools' Unall Ch Bk,220852,,171000,EDUCATION : Services,,102424
http://statistics.data.gov.uk/id/local-authority/00BU,Trafford,07/12/2020,1901388152,20,"8,016.64",Blessed Thomas Halford Sch,424,,B.T.H. School,Schools' Unall Ch Bk,220852,,171000,EDUCATION : Services,,102424
http://statistics.data.gov.uk/id/local-authority/00BU,Trafford,07/12/2020,1901388152,20,"-2,741.82",Blessed Thomas Halford Sch,424,,B.T.H. School,SCH UNALL CHQ BK INC,360107,,171000,EDUCATION : Services,,102424
http://statistics.data.gov.uk/id/local-authority/00BU,Trafford,07/12/2020,1901388152,20,"-1,321,062.18",Blessed Thomas Halford Sch,424,,B.T.H. School,SCH UNALL CHQ BK INC,360107,,171000,EDUCATION : Services,,102424
http://statistics.data.gov.uk/id/local-authority/00BU,Trafford,07/12/2020,1901388152,20,"-70,842.55",Blessed Thomas Halford Sch,424,,School Cash Advances,CB Schs Contra Entry,290025,,171000,EDUCATION : Services,,900110
http://statistics.data.gov.uk/id/local-authority/00BU,Trafford,07/12/2020,1901388152,20,"1,323,781.30",Blessed Thomas Halford Sch,424,,School Cash Advances,SCH UNALL CHQ BK INC,360107,,171000,EDUCATION : Services,,900110
http://statistics.data.gov.uk/id/local-authority/00BU,Trafford,07/12/2020,1901388152,20,22.70,Blessed Thomas Halford Sch,424,,B.T.H. School,SCH UNALL CHQ BK INC,360107,,171000,EDUCATION : Services,,102424
http://statistics.data.gov.uk/id/local-authority/00BU,Trafford,07/12/2020,1901388622,20,"46,050.09",Blessed Thomas Halford Sch,424,,B.T.H. School,Schools' Unall Ch Bk,220852,,171000,EDUCATION : Services,,102424
http://statistics.data.gov.uk/id/local-authority/00BU,Trafford,07/12/2020,1901388622,20,"3,252.00",Blessed Thomas Halford Sch,424,,B.T.H. School,Schools' Unall Ch Bk,220852,,171000,EDUCATION : Services,,102424
http://statistics.data.gov.uk/id/local-authority/00BU,Trafford,07/12/2020,1901388622,20,"61,494.25",Blessed Thomas Halford Sch,424,,B.T.H. School,Schools' Unall Ch Bk,220852,,171000,EDUCATION : Services,,102424
http://statistics.data.gov.uk/id/local-authority/00BU,Trafford,07/12/2020,1901388622,20,82.56,Blessed Thomas Halford Sch,424,,B.T.H. School,Schools' Unall Ch Bk,220852,,171000,EDUCATION : Services,,102424
http://statistics.data.gov.uk/id/local-authority/00BU,Trafford,07/12/2020,1901388622,20,-41.83,Blessed Thomas Halford Sch,424,,B.T.H. School,SCH UNALL CHQ BK INC,360107,,171000,EDUCATION : Services,,102424
http://statistics.data.gov.uk/id/local-authority/00BU,Trafford,07/12/2020,1901388622,20,-390.80,Blessed Thomas Halford Sch,424,,B.T.H. School,SCH UNALL CHQ BK INC,360107,,171000,EDUCATION : Services,,102424
http://statistics.data.gov.uk/id/local-authority/00BU,Trafford,07/12/2020,1901388622,20,"-686,546.62",Blessed Thomas Halford Sch,424,,B.T.H. School,SCH UNALL CHQ BK INC,360107,,171000,EDUCATION : Services,,102424
http://statistics.data.gov.uk/id/local-authority/00BU,Trafford,07/12/2020,1901388622,20,"-110,878.90",Blessed Thomas Halford Sch,424,,School Cash Advances,CB Schs Contra Entry,290025,,171000,EDUCATION : Services,,900110
http://statistics.data.gov.uk/id/local-authority/00BU,Trafford,07/12/2020,1901388622,20,"686,979.25",Blessed Thomas Halford Sch,424,,School Cash Advances,SCH UNALL CHQ BK INC,360107,,171000,EDUCATION : Services,,900110
http://statistics.data.gov.uk/id/local-authority/00BU,Trafford,09/12/2020,1901388636,Redacted,"1,680.00",Blessed Thomas Halford Sch,424,,B.T.H. School,Schools' Unall Ch Bk,220852,,171000,EDUCATION : Services,,102424
http://statistics.data.gov.uk/id/local-authority/00BU,Trafford,09/12/2020,1901388636,Redacted,"12,698.03",Blessed Thomas Halford Sch,424,,B.T.H. School,Schools' Unall Ch Bk,220852,,171000,EDUCATION : Services,,102424
http://statistics.data.gov.uk/id/local-authority/00BU,Trafford,09/12/2020,1901388636,Redacted,"8,669.00",Blessed Thomas Halford Sch,424,,B.T.H. School,Schools' Unall Ch Bk,220852,,171000,EDUCATION : Services,,102424
http://statistics.data.gov.uk/id/local-authority/00BU,Trafford,09/12/2020,1901388636,Redacted,"111,727.00",Blessed Thomas Halford Sch,424,,B.T.H. School,Schools' Unall Ch Bk,220852,,171000,EDUCATION : Services,,102424
http://statistics.data.gov.uk/id/local-authority/00BU,Trafford,09/12/2020,1901388636,Redacted,"29,498.29",Blessed Thomas Halford Sch,424,,B.T.H. School,Schools' Unall Ch Bk,220852,,171000,EDUCATION : Services,,102424
http://statistics.data.gov.uk/id/local-authority/00BU,Trafford,09/12/2020,1901388636,Redacted,-43.84,Blessed Thomas Halford Sch,424,,B.T.H. School,SCH UNALL CHQ BK INC,360107,,171000,EDUCATION : Services,,102424
http://statistics.data.gov.uk/id/local-authority/00BU,Trafford,09/12/2020,1901388636,Redacted,-500.00,Blessed Thomas Halford Sch,424,,B.T.H. School,SCH UNALL CHQ BK INC,360107,,171000,EDUCATION : Services,,102424
http://statistics.data.gov.uk/id/local-authority/00BU,Trafford,09/12/2020,1901388636,Redacted,-488.00,Blessed Thomas Halford Sch,424,,B.T.H. School,SCH UNALL CHQ BK INC,360107,,171000,EDUCATION : Services,,102424
http://statistics.data.gov.uk/id/local-authority/00BU,Trafford,09/12/2020,1901388636,Redacted,"-164,272.32",Blessed Thomas Halford Sch,424,,School Cash Advances,CB Schs Contra Entry,290025,,171000,EDUCATION : Services,,900110
http://statistics.data.gov.uk/id/local-authority/00BU,Trafford,09/12/2020,1901388636,Redacted,"1,031.84",Blessed Thomas Halford Sch,424,,School Cash Advances,SCH UNALL CHQ BK INC,360107,,171000,EDUCATION : Services,,900110
http://statistics.data.gov.uk/id/local-authority/00BU,Trafford,11/12/2020,1901389284,20,"713,796.00",Blessed Thomas Halford Sch,424,,YP:Blessed Thomas Ho,SCHOOL BUDGET SHARE,280040,,171000,EDUCATION : Services,Redacted,101424
http://statistics.data.gov.uk/id/local-authority/00BU,Trafford,21/12/2020,1901390042,001610,"5,776.03",Blessed Thomas Halford Sch,424,,Civic Duties  - Prim,CIVIC FUNCTIONS,220635,,171000,EDUCATION : Services,,100415
http://statistics.data.gov.uk/id/local-authority/00BU,Trafford,09/12/2020,1901389066,45716,265.00,Ashton on Mersey School,426,GB132924425,PUPIL PREMIUM PLUS,CLIENTS PERS NEEDS,220412,,171011,EDUCATION :  Children,Redacted,130713
http://statistics.data.gov.uk/id/local-authority/00BU,Trafford,09/12/2020,1901389066,45716,265.00,Ashton on Mersey School,426,GB132924425,PUPIL PREMIUM PLUS,CLIENTS PERS NEEDS,220412,,171011,EDUCATION :  Children,Redacted,130713
http://statistics.data.gov.uk/id/local-authority/00BU,Trafford,09/12/2020,1901389066,45716,265.00,Ashton on Mersey School,426,GB132924425,PUPIL PREMIUM PLUS,CLIENTS PERS NEEDS,220412,,171011,EDUCATION :  Children,Redacted,130713
http://statistics.data.gov.uk/id/local-authority/00BU,Trafford,09/12/2020,1901389066,45716,265.00,Ashton on Mersey School,426,GB132924425,PUPIL PREMIUM PLUS,CLIENTS PERS NEEDS,220412,,171011,EDUCATION :  Children,Redacted,130713
http://statistics.data.gov.uk/id/local-authority/00BU,Trafford,09/12/2020,1901389066,45716,150.00,Ashton on Mersey School,426,GB132924425,PUPIL PREMIUM PLUS,CLIENTS PERS NEEDS,220412,,171011,EDUCATION :  Children,Redacted,130713
http://statistics.data.gov.uk/id/local-authority/00BU,Trafford,09/12/2020,1901389066,45716,265.00,Ashton on Mersey School,426,GB132924425,PUPIL PREMIUM PLUS,CLIENTS PERS NEEDS,220412,,171011,EDUCATION :  Children,Redacted,130713
http://statistics.data.gov.uk/id/local-authority/00BU,Trafford,09/12/2020,1901389066,45716,265.00,Ashton on Mersey School,426,GB132924425,PUPIL PREMIUM PLUS,CLIENTS PERS NEEDS,220412,,171011,EDUCATION :  Children,Redacted,130713
http://statistics.data.gov.uk/id/local-authority/00BU,Trafford,09/12/2020,1901389066,45716,265.00,Ashton on Mersey School,426,GB132924425,PUPIL PREMIUM PLUS,CLIENTS PERS NEEDS,220412,,171011,EDUCATION :  Children,Redacted,130713
http://statistics.data.gov.uk/id/local-authority/00BU,Trafford,09/12/2020,1901389066,45716,300.00,Ashton on Mersey School,426,GB132924425,PUPIL PREMIUM PLUS,CLIENTS PERS NEEDS,220412,,171011,EDUCATION :  Children,Redacted,130713
http://statistics.data.gov.uk/id/local-authority/00BU,Trafford,09/12/2020,1901389066,45716,265.00,Ashton on Mersey School,426,GB132924425,PUPIL PREMIUM PLUS,CLIENTS PERS NEEDS,220412,,171011,EDUCATION :  Children,Redacted,130713
http://statistics.data.gov.uk/id/local-authority/00BU,Trafford,09/12/2020,1901389066,45716,265.00,Ashton on Mersey School,426,GB132924425,PUPIL PREMIUM PLUS,CLIENTS PERS NEEDS,220412,,171011,EDUCATION :  Children,Redacted,130713
http://statistics.data.gov.uk/id/local-authority/00BU,Trafford,09/12/2020,1901389066,45716,265.00,Ashton on Mersey School,426,GB132924425,PUPIL PREMIUM PLUS,CLIENTS PERS NEEDS,220412,,171011,EDUCATION :  Children,Redacted,130713
http://statistics.data.gov.uk/id/local-authority/00BU,Trafford,11/12/2020,1901389224,20,"48,259.00",Ashton on Mersey School,426,GB132924425,YP:Ashton on Mersey,SCHOOL BUDGET SHARE,280040,,171011,EDUCATION :  Children,Redacted,103426
http://statistics.data.gov.uk/id/local-authority/00BU,Trafford,09/12/2020,1901389185,15,"11,169.73",Stretford Grammar School,428,,Capital Schemes,CAP PUR ICT H/W & S/,400130,,171011,EDUCATION :  Children,CAPITAL,990000
http://statistics.data.gov.uk/id/local-authority/00BU,Trafford,09/12/2020,1901389185,15,"7,150.66",Stretford Grammar School,428,,Capital Schemes,A&M PAY TO CONTRACTO,400400,,171011,EDUCATION :  Children,CAPITAL,990000
http://statistics.data.gov.uk/id/local-authority/00BU,Trafford,11/12/2020,1901389282,20,"403,268.00",Stretford Grammar School,428,,YP:Stretford Grammar,SCHOOL BUDGET SHARE,280040,,171011,EDUCATION :  Children,Redacted,101428
http://statistics.data.gov.uk/id/local-authority/00BU,Trafford,21/12/2020,1901390043,000498,"6,436.84",Stretford Grammar School,428,,Civic Duties  - Prim,CIVIC FUNCTIONS,220635,,171011,EDUCATION :  Children,,100415
http://statistics.data.gov.uk/id/local-authority/00BU,Trafford,21/12/2020,1901390044,000499,"2,888.01",Stretford Grammar School,428,,Civic Duties  - Prim,CIVIC FUNCTIONS,220635,,171011,EDUCATION :  Children,,100415
http://statistics.data.gov.uk/id/local-authority/00BU,Trafford,21/12/2020,1901390126,4026,"160,000.00",Stretford Grammar School,428,,Capital Schemes,CAP GRANT OTH BODIES,400505,,171011,EDUCATION :  Children,capital,990000
http://statistics.data.gov.uk/id/local-authority/00BU,Trafford,21/12/2020,1901390259,20,"38,355.04",Stretford Grammar School,428,,Stretford Grammar,Schools' Unall Ch Bk,220852,,171011,EDUCATION :  Children,,102428
http://statistics.data.gov.uk/id/local-authority/00BU,Trafford,21/12/2020,1901390259,20,854.37,Stretford Grammar School,428,,Stretford Grammar,Schools' Unall Ch Bk,220852,,171011,EDUCATION :  Children,,102428
http://statistics.data.gov.uk/id/local-authority/00BU,Trafford,21/12/2020,1901390259,20,"83,287.85",Stretford Grammar School,428,,Stretford Grammar,Schools' Unall Ch Bk,220852,,171011,EDUCATION :  Children,,102428
http://statistics.data.gov.uk/id/local-authority/00BU,Trafford,21/12/2020,1901390259,20,"16,769.31",Stretford Grammar School,428,,Stretford Grammar,Schools' Unall Ch Bk,220852,,171011,EDUCATION :  Children,,102428
http://statistics.data.gov.uk/id/local-authority/00BU,Trafford,21/12/2020,1901390259,20,"-28,881.03",Stretford Grammar School,428,,Stretford Grammar,SCH UNALL CHQ BK INC,360107,,171011,EDUCATION :  Children,,102428
http://statistics.data.gov.uk/id/local-authority/00BU,Trafford,21/12/2020,1901390259,20,"-139,266.57",Stretford Grammar School,428,,Stretford Grammar,Schools' Unall Ch Bk,220852,,171011,EDUCATION :  Children,,102428
http://statistics.data.gov.uk/id/local-authority/00BU,Trafford,21/12/2020,1901390259,20,"28,881.03",Stretford Grammar School,428,,Stretford Grammar,SCH UNALL CHQ BK INC,360107,,171011,EDUCATION :  Children,,102428
http://statistics.data.gov.uk/id/local-authority/00BU,Trafford,21/12/2020,1901390260,20,"-12,736.25",Stretford Grammar School,428,,Stretford Grammar,Schools' Unall Ch Bk,220852,,171011,EDUCATION :  Children,,102428
http://statistics.data.gov.uk/id/local-authority/00BU,Trafford,21/12/2020,1901390260,20,"16,502.82",Stretford Grammar School,428,,Stretford Grammar,Schools' Unall Ch Bk,220852,,171011,EDUCATION :  Children,,102428
http://statistics.data.gov.uk/id/local-authority/00BU,Trafford,21/12/2020,1901390260,20,"10,521.00",Stretford Grammar School,428,,Stretford Grammar,Schools' Unall Ch Bk,220852,,171011,EDUCATION :  Children,,102428
http://statistics.data.gov.uk/id/local-authority/00BU,Trafford,21/12/2020,1901390260,20,"408,256.70",Stretford Grammar School,428,,Stretford Grammar,Schools' Unall Ch Bk,220852,,171011,EDUCATION :  Children,,102428
http://statistics.data.gov.uk/id/local-authority/00BU,Trafford,21/12/2020,1901390260,20,"40,680.44",Stretford Grammar School,428,,Stretford Grammar,Schools' Unall Ch Bk,220852,,171011,EDUCATION :  Children,,102428
http://statistics.data.gov.uk/id/local-authority/00BU,Trafford,21/12/2020,1901390260,20,"-2,400,880.66",Stretford Grammar School,428,,Stretford Grammar,SCH UNALL CHQ BK INC,360107,,171011,EDUCATION :  Children,,102428
http://statistics.data.gov.uk/id/local-authority/00BU,Trafford,21/12/2020,1901390260,20,"-463,224.71",Stretford Grammar School,428,,Stretford Grammar,Schools' Unall Ch Bk,220852,,171011,EDUCATION :  Children,,102428
http://statistics.data.gov.uk/id/local-authority/00BU,Trafford,21/12/2020,1901390260,20,"2,400,880.66",Stretford Grammar School,428,,Stretford Grammar,SCH UNALL CHQ BK INC,360107,,171011,EDUCATION :  Children,,102428
http://statistics.data.gov.uk/id/local-authority/00BU,Trafford,09/12/2020,1901389082,45732,62.08,Urmston Grammar School,429,GB120165661,PUPIL PREMIUM PLUS,CLIENTS PERS NEEDS,220412,,171011,EDUCATION :  Children,Redacted,130713
http://statistics.data.gov.uk/id/local-authority/00BU,Trafford,09/12/2020,1901389082,45732,62.08,Urmston Grammar School,429,GB120165661,PUPIL PREMIUM PLUS,CLIENTS PERS NEEDS,220412,,171011,EDUCATION :  Children,Redacted,130713
http://statistics.data.gov.uk/id/local-authority/00BU,Trafford,09/12/2020,1901389082,45732,412.50,Urmston Grammar School,429,GB120165661,PUPIL PREMIUM PLUS,CLIENTS PERS NEEDS,220412,,171011,EDUCATION :  Children,Redacted,130713
http://statistics.data.gov.uk/id/local-authority/00BU,Trafford,11/12/2020,1901389203,20,"12,675.00",Urmston Grammar School,429,GB120165661,YP:Urmston Grammar S,SCHOOL BUDGET SHARE,280040,,171011,EDUCATION :  Children,Redacted,103429
http://statistics.data.gov.uk/id/local-authority/00BU,Trafford,11/12/2020,1901389207,20,"20,327.00",Wellington School,430,,YP:Wellington Sch,SCHOOL BUDGET SHARE,280040,,171000,EDUCATION : Services,Redacted,103430
http://statistics.data.gov.uk/id/local-authority/00BU,Trafford,11/12/2020,1901389283,20,"544,454.00",STRETFORD HIGH SCHOOL,431,,YP:Stretford High Sc,SCHOOL BUDGET SHARE,280040,,,,Redacted,101431
http://statistics.data.gov.uk/id/local-authority/00BU,Trafford,24/12/2020,1901391434,20,"-10,150.31",STRETFORD HIGH SCHOOL,431,,YP:Stretford High,Schools' Unall Ch Bk,220852,,,,,102431
http://statistics.data.gov.uk/id/local-authority/00BU,Trafford,24/12/2020,1901391434,20,"16,295.78",STRETFORD HIGH SCHOOL,431,,YP:Stretford High,Schools' Unall Ch Bk,220852,,,,,102431
http://statistics.data.gov.uk/id/local-authority/00BU,Trafford,24/12/2020,1901391434,20,"8,654.60",STRETFORD HIGH SCHOOL,431,,YP:Stretford High,Schools' Unall Ch Bk,220852,,,,,102431
http://statistics.data.gov.uk/id/local-authority/00BU,Trafford,24/12/2020,1901391434,20,"51,330.70",STRETFORD HIGH SCHOOL,431,,YP:Stretford High,Schools' Unall Ch Bk,220852,,,,,102431
http://statistics.data.gov.uk/id/local-authority/00BU,Trafford,24/12/2020,1901391434,20,"4,552.06",STRETFORD HIGH SCHOOL,431,,YP:Stretford High,Schools' Unall Ch Bk,220852,,,,,102431
http://statistics.data.gov.uk/id/local-authority/00BU,Trafford,24/12/2020,1901391434,20,-3.61,STRETFORD HIGH SCHOOL,431,,YP:Stretford High,SCH UNALL CHQ BK INC,360107,,,,,102431
http://statistics.data.gov.uk/id/local-authority/00BU,Trafford,24/12/2020,1901391434,20,-601.25,STRETFORD HIGH SCHOOL,431,,YP:Stretford High,SCH UNALL CHQ BK INC,360107,,,,,102431
http://statistics.data.gov.uk/id/local-authority/00BU,Trafford,24/12/2020,1901391434,20,"-601,195.62",STRETFORD HIGH SCHOOL,431,,YP:Stretford High,SCH UNALL CHQ BK INC,360107,,,,,102431
http://statistics.data.gov.uk/id/local-authority/00BU,Trafford,24/12/2020,1901391434,20,"-70,682.83",STRETFORD HIGH SCHOOL,431,,School Cash Advances,CB Schs Contra Entry,290025,,,,,900110
http://statistics.data.gov.uk/id/local-authority/00BU,Trafford,24/12/2020,1901391434,20,"601,800.48",STRETFORD HIGH SCHOOL,431,,School Cash Advances,SCH UNALL CHQ BK INC,360107,,,,,900110
http://statistics.data.gov.uk/id/local-authority/00BU,Trafford,11/12/2020,1901389206,20,"11,628.00",Sale Grammar School,432,GB120951441,YP:Sale Grammar Sch,SCHOOL BUDGET SHARE,280040,,291000,LEISURE SERVICES : Events,Redacted,103432
http://statistics.data.gov.uk/id/local-authority/00BU,Trafford,11/12/2020,1901389204,20,"7,657.00",Loreto Grammar School,434,,YP:Loreto Grammar Sc,SCHOOL BUDGET SHARE,280040,,171000,EDUCATION : Services,Redacted,103434
http://statistics.data.gov.uk/id/local-authority/00BU,Trafford,11/12/2020,1901389202,20,"8,197.00",St Ambrose College,435,GB133780025,YP:St Ambrose Colleg,SCHOOL BUDGET SHARE,280040,,201700,FINANCIAL SERVICES : Grants,Redacted,103435
http://statistics.data.gov.uk/id/local-authority/00BU,Trafford,11/12/2020,1901389068,45718,-400.00,Altrincham College of Arts Academy,436,GB149191256,PUPIL PREMIUM PLUS,CLIENTS PERS NEEDS,220412,,171011,EDUCATION :  Children,Redacted,130713
http://statistics.data.gov.uk/id/local-authority/00BU,Trafford,11/12/2020,1901389200,20,"16,676.00",Altrincham College of Arts Academy,436,GB149191256,YP:AltrinchamCollege,SCHOOL BUDGET SHARE,280040,,171011,EDUCATION :  Children,Redacted,103427
http://statistics.data.gov.uk/id/local-authority/00BU,Trafford,21/12/2020,1901390208,20,"3,678.80",Brentwood School,501,GB149191256,Brentwood,Schools' Unall Ch Bk,220852,,201700,FINANCIAL SERVICES : Grants,,102501
http://statistics.data.gov.uk/id/local-authority/00BU,Trafford,21/12/2020,1901390208,20,"1,871.67",Brentwood School,501,GB149191256,Brentwood,Schools' Unall Ch Bk,220852,,201700,FINANCIAL SERVICES : Grants,,102501
http://statistics.data.gov.uk/id/local-authority/00BU,Trafford,21/12/2020,1901390208,20,"19,670.35",Brentwood School,501,GB149191256,Brentwood,Schools' Unall Ch Bk,220852,,201700,FINANCIAL SERVICES : Grants,,102501
http://statistics.data.gov.uk/id/local-authority/00BU,Trafford,21/12/2020,1901390208,20,"123,765.79",Brentwood School,501,GB149191256,Brentwood,Schools' Unall Ch Bk,220852,,201700,FINANCIAL SERVICES : Grants,,102501
http://statistics.data.gov.uk/id/local-authority/00BU,Trafford,21/12/2020,1901390208,20,-4.62,Brentwood School,501,GB149191256,Brentwood,SCH UNALL CHQ BK INC,360107,,201700,FINANCIAL SERVICES : Grants,,102501
http://statistics.data.gov.uk/id/local-authority/00BU,Trafford,21/12/2020,1901390208,20,"-11,583.00",Brentwood School,501,GB149191256,Brentwood,SCH UNALL CHQ BK INC,360107,,201700,FINANCIAL SERVICES : Grants,,102501
http://statistics.data.gov.uk/id/local-authority/00BU,Trafford,21/12/2020,1901390208,20,"-106,407.14",Brentwood School,501,GB149191256,Brentwood,SCH UNALL CHQ BK INC,360107,,201700,FINANCIAL SERVICES : Grants,,102501
http://statistics.data.gov.uk/id/local-authority/00BU,Trafford,21/12/2020,1901390208,20,"-148,986.61",Brentwood School,501,GB149191256,School Cash Advances,CB Schs Contra Entry,290025,,201700,FINANCIAL SERVICES : Grants,,900110
http://statistics.data.gov.uk/id/local-authority/00BU,Trafford,21/12/2020,1901390208,20,"117,994.76",Brentwood School,501,GB149191256,School Cash Advances,SCH UNALL CHQ BK INC,360107,,201700,FINANCIAL SERVICES : Grants,,900110
http://statistics.data.gov.uk/id/local-authority/00BU,Trafford,21/12/2020,1901390209,20,"5,094.01",Brentwood School,501,GB149191256,Brentwood,Schools' Unall Ch Bk,220852,,201700,FINANCIAL SERVICES : Grants,,102501
http://statistics.data.gov.uk/id/local-authority/00BU,Trafford,21/12/2020,1901390209,20,"4,273.90",Brentwood School,501,GB149191256,Brentwood,Schools' Unall Ch Bk,220852,,201700,FINANCIAL SERVICES : Grants,,102501
http://statistics.data.gov.uk/id/local-authority/00BU,Trafford,21/12/2020,1901390209,20,"36,492.65",Brentwood School,501,GB149191256,Brentwood,Schools' Unall Ch Bk,220852,,201700,FINANCIAL SERVICES : Grants,,102501
http://statistics.data.gov.uk/id/local-authority/00BU,Trafford,21/12/2020,1901390209,20,"17,546.31",Brentwood School,501,GB149191256,Brentwood,Schools' Unall Ch Bk,220852,,201700,FINANCIAL SERVICES : Grants,,102501
http://statistics.data.gov.uk/id/local-authority/00BU,Trafford,21/12/2020,1901390209,20,-4.42,Brentwood School,501,GB149191256,Brentwood,SCH UNALL CHQ BK INC,360107,,201700,FINANCIAL SERVICES : Grants,,102501
http://statistics.data.gov.uk/id/local-authority/00BU,Trafford,21/12/2020,1901390209,20,"-4,795.50",Brentwood School,501,GB149191256,Brentwood,SCH UNALL CHQ BK INC,360107,,201700,FINANCIAL SERVICES : Grants,,102501
http://statistics.data.gov.uk/id/local-authority/00BU,Trafford,21/12/2020,1901390209,20,"-63,406.87",Brentwood School,501,GB149191256,School Cash Advances,CB Schs Contra Entry,290025,,201700,FINANCIAL SERVICES : Grants,,900110
http://statistics.data.gov.uk/id/local-authority/00BU,Trafford,21/12/2020,1901390209,20,"4,799.92",Brentwood School,501,GB149191256,School Cash Advances,SCH UNALL CHQ BK INC,360107,,201700,FINANCIAL SERVICES : Grants,,900110
http://statistics.data.gov.uk/id/local-authority/00BU,Trafford,09/12/2020,1901389069,45719,600.00,Delamere School,504,,PUPIL PREMIUM PLUS,CLIENTS PERS NEEDS,220412,,321200,SC : Disabled Children,Redacted,130713
http://statistics.data.gov.uk/id/local-authority/00BU,Trafford,09/12/2020,1901389069,45719,200.00,Delamere School,504,,PUPIL PREMIUM PLUS,CLIENTS PERS NEEDS,220412,,321200,SC : Disabled Children,Redacted,130713
http://statistics.data.gov.uk/id/local-authority/00BU,Trafford,09/12/2020,1901389069,45719,400.00,Delamere School,504,,PUPIL PREMIUM PLUS,CLIENTS PERS NEEDS,220412,,321200,SC : Disabled Children,Redacted,130713
http://statistics.data.gov.uk/id/local-authority/00BU,Trafford,09/12/2020,1901389069,45719,200.00,Delamere School,504,,PUPIL PREMIUM PLUS,CLIENTS PERS NEEDS,220412,,321200,SC : Disabled Children,Redacted,130713
http://statistics.data.gov.uk/id/local-authority/00BU,Trafford,09/12/2020,1901389069,45719,400.00,Delamere School,504,,PUPIL PREMIUM PLUS,CLIENTS PERS NEEDS,220412,,321200,SC : Disabled Children,Redacted,130713
http://statistics.data.gov.uk/id/local-authority/00BU,Trafford,11/12/2020,1901389253,20,"29,395.00",Delamere School,504,,School Cash Advances,SCHOOL BUDGET SHARE,280040,,321200,SC : Disabled Children,AltCEAdvDec20,900110
http://statistics.data.gov.uk/id/local-authority/00BU,Trafford,24/12/2020,1901391424,20,"6,065.42",Delamere School,504,,YP:Delamere Sch,Schools' Unall Ch Bk,220852,,321200,SC : Disabled Children,,102504
http://statistics.data.gov.uk/id/local-authority/00BU,Trafford,24/12/2020,1901391424,20,"29,039.95",Delamere School,504,,YP:Delamere Sch,Schools' Unall Ch Bk,220852,,321200,SC : Disabled Children,,102504
http://statistics.data.gov.uk/id/local-authority/00BU,Trafford,24/12/2020,1901391424,20,"4,346.32",Delamere School,504,,YP:Delamere Sch,Schools' Unall Ch Bk,220852,,321200,SC : Disabled Children,,102504
http://statistics.data.gov.uk/id/local-authority/00BU,Trafford,24/12/2020,1901391424,20,-4.84,Delamere School,504,,YP:Delamere Sch,SCH UNALL CHQ BK INC,360107,,321200,SC : Disabled Children,,102504
http://statistics.data.gov.uk/id/local-authority/00BU,Trafford,24/12/2020,1901391424,20,-112.30,Delamere School,504,,YP:Delamere Sch,SCH UNALL CHQ BK INC,360107,,321200,SC : Disabled Children,,102504
http://statistics.data.gov.uk/id/local-authority/00BU,Trafford,24/12/2020,1901391424,20,"-31,008.18",Delamere School,504,,YP:Delamere Sch,SCH UNALL CHQ BK INC,360107,,321200,SC : Disabled Children,,102504
http://statistics.data.gov.uk/id/local-authority/00BU,Trafford,24/12/2020,1901391424,20,"-39,451.69",Delamere School,504,,School Cash Advances,CB Schs Contra Entry,290025,,321200,SC : Disabled Children,,900110
http://statistics.data.gov.uk/id/local-authority/00BU,Trafford,24/12/2020,1901391424,20,"31,125.32",Delamere School,504,,School Cash Advances,SCH UNALL CHQ BK INC,360107,,321200,SC : Disabled Children,,900110
http://statistics.data.gov.uk/id/local-authority/00BU,Trafford,24/12/2020,1901391429,20,"1,600.00",Delamere School,504,,YP:Delamere Sch,Schools' Unall Ch Bk,220852,,321200,SC : Disabled Children,,102504
http://statistics.data.gov.uk/id/local-authority/00BU,Trafford,24/12/2020,1901391429,20,241.10,Delamere School,504,,YP:Delamere Sch,Schools' Unall Ch Bk,220852,,321200,SC : Disabled Children,,102504
http://statistics.data.gov.uk/id/local-authority/00BU,Trafford,24/12/2020,1901391429,20,-150.60,Delamere School,504,,YP:Delamere Sch,Schools' Unall Ch Bk,220852,,321200,SC : Disabled Children,,102504
http://statistics.data.gov.uk/id/local-authority/00BU,Trafford,24/12/2020,1901391429,20,"1,918.50",Delamere School,504,,YP:Delamere Sch,Schools' Unall Ch Bk,220852,,321200,SC : Disabled Children,,102504
http://statistics.data.gov.uk/id/local-authority/00BU,Trafford,24/12/2020,1901391429,20,414.71,Delamere School,504,,YP:Delamere Sch,Schools' Unall Ch Bk,220852,,321200,SC : Disabled Children,,102504
http://statistics.data.gov.uk/id/local-authority/00BU,Trafford,24/12/2020,1901391429,20,-2.71,Delamere School,504,,YP:Delamere Sch,SCH UNALL CHQ BK INC,360107,,321200,SC : Disabled Children,,102504
http://statistics.data.gov.uk/id/local-authority/00BU,Trafford,24/12/2020,1901391429,20,-828.84,Delamere School,504,,YP:Delamere Sch,SCH UNALL CHQ BK INC,360107,,321200,SC : Disabled Children,,102504
http://statistics.data.gov.uk/id/local-authority/00BU,Trafford,24/12/2020,1901391429,20,"-4,023.71",Delamere School,504,,School Cash Advances,CB Schs Contra Entry,290025,,321200,SC : Disabled Children,,900110
http://statistics.data.gov.uk/id/local-authority/00BU,Trafford,24/12/2020,1901391429,20,831.55,Delamere School,504,,School Cash Advances,SCH UNALL CHQ BK INC,360107,,321200,SC : Disabled Children,,900110
http://statistics.data.gov.uk/id/local-authority/00BU,Trafford,24/12/2020,1901391431,20,"1,968.47",Delamere School,504,,YP:Delamere Sch,Schools' Unall Ch Bk,220852,,321200,SC : Disabled Children,,102504
http://statistics.data.gov.uk/id/local-authority/00BU,Trafford,24/12/2020,1901391431,20,"3,731.24",Delamere School,504,,YP:Delamere Sch,Schools' Unall Ch Bk,220852,,321200,SC : Disabled Children,,102504
http://statistics.data.gov.uk/id/local-authority/00BU,Trafford,24/12/2020,1901391431,20,"33,423.95",Delamere School,504,,YP:Delamere Sch,Schools' Unall Ch Bk,220852,,321200,SC : Disabled Children,,102504
http://statistics.data.gov.uk/id/local-authority/00BU,Trafford,24/12/2020,1901391431,20,"3,099.08",Delamere School,504,,YP:Delamere Sch,Schools' Unall Ch Bk,220852,,321200,SC : Disabled Children,,102504
http://statistics.data.gov.uk/id/local-authority/00BU,Trafford,24/12/2020,1901391431,20,-2.64,Delamere School,504,,YP:Delamere Sch,SCH UNALL CHQ BK INC,360107,,321200,SC : Disabled Children,,102504
http://statistics.data.gov.uk/id/local-authority/00BU,Trafford,24/12/2020,1901391431,20,"-8,973.02",Delamere School,504,,YP:Delamere Sch,SCH UNALL CHQ BK INC,360107,,321200,SC : Disabled Children,,102504
http://statistics.data.gov.uk/id/local-authority/00BU,Trafford,24/12/2020,1901391431,20,"-42,222.74",Delamere School,504,,School Cash Advances,CB Schs Contra Entry,290025,,321200,SC : Disabled Children,,900110
http://statistics.data.gov.uk/id/local-authority/00BU,Trafford,24/12/2020,1901391431,20,"8,975.66",Delamere School,504,,School Cash Advances,SCH UNALL CHQ BK INC,360107,,321200,SC : Disabled Children,,900110
http://statistics.data.gov.uk/id/local-authority/00BU,Trafford,11/12/2020,1901389223,20,"51,172.00",The Orchards School,505,GB139214030,YP:The Orchards,SCHOOL BUDGET SHARE,280040,,,,Redacted,103515
http://statistics.data.gov.uk/id/local-authority/00BU,Trafford,11/12/2020,1901389228,20,"9,931.00",EGERTON HIGH SCHOOL,514,,School Cash Advances,SCHOOL BUDGET SHARE,280040,,,,StHughLAdvDec20,900110
http://statistics.data.gov.uk/id/local-authority/00BU,Trafford,21/12/2020,1901390225,20,133.50,EGERTON HIGH SCHOOL,514,,YP:Egerton,Schools' Unall Ch Bk,220852,,,,,102514
http://statistics.data.gov.uk/id/local-authority/00BU,Trafford,21/12/2020,1901390225,20,135.60,EGERTON HIGH SCHOOL,514,,YP:Egerton,Schools' Unall Ch Bk,220852,,,,,102514
http://statistics.data.gov.uk/id/local-authority/00BU,Trafford,21/12/2020,1901390225,20,"3,526.15",EGERTON HIGH SCHOOL,514,,YP:Egerton,Schools' Unall Ch Bk,220852,,,,,102514
http://statistics.data.gov.uk/id/local-authority/00BU,Trafford,21/12/2020,1901390225,20,"3,869.16",EGERTON HIGH SCHOOL,514,,YP:Egerton,Schools' Unall Ch Bk,220852,,,,,102514
http://statistics.data.gov.uk/id/local-authority/00BU,Trafford,21/12/2020,1901390225,20,"-5,584.77",EGERTON HIGH SCHOOL,514,,YP:Egerton,SCH UNALL CHQ BK INC,360107,,,,,102514
http://statistics.data.gov.uk/id/local-authority/00BU,Trafford,21/12/2020,1901390225,20,"-7,664.41",EGERTON HIGH SCHOOL,514,,School Cash Advances,CB Schs Contra Entry,290025,,,,,900110
http://statistics.data.gov.uk/id/local-authority/00BU,Trafford,21/12/2020,1901390225,20,"5,584.77",EGERTON HIGH SCHOOL,514,,School Cash Advances,SCH UNALL CHQ BK INC,360107,,,,,900110
http://statistics.data.gov.uk/id/local-authority/00BU,Trafford,24/12/2020,1901391459,2934304,"1,766.00",EGERTON HIGH SCHOOL,514,,Capital Schemes,A&M PAY TO CONTRACTO,400400,,,,capital,990000
http://statistics.data.gov.uk/id/local-authority/00BU,Trafford,24/12/2020,1901391459,2934304,774.00,EGERTON HIGH SCHOOL,514,,Capital Schemes,CAP PUR FURN & EQ,400105,,,,capital,990000
http://statistics.data.gov.uk/id/local-authority/00BU,Trafford,24/12/2020,1901391460,13,"2,449.97",EGERTON HIGH SCHOOL,514,,Capital Schemes,CAP PUR FURN & EQ,400105,,,,,990000
http://statistics.data.gov.uk/id/local-authority/00BU,Trafford,24/12/2020,1901391460,13,728.99,EGERTON HIGH SCHOOL,514,,Capital Schemes,CAP PUR ICT H/W & S/,400130,,,,,990000
http://statistics.data.gov.uk/id/local-authority/00BU,Trafford,09/12/2020,1901389183,Redacted,225.87,ADOLESCENT RESOURCE CENTRE,1008,,MARAT SECTION 17,SECT 17 PAY ITEM 6,220760,,,,IMPREST,130705
http://statistics.data.gov.uk/id/local-authority/00BU,Trafford,09/12/2020,1901389183,Redacted,164.00,ADOLESCENT RESOURCE CENTRE,1008,,PERM TEAM: CLIENTS,CLIENTS PERS NEEDS,220412,,,,IMPREST,130712
http://statistics.data.gov.uk/id/local-authority/00BU,Trafford,09/12/2020,1901389183,Redacted,25.00,ADOLESCENT RESOURCE CENTRE,1008,,Leaving Care Placeme,CLIENTS PERS NEEDS,220412,,,,Redacted,130102
http://statistics.data.gov.uk/id/local-authority/00BU,Trafford,09/12/2020,1901389183,Redacted,436.95,ADOLESCENT RESOURCE CENTRE,1008,,CHILDRENS RIGHTS,CLIENTS PERS NEEDS,220412,,,,IMPREST,130390
http://statistics.data.gov.uk/id/local-authority/00BU,Trafford,23/12/2020,1901390073,16122020,393.77,OLD HALL ROAD,1009,,OLD HALL ROAD,CATERING PROVISIONS,220100,,,,imprest,130465
http://statistics.data.gov.uk/id/local-authority/00BU,Trafford,23/12/2020,1901390073,16122020,219.94,OLD HALL ROAD,1009,,OLD HALL ROAD,CLIENTS PERS NEEDS,220412,,,,imprest,130465
http://statistics.data.gov.uk/id/local-authority/00BU,Trafford,23/12/2020,1901390073,16122020,207.30,OLD HALL ROAD,1009,,OLD HALL ROAD,EQUIPMENT - PURCHASE,220048,,,,imprest,130465
http://statistics.data.gov.uk/id/local-authority/00BU,Trafford,23/12/2020,1901390073,16122020,127.74,OLD HALL ROAD,1009,,OLD HALL ROAD,CLEANING MATERIALS,201130,,,,imprest,130465
http://statistics.data.gov.uk/id/local-authority/00BU,Trafford,23/12/2020,1901390073,16122020,26.39,OLD HALL ROAD,1009,,OLD HALL ROAD,TOILET REQUISITES,201140,,,,imprest,130465
http://statistics.data.gov.uk/id/local-authority/00BU,Trafford,23/12/2020,1901390073,16122020,72.35,OLD HALL ROAD,1009,,OLD HALL ROAD,CLIENTS HOLS & OUTIN,220402,,,,imprest,130465
http://statistics.data.gov.uk/id/local-authority/00BU,Trafford,23/12/2020,1901390073,16122020,24.50,OLD HALL ROAD,1009,,OLD HALL ROAD,CLIENTS TRAV EXP,220416,,,,imprest,130465
http://statistics.data.gov.uk/id/local-authority/00BU,Trafford,23/12/2020,1901390073,16122020,150.80,OLD HALL ROAD,1009,,OLD HALL ROAD,CLIENTS POCK MON GIF,240310,,,,imprest,130465
http://statistics.data.gov.uk/id/local-authority/00BU,Trafford,21/12/2020,1901390261,13103011,22.42,SECONDARY ATTEND & BEHAVIOUR SUPPOR,1115,,NEXUS EDUCATION CENT,EDUCATION MATERIALS,220010,,,,,120631
http://statistics.data.gov.uk/id/local-authority/00BU,Trafford,21/12/2020,1901390261,13103011,20.00,SECONDARY ATTEND & BEHAVIOUR SUPPOR,1115,,NEXUS EDUCATION CENT,MATERIALS PURCHASE,220058,,,,,120631
http://statistics.data.gov.uk/id/local-authority/00BU,Trafford,21/12/2020,1901390261,13103011,17.93,SECONDARY ATTEND & BEHAVIOUR SUPPOR,1115,,NEXUS EDUCATION CENT,CLEANING MATERIALS,201130,,,,,120631
http://statistics.data.gov.uk/id/local-authority/00BU,Trafford,21/12/2020,1901390261,13103011,116.92,SECONDARY ATTEND & BEHAVIOUR SUPPOR,1115,,NEXUS EDUCATION CENT,CATERING PROVISIONS,220100,,,,,120631
http://statistics.data.gov.uk/id/local-authority/00BU,Trafford,21/12/2020,1901390261,13103011,62.85,SECONDARY ATTEND & BEHAVIOUR SUPPOR,1115,,NEXUS EDUCATION CENT,EDUCATIONAL VISITS,220812,,,,,120631
http://statistics.data.gov.uk/id/local-authority/00BU,Trafford,21/12/2020,1901390261,13103011,6.00,SECONDARY ATTEND & BEHAVIOUR SUPPOR,1115,,NEXUS EDUCATION CENT,CLEANING MATERIALS,201130,,,,,120631
http://statistics.data.gov.uk/id/local-authority/00BU,Trafford,21/12/2020,1901390261,13103011,10.00,SECONDARY ATTEND & BEHAVIOUR SUPPOR,1115,,NEXUS EDUCATION CENT,MATERIALS PURCHASE,220058,,,,,120631
http://statistics.data.gov.uk/id/local-authority/00BU,Trafford,21/12/2020,1901390261,13103011,5.32,SECONDARY ATTEND & BEHAVIOUR SUPPOR,1115,,NEXUS EDUCATION CENT,POSTAGES,220515,,,,,120631
http://statistics.data.gov.uk/id/local-authority/00BU,Trafford,21/12/2020,1901390261,13103011,406.99,SECONDARY ATTEND & BEHAVIOUR SUPPOR,1115,,NEXUS EDUCATION CENT,EDUCATION MATERIALS,220010,,,,,120631
http://statistics.data.gov.uk/id/local-authority/00BU,Trafford,21/12/2020,1901390261,13103011,198.00,SECONDARY ATTEND & BEHAVIOUR SUPPOR,1115,,NEXUS EDUCATION CENT,CLIENTS TRAV EXP,220416,,,,,120631
http://statistics.data.gov.uk/id/local-authority/00BU,Trafford,09/12/2020,1901388635,09031403,319.00,HAYSWATER CONTACT CENTRE,1395,,NORTH : S17 & CLIENT,FAM CONT PERS NEEDS,220828,,,,,130660
http://statistics.data.gov.uk/id/local-authority/00BU,Trafford,09/12/2020,1901388635,09031403,23.80,HAYSWATER CONTACT CENTRE,1395,,WEST : S17 & CLIENT,FAM CONT PERS NEEDS,220828,,,,,130670
http://statistics.data.gov.uk/id/local-authority/00BU,Trafford,09/12/2020,1901388635,09031403,9.40,HAYSWATER CONTACT CENTRE,1395,,CENTRAL : S17&CLIENT,FAM CONT PERS NEEDS,220828,,,,,130680
http://statistics.data.gov.uk/id/local-authority/00BU,Trafford,09/12/2020,1901388635,09031403,342.75,HAYSWATER CONTACT CENTRE,1395,,SOUTH:S17&CLIENT,FAM CONT PERS NEEDS,220828,,,,,130682
http://statistics.data.gov.uk/id/local-authority/00BU,Trafford,09/12/2020,1901388635,09031403,283.15,HAYSWATER CONTACT CENTRE,1395,,PERM TEAM: CLIENTS,FAM CONT PERS NEEDS,220828,,,,,130712
http://statistics.data.gov.uk/id/local-authority/00BU,Trafford,09/12/2020,1901388635,09031403,179.15,HAYSWATER CONTACT CENTRE,1395,,CONTACT CENTRE,EDUCATION MATERIALS,220010,,,,,130212
http://statistics.data.gov.uk/id/local-authority/00BU,Trafford,09/12/2020,1901388635,09031403,14.10,HAYSWATER CONTACT CENTRE,1395,,PLACEMENT ADOPTION,FAM CONT PERS NEEDS,220828,,,,,130440
http://statistics.data.gov.uk/id/local-authority/00BU,Trafford,16/12/2020,1901389745,Redacted,586.50,CYPS NORTH AREA FAMILY SUPPORT TEAM,1405,,NORTH : S17 & CLIENT,SECT 17 PAY ITEM 6,220760,,,,,130660
http://statistics.data.gov.uk/id/local-authority/00BU,Trafford,16/12/2020,1901389745,Redacted,815.06,CYPS NORTH AREA FAMILY SUPPORT TEAM,1405,,NORTH : S17 & CLIENT,CLIENTS PERS NEEDS,220412,,,,,130660
http://statistics.data.gov.uk/id/local-authority/00BU,Trafford,16/12/2020,1901389745,Redacted,60.00,CYPS NORTH AREA FAMILY SUPPORT TEAM,1405,,MARAT SECTION 17,SECT 17 PAY ITEM 6,220760,,,,,130705
http://statistics.data.gov.uk/id/local-authority/00BU,Trafford,16/12/2020,1901389745,Redacted,280.00,CYPS NORTH AREA FAMILY SUPPORT TEAM,1405,,NORTH : S17 & CLIENT,DP COVID-19 CONTGY,230859,,,,,130660
http://statistics.data.gov.uk/id/local-authority/00BU,Trafford,16/12/2020,1901389745,Redacted,7.00,CYPS NORTH AREA FAMILY SUPPORT TEAM,1405,,NORTH : S17 & CLIENT,FAM CONT PERS NEEDS,220828,,,,,130660
http://statistics.data.gov.uk/id/local-authority/00BU,Trafford,09/12/2020,1901388637,261120,932.00,CYPS SOUTH AREA FAMILY SUPPORT TEAM,1406,,CENTRAL : S17&CLIENT,SECT 17 PAY ITEM 6,220760,,,,,130680
http://statistics.data.gov.uk/id/local-authority/00BU,Trafford,09/12/2020,1901388637,261120,93.32,CYPS SOUTH AREA FAMILY SUPPORT TEAM,1406,,SOUTH:S17&CLIENT,SECT 17 PAY ITEM 6,220760,,,,,130682
http://statistics.data.gov.uk/id/local-authority/00BU,Trafford,09/12/2020,1901388637,261120,113.50,CYPS SOUTH AREA FAMILY SUPPORT TEAM,1406,,SOUTH:S17&CLIENT,CLIENTS PERS NEEDS,220412,,,,,130682
http://statistics.data.gov.uk/id/local-authority/00BU,Trafford,09/12/2020,1901388637,261120,200.00,CYPS SOUTH AREA FAMILY SUPPORT TEAM,1406,,REDUNDANT,OTHER MISC EXPENSES,912850,,,,,255190
http://statistics.data.gov.uk/id/local-authority/00BU,Trafford,09/12/2020,1901388637,261120,8.03,CYPS SOUTH AREA FAMILY SUPPORT TEAM,1406,,FAMILY SUP. SOUTH,POSTAGES,220515,,,,,130202
http://statistics.data.gov.uk/id/local-authority/00BU,Trafford,09/12/2020,1901388637,261120,100.00,CYPS SOUTH AREA FAMILY SUPPORT TEAM,1406,,LEGAL/EXPERT COSTS,PROFESSIONAL FEES,220456,,,,,130693
http://statistics.data.gov.uk/id/local-authority/00BU,Trafford,21/12/2020,1901390058,26100812,309.43,West Area Family Support Service,1410,,WEST : S17 & CLIENT,SECT 17 PAY ITEM 6,220760,,,,,130670
http://statistics.data.gov.uk/id/local-authority/00BU,Trafford,21/12/2020,1901390058,26100812,95.00,West Area Family Support Service,1410,,WEST : S17 & CLIENT,CLIENTS PERS NEEDS,220412,,,,,130670
http://statistics.data.gov.uk/id/local-authority/00BU,Trafford,21/12/2020,1901390058,26100812,1.64,West Area Family Support Service,1410,,YP:Navigation Pr Sch,POSTAGES,220515,,,,,103200
http://statistics.data.gov.uk/id/local-authority/00BU,Trafford,14/12/2020,1901389579,14122020,28.33,Kingsway Park Chlidrens Home (NEW),1425,,Kindle Lodge,TOILET REQUISITES,201140,,,,,130450
http://statistics.data.gov.uk/id/local-authority/00BU,Trafford,14/12/2020,1901389579,14122020,235.47,Kingsway Park Chlidrens Home (NEW),1425,,Kindle Lodge,CLIENTS TRAV EXP,220416,,,,,130450
http://statistics.data.gov.uk/id/local-authority/00BU,Trafford,14/12/2020,1901389579,14122020,102.94,Kingsway Park Chlidrens Home (NEW),1425,,Kindle Lodge,CLIENTS PERS NEEDS,220412,,,,,130450
http://statistics.data.gov.uk/id/local-authority/00BU,Trafford,14/12/2020,1901389579,14122020,260.91,Kingsway Park Chlidrens Home (NEW),1425,,Kindle Lodge,CATERING PROVISIONS,220100,,,,,130450
http://statistics.data.gov.uk/id/local-authority/00BU,Trafford,14/12/2020,1901389579,14122020,42.94,Kingsway Park Chlidrens Home (NEW),1425,,Kindle Lodge,EQUIPMENT - PURCHASE,220048,,,,,130450
http://statistics.data.gov.uk/id/local-authority/00BU,Trafford,14/12/2020,1901389579,14122020,29.25,Kingsway Park Chlidrens Home (NEW),1425,,Kindle Lodge,CLEANING MATERIALS,201130,,,,,130450
http://statistics.data.gov.uk/id/local-authority/00BU,Trafford,14/12/2020,1901389579,14122020,55.60,Kingsway Park Chlidrens Home (NEW),1425,,Kindle Lodge,CLIENTS POCK MON GIF,240310,,,,,130450
http://statistics.data.gov.uk/id/local-authority/00BU,Trafford,16/12/2020,1901390008,16122020,35.10,Kingsway Park Chlidrens Home (NEW),1425,,Kindle Lodge,CLIENTS TRAV EXP,220416,,,,,130450
http://statistics.data.gov.uk/id/local-authority/00BU,Trafford,16/12/2020,1901390008,16122020,86.76,Kingsway Park Chlidrens Home (NEW),1425,,Kindle Lodge,EQUIPMENT - PURCHASE,220048,,,,,130450
http://statistics.data.gov.uk/id/local-authority/00BU,Trafford,16/12/2020,1901390008,16122020,237.99,Kingsway Park Chlidrens Home (NEW),1425,,Kindle Lodge,CATERING PROVISIONS,220100,,,,,130450
http://statistics.data.gov.uk/id/local-authority/00BU,Trafford,16/12/2020,1901390008,16122020,131.98,Kingsway Park Chlidrens Home (NEW),1425,,Kindle Lodge,CLIENTS PERS NEEDS,220412,,,,,130450
http://statistics.data.gov.uk/id/local-authority/00BU,Trafford,16/12/2020,1901390008,16122020,642.35,Kingsway Park Chlidrens Home (NEW),1425,,Kindle Lodge,CLIENTS POCK MON GIF,240310,,,,,130450
http://statistics.data.gov.uk/id/local-authority/00BU,Trafford,16/12/2020,1901390008,16122020,15.98,Kingsway Park Chlidrens Home (NEW),1425,,Kindle Lodge,CLEANING MATERIALS,201130,,,,,130450
http://statistics.data.gov.uk/id/local-authority/00BU,Trafford,16/12/2020,1901390008,16122020,21.57,Kingsway Park Chlidrens Home (NEW),1425,,Kindle Lodge,CLIENTS HOLS & OUTIN,220402,,,,,130450
http://statistics.data.gov.uk/id/local-authority/00BU,Trafford,11/12/2020,1901389333,Redacted,300.00,CASH,1430,,Early Help Hub 11-18,ASSISTANCE TO PUPILS,240300,,,,butterflies,149005
http://statistics.data.gov.uk/id/local-authority/00BU,Trafford,07/12/2020,1901388149,1440,433.84,Family Focus Imprest,1440,,Kindle Service,CLIENTS PERS NEEDS,220412,,,,,130320
http://statistics.data.gov.uk/id/local-authority/00BU,Trafford,07/12/2020,1901388149,1440,89.16,Family Focus Imprest,1440,,Kindle Service,OFF EQ PURCHASE,220032,,,,,130320
http://statistics.data.gov.uk/id/local-authority/00BU,Trafford,24/12/2020,1901391422,Redacted,475.90,Family Focus Imprest,1440,,Kindle Service,CLIENTS PERS NEEDS,220412,,,,,130320
http://statistics.data.gov.uk/id/local-authority/00BU,Trafford,21/12/2020,1901390129,141220,12.20,Child Sexual Exploitation (CSE),1460,,Early Help Hub 11-18,ASSISTANCE TO PUPILS,240300,,,,,149005
http://statistics.data.gov.uk/id/local-authority/00BU,Trafford,21/12/2020,1901390129,141220,127.19,Child Sexual Exploitation (CSE),1460,,Early Help Hub 11-18,ASSISTANCE TO PUPILS,240300,,,,,149005
http://statistics.data.gov.uk/id/local-authority/00BU,Trafford,09/12/2020,5100399353,4531214510,334.00,ADT Fire & Security PLC,3007,GB413633086,Sanyu Daycare,EXT ALARMS/SEC,200015,,192200,FACILITIES MGT : Security,45312145-10 31/08/2020,130570
http://statistics.data.gov.uk/id/local-authority/00BU,Trafford,09/12/2020,5100399354,4531320310,246.00,ADT Fire & Security PLC,3007,GB413633086,Sanyu Daycare,EXT ALARMS/SEC,200015,,192200,FACILITIES MGT : Security,45313203-10  02/09/2020,130570
http://statistics.data.gov.uk/id/local-authority/00BU,Trafford,22/12/2020,5100400083,122406,486.00,J Fletcher (Engineers) Ltd,3174,GB408125478,NEXUS EDUCATION CENT,EXTERNAL DAY-TO-DAY,200100,,101700,BUILDING MAT: Heating & Air Co,Fletchers engineering TAEP 122406,120631
http://statistics.data.gov.uk/id/local-authority/00BU,Trafford,21/12/2020,5100399938,10245313,"70,000.00",Kier Construction Northern,3203,GB476073824,Capital Schemes,A&M PAY TO CONTRACTO,400400,,391110,CONSTRUCTION: Bld Construction,New Build,990000
http://statistics.data.gov.uk/id/local-authority/00BU,Trafford,02/12/2020,5100399116,59290,420.69,VLC (Stairlifts) Limited,3536,GB812311285,LIFT REPAIRS & MTCE,CLIENTS LIFT REP & M,220406,,321311,SOCIAL CARE : Equipment,Call out,250210
http://statistics.data.gov.uk/id/local-authority/00BU,Trafford,02/12/2020,5100399143,59302,"3,570.00",VLC (Stairlifts) Limited,3536,GB812311285,LIFT REPAIRS & MTCE,CLIENTS LIFT REP & M,220406,,191400,FACILITIES MGT : Lifts,Comprehensive Element December 2020,250210
http://statistics.data.gov.uk/id/local-authority/00BU,Trafford,09/12/2020,5100399426,59338,54.00,VLC (Stairlifts) Limited,3536,GB812311285,LIFT REPAIRS & MTCE,CLIENTS LIFT REP & M,220406,,191400,FACILITIES MGT : Lifts,Call out,250210
http://statistics.data.gov.uk/id/local-authority/00BU,Trafford,09/12/2020,5100399427,59346,910.00,VLC (Stairlifts) Limited,3536,GB812311285,LIFT REPAIRS & MTCE,CLIENTS LIFT REP & M,220406,,191400,FACILITIES MGT : Lifts,Service Charges 30th November 2020,250210
http://statistics.data.gov.uk/id/local-authority/00BU,Trafford,09/12/2020,5100399428,59347,254.32,VLC (Stairlifts) Limited,3536,GB812311285,LIFT REPAIRS & MTCE,CLIENTS LIFT REP & M,220406,,321311,SOCIAL CARE : Equipment,Call out,250210
http://statistics.data.gov.uk/id/local-authority/00BU,Trafford,09/12/2020,5100399429,59350,310.56,VLC (Stairlifts) Limited,3536,GB812311285,LIFT REPAIRS & MTCE,CLIENTS LIFT REP & M,220406,,321311,SOCIAL CARE : Equipment,Call out,250210
http://statistics.data.gov.uk/id/local-authority/00BU,Trafford,09/12/2020,5100399430,59337,45.00,VLC (Stairlifts) Limited,3536,GB812311285,LIFT REPAIRS & MTCE,CLIENTS LIFT REP & M,220406,,191400,FACILITIES MGT : Lifts,Call out,250210
http://statistics.data.gov.uk/id/local-authority/00BU,Trafford,09/12/2020,5100399431,59336,54.75,VLC (Stairlifts) Limited,3536,GB812311285,LIFT REPAIRS & MTCE,CLIENTS LIFT REP & M,220406,,191400,FACILITIES MGT : Lifts,Call out,250210
http://statistics.data.gov.uk/id/local-authority/00BU,Trafford,11/12/2020,5100399653,59356,72.00,VLC (Stairlifts) Limited,3536,GB812311285,LIFT REPAIRS & MTCE,CLIENTS LIFT REP & M,220406,,321311,SOCIAL CARE : Equipment,Call out,250210
http://statistics.data.gov.uk/id/local-authority/00BU,Trafford,11/12/2020,5100399654,59359,105.92,VLC (Stairlifts) Limited,3536,GB812311285,LIFT REPAIRS & MTCE,CLIENTS LIFT REP & M,220406,,321311,SOCIAL CARE : Equipment,Call out,250210
http://statistics.data.gov.uk/id/local-authority/00BU,Trafford,11/12/2020,5100399655,59357,48.75,VLC (Stairlifts) Limited,3536,GB812311285,LIFT REPAIRS & MTCE,CLIENTS LIFT REP & M,220406,,321311,SOCIAL CARE : Equipment,Call out,250210
http://statistics.data.gov.uk/id/local-authority/00BU,Trafford,11/12/2020,5100399704,59358,82.50,VLC (Stairlifts) Limited,3536,GB812311285,LIFT REPAIRS & MTCE,CLIENTS LIFT REP & M,220406,,321311,SOCIAL CARE : Equipment,Call out,250210
http://statistics.data.gov.uk/id/local-authority/00BU,Trafford,16/12/2020,5100399849,59370,150.00,VLC (Stairlifts) Limited,3536,GB812311285,LIFT REPAIRS & MTCE,CLIENTS LIFT REP & M,220406,,321311,SOCIAL CARE : Equipment,Removal of a stairlift,250210
http://statistics.data.gov.uk/id/local-authority/00BU,Trafford,16/12/2020,5100399850,59371,500.00,VLC (Stairlifts) Limited,3536,GB812311285,LIFT REPAIRS & MTCE,CLIENTS LIFT REP & M,220406,,321311,SOCIAL CARE : Equipment,Removal of 2 x hoists,250210
http://statistics.data.gov.uk/id/local-authority/00BU,Trafford,16/12/2020,5100399851,59372,150.00,VLC (Stairlifts) Limited,3536,GB812311285,LIFT REPAIRS & MTCE,CLIENTS LIFT REP & M,220406,,321311,SOCIAL CARE : Equipment,Removal of a stairlift,250210
http://statistics.data.gov.uk/id/local-authority/00BU,Trafford,21/12/2020,5100399949,59392,64.50,VLC (Stairlifts) Limited,3536,GB812311285,LIFT REPAIRS & MTCE,CLIENTS LIFT REP & M,220406,,191400,FACILITIES MGT : Lifts,:call out,250210
http://statistics.data.gov.uk/id/local-authority/00BU,Trafford,21/12/2020,5100399950,59390,321.75,VLC (Stairlifts) Limited,3536,GB812311285,LIFT REPAIRS & MTCE,CLIENTS LIFT REP & M,220406,,191400,FACILITIES MGT : Lifts,Call out,250210
http://statistics.data.gov.uk/id/local-authority/00BU,Trafford,21/12/2020,5100399951,59391,171.08,VLC (Stairlifts) Limited,3536,GB812311285,LIFT REPAIRS & MTCE,CLIENTS LIFT REP & M,220406,,191400,FACILITIES MGT : Lifts,Call out,250210
http://statistics.data.gov.uk/id/local-authority/00BU,Trafford,11/12/2020,5100399602,20120023,"174,029.29",Seddon Construction Ltd,4355,GB100161491,Capital Schemes,A&M PAY TO CONTRACTO,400400,,391100,CONSTRUCTION : Buildings,Delamere School - Pool,990000
http://statistics.data.gov.uk/id/local-authority/00BU,Trafford,17/12/2020,1901390074,201001042011010,"319,544.55",Seddon Construction Ltd,4355,GB100161491,Capital Schemes,EXT ARCHITECT,400200,,151110,CONSULTANCY : Gen Construction,bacs,990000
http://statistics.data.gov.uk/id/local-authority/00BU,Trafford,02/12/2020,5100399163,3169,633.19,H2O FlowTech Limited,4462,GB166322514,PP:GENERAL POLLUTION,INVESTIGATIONS,220454,,181800,ENVIRONMENT : Technical Equip,Pumping Station Maintenance 20/21,544100
http://statistics.data.gov.uk/id/local-authority/00BU,Trafford,02/12/2020,5100397777,90807816,201.26,Amey LG Limited,4521,GB813047950,CreativeSupp Respite,EXTERNAL DAY-TO-DAY,200100,,391311,Open Spaces : Maintenance,Work at Shawe Road April 2020-March 2021,251216
http://statistics.data.gov.uk/id/local-authority/00BU,Trafford,02/12/2020,5100397778,90807820,307.02,Amey LG Limited,4521,GB813047950,CreativeSupp Respite,EXTERNAL DAY-TO-DAY,200100,,391311,Open Spaces : Maintenance,Work at Shawe Road April 2020-March 2021,251216
http://statistics.data.gov.uk/id/local-authority/00BU,Trafford,02/12/2020,5100397779,90807821,523.60,Amey LG Limited,4521,GB813047950,CreativeSupp Respite,EXTERNAL DAY-TO-DAY,200100,,391311,Open Spaces : Maintenance,Work at Shawe Road April 2020-March 2021,251216
http://statistics.data.gov.uk/id/local-authority/00BU,Trafford,02/12/2020,5100397780,90807824,237.43,Amey LG Limited,4521,GB813047950,CreativeSupp Respite,EXTERNAL DAY-TO-DAY,200100,,391311,Open Spaces : Maintenance,Work at Shawe Road April 2020-March 2021,251216
http://statistics.data.gov.uk/id/local-authority/00BU,Trafford,02/12/2020,5100397781,90807841,238.00,Amey LG Limited,4521,GB813047950,CreativeSupp Respite,EXTERNAL DAY-TO-DAY,200100,,391311,Open Spaces : Maintenance,Work at Shawe Road April 2020-March 2021,251216
http://statistics.data.gov.uk/id/local-authority/00BU,Trafford,02/12/2020,5100399062,90811112,"7,020.00",Amey LG Limited,4521,GB813047950,Capital Schemes,EXT PROJECT MAN,400220,,191700,FM : Property Management,Capital Programme 2020/21,990000
http://statistics.data.gov.uk/id/local-authority/00BU,Trafford,02/12/2020,5100399063,90811578,"3,576.76",Amey LG Limited,4521,GB813047950,Capital Schemes,EXT PROJECT MAN,400220,,201700,FINANCIAL SERVICES : Grants,Capital Project Fees,990000
http://statistics.data.gov.uk/id/local-authority/00BU,Trafford,02/12/2020,5100399064,90811636,"41,094.83",Amey LG Limited,4521,GB813047950,Capital Schemes,EXT PROJECT MAN,400220,,191700,FM : Property Management,Capital Project Schemes,990000
http://statistics.data.gov.uk/id/local-authority/00BU,Trafford,02/12/2020,5100399065,90811661,"6,004.29",Amey LG Limited,4521,GB813047950,Capital Schemes,EXT PROJECT MAN,400220,,191700,FM : Property Management,Capital Programme 2020/21,990000
http://statistics.data.gov.uk/id/local-authority/00BU,Trafford,02/12/2020,5100399067,90811829,131.79,Amey LG Limited,4521,GB813047950,OTP: Recycling Inits,OTHER MISC EXPENSES,220850,,182013,Waste Mgt : Waste Collection,Waste,233004
http://statistics.data.gov.uk/id/local-authority/00BU,Trafford,02/12/2020,5100399072,90811560,500.00,Amey LG Limited,4521,GB813047950,AM:Property Developm,PROFESSIONAL FEES,220456,,191700,FM : Property Management,Legal Estate Fees,620015
http://statistics.data.gov.uk/id/local-authority/00BU,Trafford,02/12/2020,5100399074,90811443,"5,337.67",Amey LG Limited,4521,GB813047950,Capital Schemes,EXT PROJECT MAN,400220,,201700,FINANCIAL SERVICES : Grants,Capital Project Fees,990000
http://statistics.data.gov.uk/id/local-authority/00BU,Trafford,02/12/2020,5100399075,90811441,"91,631.19",Amey LG Limited,4521,GB813047950,Capital Schemes,EXT PROJECT MAN,400220,,191700,FM : Property Management,Capital Programme 2020/21,990000
http://statistics.data.gov.uk/id/local-authority/00BU,Trafford,02/12/2020,5100399077,90811438,985.12,Amey LG Limited,4521,GB813047950,Capital Schemes,EXT PROJECT MAN,400220,,191700,FM : Property Management,Capital Project Schemes,990000
http://statistics.data.gov.uk/id/local-authority/00BU,Trafford,02/12/2020,5100399079,90811436,"17,649.00",Amey LG Limited,4521,GB813047950,Capital Schemes,EXT PROJECT MAN,400220,,201700,FINANCIAL SERVICES : Grants,Capital Project Fees,990000
http://statistics.data.gov.uk/id/local-authority/00BU,Trafford,02/12/2020,5100399080,90811546,"2,527.04",Amey LG Limited,4521,GB813047950,Bikeability Scheme,SUPPLIES/SERVICES,220472,,151300,CONSULTANCY : Environmental,Bikeability 20/21,401008
http://statistics.data.gov.uk/id/local-authority/00BU,Trafford,02/12/2020,5100399082,90811501,691.25,Amey LG Limited,4521,GB813047950,Capital Schemes,TRIAL HOLES,400015,,231800,HWY : Services,Trial Pits & Environmental Checks,990000
http://statistics.data.gov.uk/id/local-authority/00BU,Trafford,02/12/2020,5100399082,90811501,0.17,Amey LG Limited,4521,GB813047950,FI:GENERAL CONTINGEN,Mat Small Price Diff,220082,,191700,FM : Property Management,,610500
http://statistics.data.gov.uk/id/local-authority/00BU,Trafford,02/12/2020,5100399083,90811480,"5,869.38",Amey LG Limited,4521,GB813047950,Capital Schemes,EXT PROJECT MAN,400220,,231800,HWY : Services,Redacted,990000
http://statistics.data.gov.uk/id/local-authority/00BU,Trafford,02/12/2020,5100399085,90811471,"30,127.71",Amey LG Limited,4521,GB813047950,Capital Schemes,EXT ENG HIGHWAY,400205,,231800,HWY : Services,Design Phase 2a,990000
http://statistics.data.gov.uk/id/local-authority/00BU,Trafford,02/12/2020,5100399086,90811455,"7,561.03",Amey LG Limited,4521,GB813047950,Capital Schemes,EXT ENG HIGHWAY,400205,,231800,HWY : Services,Tranche 2,990000
http://statistics.data.gov.uk/id/local-authority/00BU,Trafford,02/12/2020,5100399087,90811453,"5,150.36",Amey LG Limited,4521,GB813047950,Capital Schemes,EXT ENG HIGHWAY,400205,,231800,HWY : Services,Tranche 1,990000
http://statistics.data.gov.uk/id/local-authority/00BU,Trafford,02/12/2020,5100399088,90811452,"32,634.80",Amey LG Limited,4521,GB813047950,Capital Schemes,EXT ENG HIGHWAY,400205,,231800,HWY : Services,Carrington Design Stage 1,990000
http://statistics.data.gov.uk/id/local-authority/00BU,Trafford,02/12/2020,5100399089,90811450,"1,540.32",Amey LG Limited,4521,GB813047950,Capital Schemes,EXT ENG HIGHWAY,400205,,151110,CONSULTANCY : Gen Construction,Stage 2,990000
http://statistics.data.gov.uk/id/local-authority/00BU,Trafford,02/12/2020,5100399091,90811447,"2,619.91",Amey LG Limited,4521,GB813047950,1T: S38,SUPPLIES/SERVICES,220472,,231400,HWY : Street Lighting,One Trafford  - Section 37/38 Fees 2016/,233003
http://statistics.data.gov.uk/id/local-authority/00BU,Trafford,02/12/2020,5100399105,90811828,"4,294.26",Amey LG Limited,4521,GB813047950,OTP: Recycling Inits,EMPLOYEE APPORTIONME,194000,,182013,Waste Mgt : Waste Collection,Recycling Officers,233004
http://statistics.data.gov.uk/id/local-authority/00BU,Trafford,02/12/2020,5100399106,90811428,"2,224.96",Amey LG Limited,4521,GB813047950,AM:Trafford Town Hal,SECURITY MEASURES,201015,,191700,FM : Property Management,Security Guards 9th Nov - 8th Jan,621017
http://statistics.data.gov.uk/id/local-authority/00BU,Trafford,02/12/2020,5100399107,90811421,695.30,Amey LG Limited,4521,GB813047950,AM:Trafford Town Hal,SECURITY MEASURES,201015,,191700,FM : Property Management,Security Guards Sep - Nov,621017
http://statistics.data.gov.uk/id/local-authority/00BU,Trafford,02/12/2020,5100399108,90811827,"3,325.67",Amey LG Limited,4521,GB813047950,EN:Tree Maint,SUPPLIES/SERVICES,220472,,231800,HWY : Services,Redacted,411450
http://statistics.data.gov.uk/id/local-authority/00BU,Trafford,02/12/2020,5100399112,90807006,"25,553.83",Amey LG Limited,4521,GB813047950,Capital Schemes,EXT PROJECT MAN,400220,,191700,FM : Property Management,Capital Project Schemes,990000
http://statistics.data.gov.uk/id/local-authority/00BU,Trafford,02/12/2020,5100399113,90807004,"2,746.50",Amey LG Limited,4521,GB813047950,Capital Schemes,EXT PROJECT MAN,400220,,201700,FINANCIAL SERVICES : Grants,Capital Project Fees,990000
http://statistics.data.gov.uk/id/local-authority/00BU,Trafford,02/12/2020,5100399114,90807007,"8,451.82",Amey LG Limited,4521,GB813047950,Capital Schemes,EXT PROJECT MAN,400220,,191700,FM : Property Management,Capital Programme 2020/21,990000
http://statistics.data.gov.uk/id/local-authority/00BU,Trafford,02/12/2020,5100399127,90811165,"35,495.99",Amey LG Limited,4521,GB813047950,Capital Schemes,EXT PROJECT MAN,400220,,201700,FINANCIAL SERVICES : Grants,Capital Project Fees,990000
http://statistics.data.gov.uk/id/local-authority/00BU,Trafford,02/12/2020,5100399128,90811933,"9,110.38",Amey LG Limited,4521,GB813047950,Capital Schemes,EXT PROJECT MAN,400220,,191700,FM : Property Management,Capital Project Schemes,990000
http://statistics.data.gov.uk/id/local-authority/00BU,Trafford,02/12/2020,5100399131,90811169,"9,704.77",Amey LG Limited,4521,GB813047950,Capital Schemes,EXT PROJECT MAN,400220,,191700,FM : Property Management,Capital Project Schemes,990000
http://statistics.data.gov.uk/id/local-authority/00BU,Trafford,02/12/2020,5100399134,90811937,"72,413.65",Amey LG Limited,4521,GB813047950,Capital Schemes,EXT PROJECT MAN,400220,,191700,FM : Property Management,Capital Programme 2020/21,990000
http://statistics.data.gov.uk/id/local-authority/00BU,Trafford,02/12/2020,5100399136,90811179,"252,835.75",Amey LG Limited,4521,GB813047950,Capital Schemes,EXT PROJECT MAN,400220,,191700,FM : Property Management,Capital Programme 2020/21,990000
http://statistics.data.gov.uk/id/local-authority/00BU,Trafford,02/12/2020,5100399137,90811922,"10,362.48",Amey LG Limited,4521,GB813047950,Capital Schemes,EXT PROJECT MAN,400220,,191700,FM : Property Management,Capital Programme 2020/21,990000
http://statistics.data.gov.uk/id/local-authority/00BU,Trafford,02/12/2020,5100399138,90811932,"2,312.00",Amey LG Limited,4521,GB813047950,Capital Schemes,EXT PROJECT MAN,400220,,201700,FINANCIAL SERVICES : Grants,Capital Project Fees,990000
http://statistics.data.gov.uk/id/local-authority/00BU,Trafford,02/12/2020,5100399139,90811925,"8,027.00",Amey LG Limited,4521,GB813047950,Capital Schemes,EXT PROJECT MAN,400220,,191700,FM : Property Management,Capital Project Schemes,990000
http://statistics.data.gov.uk/id/local-authority/00BU,Trafford,02/12/2020,5100399140,90812405,"29,765.00",Amey LG Limited,4521,GB813047950,Capital Schemes,EXT PROJECT MAN,400220,,191700,FM : Property Management,Capital Programme 2020/21,990000
http://statistics.data.gov.uk/id/local-authority/00BU,Trafford,02/12/2020,5100399141,90811189,"22,060.00",Amey LG Limited,4521,GB813047950,Capital Schemes,EXT PROJECT MAN,400220,,191700,FM : Property Management,Capital Programme 2020/21,990000
http://statistics.data.gov.uk/id/local-authority/00BU,Trafford,09/12/2020,5100397734,90808616,55.55,Amey LG Limited,4521,GB813047950,NETWORK - SUPP LIVIN,EQUIPMENT - PURCHASE,220048,,181900,ENVIRONMENT : Testing & Insp,PAT items,251317
http://statistics.data.gov.uk/id/local-authority/00BU,Trafford,09/12/2020,5100399335,90811254,360.37,Amey LG Limited,4521,GB813047950,PP:ALTRINCHAM CREMAT,EXTERNAL DAY-TO-DAY,200100,,181900,ENVIRONMENT : Testing & Insp,Altrincham Crematorium,540020
http://statistics.data.gov.uk/id/local-authority/00BU,Trafford,09/12/2020,5100399336,90812011,297.50,Amey LG Limited,4521,GB813047950,PP:ALTRINCHAM CREMAT,EXTERNAL DAY-TO-DAY,200100,,181900,ENVIRONMENT : Testing & Insp,Altrincham Crematorium,540020
http://statistics.data.gov.uk/id/local-authority/00BU,Trafford,09/12/2020,5100399337,90812000,61.46,Amey LG Limited,4521,GB813047950,PP:ALTRINCHAM CREMAT,EXTERNAL DAY-TO-DAY,200100,,181900,ENVIRONMENT : Testing & Insp,Altrincham Crematorium,540020
http://statistics.data.gov.uk/id/local-authority/00BU,Trafford,09/12/2020,5100399338,90811262,428.40,Amey LG Limited,4521,GB813047950,PP:ALTRINCHAM CREMAT,EXTERNAL DAY-TO-DAY,200100,,151110,CONSULTANCY : Gen Construction,Decorate Book Room,540020
http://statistics.data.gov.uk/id/local-authority/00BU,Trafford,09/12/2020,5100399343,90812006,65.85,Amey LG Limited,4521,GB813047950,Sanyu Daycare,EXTERNAL DAY-TO-DAY,200100,,191700,FM : Property Management,PHS October 20,130570
http://statistics.data.gov.uk/id/local-authority/00BU,Trafford,09/12/2020,5100399347,90812875,108.75,Amey LG Limited,4521,GB813047950,LP:BURLEIGH ROAD G,NEW FIXTURES AND FIT,201000,,391311,Open Spaces : Maintenance,padlock,550969
http://statistics.data.gov.uk/id/local-authority/00BU,Trafford,09/12/2020,5100399348,90811249,52.18,Amey LG Limited,4521,GB813047950,NETWORK - SUPP LIVIN,EQUIPMENT - PURCHASE,220048,,181900,ENVIRONMENT : Testing & Insp,PAT invoice 2,251317
http://statistics.data.gov.uk/id/local-authority/00BU,Trafford,09/12/2020,5100399349,90811233,93.59,Amey LG Limited,4521,GB813047950,Claremont Centre,EXTERNAL DAY-TO-DAY,200100,,191700,FM : Property Management,Claremont Centre 2020/21,621001
http://statistics.data.gov.uk/id/local-authority/00BU,Trafford,09/12/2020,5100399350,90811259,"1,785.00",Amey LG Limited,4521,GB813047950,Claremont Centre,EXTERNAL DAY-TO-DAY,200100,,191700,FM : Property Management,Claremont Centre 2020/21,621001
http://statistics.data.gov.uk/id/local-authority/00BU,Trafford,09/12/2020,5100399351,90811270,85.50,Amey LG Limited,4521,GB813047950,Claremont Centre,EXTERNAL DAY-TO-DAY,200100,,191700,FM : Property Management,Claremont Centre 2020/21,621001
http://statistics.data.gov.uk/id/local-authority/00BU,Trafford,09/12/2020,5100399352,90812015,297.50,Amey LG Limited,4521,GB813047950,Claremont Centre,EXTERNAL DAY-TO-DAY,200100,,191700,FM : Property Management,Claremont Centre 2020/21,621001
http://statistics.data.gov.uk/id/local-authority/00BU,Trafford,09/12/2020,5100399355,90806770,"33,371.35",Amey LG Limited,4521,GB813047950,Capital Schemes,EXT PROJECT MAN,400220,,191700,FM : Property Management,Capital Programme 2020/21,990000
http://statistics.data.gov.uk/id/local-authority/00BU,Trafford,09/12/2020,5100399356,90812403,"-33,371.35",Amey LG Limited,4521,GB813047950,Capital Schemes,EXT PROJECT MAN,400220,,191700,FM : Property Management,Capital Programme 2020/21,990000
http://statistics.data.gov.uk/id/local-authority/00BU,Trafford,09/12/2020,5100399358,90811229,218.35,Amey LG Limited,4521,GB813047950,Kindle Lodge,PROFESSIONAL FEES,220456,,191700,FM : Property Management,Repairs to fire door magnetic holders,130450
http://statistics.data.gov.uk/id/local-authority/00BU,Trafford,09/12/2020,5100399359,90811283,222.77,Amey LG Limited,4521,GB813047950,Kindle Lodge,MAINTENANCE,240000,,191700,FM : Property Management,Repairs at Kindle Lodge,130450
http://statistics.data.gov.uk/id/local-authority/00BU,Trafford,09/12/2020,5100399360,90812716,153.75,Amey LG Limited,4521,GB813047950,NEXUS EDUCATION CENT,EXTERNAL DAY-TO-DAY,200100,,191700,FM : Property Management,Amey SLA Dec 20 - Feb 21 90812716,120631
http://statistics.data.gov.uk/id/local-authority/00BU,Trafford,09/12/2020,5100399360,90812716,296.50,Amey LG Limited,4521,GB813047950,NEXUS EDUCATION CENT,EXTERNAL DAY-TO-DAY,200100,,191700,FM : Property Management,Amey SLA Dec 20 - Feb 21 90812716,120631
http://statistics.data.gov.uk/id/local-authority/00BU,Trafford,09/12/2020,5100399360,90812716,210.75,Amey LG Limited,4521,GB813047950,NEXUS EDUCATION CENT,EXTERNAL DAY-TO-DAY,200100,,191700,FM : Property Management,Amey SLA Dec 20 - Feb 21 90812716,120631
http://statistics.data.gov.uk/id/local-authority/00BU,Trafford,09/12/2020,5100399360,90812716,92.50,Amey LG Limited,4521,GB813047950,NEXUS EDUCATION CENT,EXTERNAL DAY-TO-DAY,200100,,191700,FM : Property Management,Amey SLA Dec 20 - Feb 21 90812716,120631
http://statistics.data.gov.uk/id/local-authority/00BU,Trafford,09/12/2020,5100399361,90812222,665.62,Amey LG Limited,4521,GB813047950,NEXUS EDUCATION CENT,EXTERNAL DAY-TO-DAY,200100,,151110,CONSULTANCY : Gen Construction,Amy - AT Nolan : 90812222,120631
http://statistics.data.gov.uk/id/local-authority/00BU,Trafford,09/12/2020,5100399362,90812130,536.25,Amey LG Limited,4521,GB813047950,NEXUS EDUCATION CENT,EXTERNAL DAY-TO-DAY,200100,,151110,CONSULTANCY : Gen Construction,Amey - Longworth : 90812130,120631
http://statistics.data.gov.uk/id/local-authority/00BU,Trafford,09/12/2020,5100399364,90811290,302.33,Amey LG Limited,4521,GB813047950,LP:TRAF. WATER SC -,EXTERNAL DAY-TO-DAY,200100,,391311,Open Spaces : Maintenance,Invoice  90807828,552020
http://statistics.data.gov.uk/id/local-authority/00BU,Trafford,09/12/2020,5100399365,90811231,74.92,Amey LG Limited,4521,GB813047950,LP:TRAF. WATER SC -,EXTERNAL DAY-TO-DAY,200100,,391311,Open Spaces : Maintenance,Invoice  90807828,552020
http://statistics.data.gov.uk/id/local-authority/00BU,Trafford,09/12/2020,5100399571,90812830,22.50,Amey LG Limited,4521,GB813047950,NEXUS EDUCATION CENT,LEGION - RISK ASSESS,200220,,191700,FM : Property Management,Amey Water Hygiene 90812830,120631
http://statistics.data.gov.uk/id/local-authority/00BU,Trafford,09/12/2020,5100397734,90808616,55.55,Amey LG Limited,4521,GB813047950,NETWORK - SUPP LIVIN,EQUIPMENT - PURCHASE,220048,,181900,ENVIRONMENT : Testing & Insp,PAT items,251317
http://statistics.data.gov.uk/id/local-authority/00BU,Trafford,09/12/2020,5100399335,90811254,360.37,Amey LG Limited,4521,GB813047950,PP:ALTRINCHAM CREMAT,EXTERNAL DAY-TO-DAY,200100,,181900,ENVIRONMENT : Testing & Insp,Altrincham Crematorium,540020
http://statistics.data.gov.uk/id/local-authority/00BU,Trafford,09/12/2020,5100399336,90812011,297.50,Amey LG Limited,4521,GB813047950,PP:ALTRINCHAM CREMAT,EXTERNAL DAY-TO-DAY,200100,,181900,ENVIRONMENT : Testing & Insp,Altrincham Crematorium,540020
http://statistics.data.gov.uk/id/local-authority/00BU,Trafford,09/12/2020,5100399337,90812000,61.46,Amey LG Limited,4521,GB813047950,PP:ALTRINCHAM CREMAT,EXTERNAL DAY-TO-DAY,200100,,181900,ENVIRONMENT : Testing & Insp,Altrincham Crematorium,540020
http://statistics.data.gov.uk/id/local-authority/00BU,Trafford,09/12/2020,5100399338,90811262,428.40,Amey LG Limited,4521,GB813047950,PP:ALTRINCHAM CREMAT,EXTERNAL DAY-TO-DAY,200100,,151110,CONSULTANCY : Gen Construction,Decorate Book Room,540020
http://statistics.data.gov.uk/id/local-authority/00BU,Trafford,09/12/2020,5100399343,90812006,65.85,Amey LG Limited,4521,GB813047950,Sanyu Daycare,EXTERNAL DAY-TO-DAY,200100,,191700,FM : Property Management,PHS October 20,130570
http://statistics.data.gov.uk/id/local-authority/00BU,Trafford,09/12/2020,5100399347,90812875,108.75,Amey LG Limited,4521,GB813047950,LP:BURLEIGH ROAD G,NEW FIXTURES AND FIT,201000,,391311,Open Spaces : Maintenance,padlock,550969
http://statistics.data.gov.uk/id/local-authority/00BU,Trafford,09/12/2020,5100399348,90811249,52.18,Amey LG Limited,4521,GB813047950,NETWORK - SUPP LIVIN,EQUIPMENT - PURCHASE,220048,,181900,ENVIRONMENT : Testing & Insp,PAT invoice 2,251317
http://statistics.data.gov.uk/id/local-authority/00BU,Trafford,09/12/2020,5100399349,90811233,93.59,Amey LG Limited,4521,GB813047950,Claremont Centre,EXTERNAL DAY-TO-DAY,200100,,191700,FM : Property Management,Claremont Centre 2020/21,621001
http://statistics.data.gov.uk/id/local-authority/00BU,Trafford,09/12/2020,5100399350,90811259,"1,785.00",Amey LG Limited,4521,GB813047950,Claremont Centre,EXTERNAL DAY-TO-DAY,200100,,191700,FM : Property Management,Claremont Centre 2020/21,621001
http://statistics.data.gov.uk/id/local-authority/00BU,Trafford,09/12/2020,5100399351,90811270,85.50,Amey LG Limited,4521,GB813047950,Claremont Centre,EXTERNAL DAY-TO-DAY,200100,,191700,FM : Property Management,Claremont Centre 2020/21,621001
http://statistics.data.gov.uk/id/local-authority/00BU,Trafford,09/12/2020,5100399352,90812015,297.50,Amey LG Limited,4521,GB813047950,Claremont Centre,EXTERNAL DAY-TO-DAY,200100,,191700,FM : Property Management,Claremont Centre 2020/21,621001
http://statistics.data.gov.uk/id/local-authority/00BU,Trafford,09/12/2020,5100399355,90806770,"33,371.35",Amey LG Limited,4521,GB813047950,Capital Schemes,EXT PROJECT MAN,400220,,191700,FM : Property Management,Capital Programme 2020/21,990000
http://statistics.data.gov.uk/id/local-authority/00BU,Trafford,09/12/2020,5100399356,90812403,"-33,371.35",Amey LG Limited,4521,GB813047950,Capital Schemes,EXT PROJECT MAN,400220,,191700,FM : Property Management,Capital Programme 2020/21,990000
http://statistics.data.gov.uk/id/local-authority/00BU,Trafford,09/12/2020,5100399358,90811229,218.35,Amey LG Limited,4521,GB813047950,Kindle Lodge,PROFESSIONAL FEES,220456,,191700,FM : Property Management,Repairs to fire door magnetic holders,130450
http://statistics.data.gov.uk/id/local-authority/00BU,Trafford,09/12/2020,5100399359,90811283,222.77,Amey LG Limited,4521,GB813047950,Kindle Lodge,MAINTENANCE,240000,,191700,FM : Property Management,Repairs at Kindle Lodge,130450
http://statistics.data.gov.uk/id/local-authority/00BU,Trafford,09/12/2020,5100399360,90812716,153.75,Amey LG Limited,4521,GB813047950,NEXUS EDUCATION CENT,EXTERNAL DAY-TO-DAY,200100,,191700,FM : Property Management,Amey SLA Dec 20 - Feb 21 90812716,120631
http://statistics.data.gov.uk/id/local-authority/00BU,Trafford,09/12/2020,5100399360,90812716,296.50,Amey LG Limited,4521,GB813047950,NEXUS EDUCATION CENT,EXTERNAL DAY-TO-DAY,200100,,191700,FM : Property Management,Amey SLA Dec 20 - Feb 21 90812716,120631
http://statistics.data.gov.uk/id/local-authority/00BU,Trafford,09/12/2020,5100399360,90812716,210.75,Amey LG Limited,4521,GB813047950,NEXUS EDUCATION CENT,EXTERNAL DAY-TO-DAY,200100,,191700,FM : Property Management,Amey SLA Dec 20 - Feb 21 90812716,120631
http://statistics.data.gov.uk/id/local-authority/00BU,Trafford,09/12/2020,5100399360,90812716,92.50,Amey LG Limited,4521,GB813047950,NEXUS EDUCATION CENT,EXTERNAL DAY-TO-DAY,200100,,191700,FM : Property Management,Amey SLA Dec 20 - Feb 21 90812716,120631
http://statistics.data.gov.uk/id/local-authority/00BU,Trafford,09/12/2020,5100399361,90812222,665.62,Amey LG Limited,4521,GB813047950,NEXUS EDUCATION CENT,EXTERNAL DAY-TO-DAY,200100,,151110,CONSULTANCY : Gen Construction,Amy - AT Nolan : 90812222,120631
http://statistics.data.gov.uk/id/local-authority/00BU,Trafford,09/12/2020,5100399362,90812130,536.25,Amey LG Limited,4521,GB813047950,NEXUS EDUCATION CENT,EXTERNAL DAY-TO-DAY,200100,,151110,CONSULTANCY : Gen Construction,Amey - Longworth : 90812130,120631
http://statistics.data.gov.uk/id/local-authority/00BU,Trafford,09/12/2020,5100399364,90811290,302.33,Amey LG Limited,4521,GB813047950,LP:TRAF. WATER SC -,EXTERNAL DAY-TO-DAY,200100,,391311,Open Spaces : Maintenance,Invoice  90807828,552020
http://statistics.data.gov.uk/id/local-authority/00BU,Trafford,09/12/2020,5100399365,90811231,74.92,Amey LG Limited,4521,GB813047950,LP:TRAF. WATER SC -,EXTERNAL DAY-TO-DAY,200100,,391311,Open Spaces : Maintenance,Invoice  90807828,552020
http://statistics.data.gov.uk/id/local-authority/00BU,Trafford,09/12/2020,5100399571,90812830,22.50,Amey LG Limited,4521,GB813047950,NEXUS EDUCATION CENT,LEGION - RISK ASSESS,200220,,191700,FM : Property Management,Amey Water Hygiene 90812830,120631
http://statistics.data.gov.uk/id/local-authority/00BU,Trafford,11/12/2020,5100399339,90811268,"6,412.91",Amey LG Limited,4521,GB813047950,PP:ALTRINCHAM CREMAT,EXTERNAL DAY-TO-DAY,200100,,151110,CONSULTANCY : Gen Construction,Car park gates side panel and fence,540020
http://statistics.data.gov.uk/id/local-authority/00BU,Trafford,11/12/2020,5100399340,90811280,31.24,Amey LG Limited,4521,GB813047950,Sanyu Daycare,EXT ALARMS/SEC,200015,,151110,CONSULTANCY : Gen Construction,Alarm Call Out 23/10//2020,130570
http://statistics.data.gov.uk/id/local-authority/00BU,Trafford,14/12/2020,5100399342,90811286,139.09,Amey LG Limited,4521,GB813047950,Sanyu Daycare,EXTERNAL DAY-TO-DAY,200100,,191700,FM : Property Management,Boiler & Pressurisation unit servicing,130570
http://statistics.data.gov.uk/id/local-authority/00BU,Trafford,14/12/2020,5100399344,90812009,74.38,Amey LG Limited,4521,GB813047950,Sanyu Daycare,EXTERNAL DAY-TO-DAY,200100,,191700,FM : Property Management,Emergency Lighting,130570
http://statistics.data.gov.uk/id/local-authority/00BU,Trafford,16/12/2020,5100399094,90811413,"160,005.45",Amey LG Limited,4521,GB813047950,JVC: Minor Reactive,JVC Fixed Fee,230610,,151300,CONSULTANCY : Environmental,Lot 2a Fixed 20/21,235201
http://statistics.data.gov.uk/id/local-authority/00BU,Trafford,16/12/2020,5100399097,90811420,"210,367.17",Amey LG Limited,4521,GB813047950,JVC: Property manage,JVC Fixed Fee,230610,,151300,CONSULTANCY : Environmental,Lot 3 Fixed 20/21,235301
http://statistics.data.gov.uk/id/local-authority/00BU,Trafford,16/12/2020,5100399101,90811435,"11,309.45",Amey LG Limited,4521,GB813047950,GMRAPS,SUPPLIES/SERVICES,220472,,151300,CONSULTANCY : Environmental,GMRAPS 20/21,402033
http://statistics.data.gov.uk/id/local-authority/00BU,Trafford,16/12/2020,5100399374,90812025,55.55,Amey LG Limited,4521,GB813047950,NETWORK - SUPP LIVIN,EQUIPMENT - PURCHASE,220048,,181900,ENVIRONMENT : Testing & Insp,PAT items,251317
http://statistics.data.gov.uk/id/local-authority/00BU,Trafford,16/12/2020,5100399859,90811418,"57,287.61",Amey LG Limited,4521,GB813047950,JVC: Street light mt,JVC Fixed Fee,230610,,151300,CONSULTANCY : Environmental,Lot 2b Fixed 20/21,235221
http://statistics.data.gov.uk/id/local-authority/00BU,Trafford,16/12/2020,5100399868,90814459,-55.55,Amey LG Limited,4521,GB813047950,NETWORK - SUPP LIVIN,EQUIPMENT - PURCHASE,220048,,181900,ENVIRONMENT : Testing & Insp,PAT items,251317
http://statistics.data.gov.uk/id/local-authority/00BU,Trafford,16/12/2020,5100399094,90811413,"160,005.45",Amey LG Limited,4521,GB813047950,JVC: Minor Reactive,JVC Fixed Fee,230610,,151300,CONSULTANCY : Environmental,Lot 2a Fixed 20/21,235201
http://statistics.data.gov.uk/id/local-authority/00BU,Trafford,16/12/2020,5100399097,90811420,"210,367.17",Amey LG Limited,4521,GB813047950,JVC: Property manage,JVC Fixed Fee,230610,,151300,CONSULTANCY : Environmental,Lot 3 Fixed 20/21,235301
http://statistics.data.gov.uk/id/local-authority/00BU,Trafford,16/12/2020,5100399101,90811435,"11,309.45",Amey LG Limited,4521,GB813047950,GMRAPS,SUPPLIES/SERVICES,220472,,151300,CONSULTANCY : Environmental,GMRAPS 20/21,402033
http://statistics.data.gov.uk/id/local-authority/00BU,Trafford,16/12/2020,5100399374,90812025,55.55,Amey LG Limited,4521,GB813047950,NETWORK - SUPP LIVIN,EQUIPMENT - PURCHASE,220048,,181900,ENVIRONMENT : Testing & Insp,PAT items,251317
http://statistics.data.gov.uk/id/local-authority/00BU,Trafford,16/12/2020,5100399859,90811418,"57,287.61",Amey LG Limited,4521,GB813047950,JVC: Street light mt,JVC Fixed Fee,230610,,151300,CONSULTANCY : Environmental,Lot 2b Fixed 20/21,235221
http://statistics.data.gov.uk/id/local-authority/00BU,Trafford,16/12/2020,5100399868,90814459,-55.55,Amey LG Limited,4521,GB813047950,NETWORK - SUPP LIVIN,EQUIPMENT - PURCHASE,220048,,181900,ENVIRONMENT : Testing & Insp,PAT items,251317
http://statistics.data.gov.uk/id/local-authority/00BU,Trafford,21/12/2020,5100399095,90811407,"776,225.00",Amey LG Limited,4521,GB813047950,JVC: Residual Waste,JVC Fixed Fee,230610,,151300,CONSULTANCY : Environmental,Lot 1a Fixed 20/21,235101
http://statistics.data.gov.uk/id/local-authority/00BU,Trafford,21/12/2020,5100399372,90811996,"3,021.92",Amey LG Limited,4521,GB813047950,Capital Schemes,A&M PAY TO CONTRACTO,400400,,191700,FM : Property Management,Sidmouth Road / Plymouth Shops,990000
http://statistics.data.gov.uk/id/local-authority/00BU,Trafford,21/12/2020,5100399708,90798035,"1,191.00",Amey LG Limited,4521,GB813047950,High Street Safety,Contract Services Ge,220422,,231800,HWY : Services,Installation of Planters - Altrincham,232110
http://statistics.data.gov.uk/id/local-authority/00BU,Trafford,21/12/2020,5100399935,90811838,"-5,521.00",Amey LG Limited,4521,GB813047950,JVC: Residual Waste,JVC Fixed Fee,230610,,151300,CONSULTANCY : Environmental,Lot 1a Fixed 20/21,235101
http://statistics.data.gov.uk/id/local-authority/00BU,Trafford,21/12/2020,5100399969,90806866,100.00,Amey LG Limited,4521,GB813047950,LP:BACK OF ST. MARYS,EXTE STREET CLEAN,200500,,181600,ENVIRONMENT : Street Cleansing,Fly tipping,550955
http://statistics.data.gov.uk/id/local-authority/00BU,Trafford,21/12/2020,5100399983,90813107,149.25,Amey LG Limited,4521,GB813047950,NEXUS EDUCATION CENT,EXTERNAL DAY-TO-DAY,200100,,181900,ENVIRONMENT : Testing & Insp,Amey 90813107 SLA QRT4 Asbestos,120631
http://statistics.data.gov.uk/id/local-authority/00BU,Trafford,21/12/2020,5100399983,90813107,288.00,Amey LG Limited,4521,GB813047950,NEXUS EDUCATION CENT,EXTERNAL DAY-TO-DAY,200100,,181900,ENVIRONMENT : Testing & Insp,Amey 90813107 SLA QRT4 Property,120631
http://statistics.data.gov.uk/id/local-authority/00BU,Trafford,21/12/2020,5100399983,90813107,204.75,Amey LG Limited,4521,GB813047950,NEXUS EDUCATION CENT,EXTERNAL DAY-TO-DAY,200100,,181900,ENVIRONMENT : Testing & Insp,Amey 90813107 SLA QRT4 M&E,120631
http://statistics.data.gov.uk/id/local-authority/00BU,Trafford,21/12/2020,5100399983,90813107,89.75,Amey LG Limited,4521,GB813047950,NEXUS EDUCATION CENT,EXTERNAL DAY-TO-DAY,200100,,181900,ENVIRONMENT : Testing & Insp,Amey 90813107 SLA QRT4 Energy,120631
http://statistics.data.gov.uk/id/local-authority/00BU,Trafford,21/12/2020,5100399984,90749542,"1,424.72",Amey LG Limited,4521,GB813047950,TT:BROWN ST HALE,CONSULTANTS,220428,,151300,CONSULTANCY : Environmental,Signs/posts,400057
http://statistics.data.gov.uk/id/local-authority/00BU,Trafford,21/12/2020,5100399987,90802694,72.50,Amey LG Limited,4521,GB813047950,LP:DE QUINCEY ROAD (,REPAIRS TO FIXTURES,201010,,391311,Open Spaces : Maintenance,Gates,550951
http://statistics.data.gov.uk/id/local-authority/00BU,Trafford,21/12/2020,5100399988,90802698,72.50,Amey LG Limited,4521,GB813047950,LP:TAVISTOCK RD SA,REPAIRS TO FIXTURES,201010,,391311,Open Spaces : Maintenance,Gates,550971
http://statistics.data.gov.uk/id/local-authority/00BU,Trafford,21/12/2020,5100399989,90802896,552.60,Amey LG Limited,4521,GB813047950,LP:MARLBOROUGH ROAD,EXT VANDALISM,200020,,391311,Open Spaces : Maintenance,Fence posts,550959
http://statistics.data.gov.uk/id/local-authority/00BU,Trafford,21/12/2020,5100399990,90803139,180.00,Amey LG Limited,4521,GB813047950,Sanyu Daycare,EXT GR MAINT CONT WK,200405,,151300,CONSULTANCY : Environmental,Grounds Maintenance Sep 20 - Nov 20,130570
http://statistics.data.gov.uk/id/local-authority/00BU,Trafford,21/12/2020,5100399991,90811995,256.49,Amey LG Limited,4521,GB813047950,Capital Schemes,A&M PAY TO CONTRACTO,400400,,191700,FM : Property Management,Sidmouth Road / Plymouth Shops,990000
http://statistics.data.gov.uk/id/local-authority/00BU,Trafford,21/12/2020,5100399997,90793346,250.00,Amey LG Limited,4521,GB813047950,NEXUS EDUCATION CENT,EXTERNAL DAY-TO-DAY,200100,,181900,ENVIRONMENT : Testing & Insp,Amey 90793346 Fire alarm,120631
http://statistics.data.gov.uk/id/local-authority/00BU,Trafford,21/12/2020,5100399998,90793275,125.00,Amey LG Limited,4521,GB813047950,NEXUS EDUCATION CENT,EXTERNAL DAY-TO-DAY,200100,,181900,ENVIRONMENT : Testing & Insp,Amey 90793275 Fire alarm,120631
http://statistics.data.gov.uk/id/local-authority/00BU,Trafford,21/12/2020,5100399095,90811407,"776,225.00",Amey LG Limited,4521,GB813047950,JVC: Residual Waste,JVC Fixed Fee,230610,,151300,CONSULTANCY : Environmental,Lot 1a Fixed 20/21,235101
http://statistics.data.gov.uk/id/local-authority/00BU,Trafford,21/12/2020,5100399372,90811996,"3,021.92",Amey LG Limited,4521,GB813047950,Capital Schemes,A&M PAY TO CONTRACTO,400400,,191700,FM : Property Management,Sidmouth Road / Plymouth Shops,990000
http://statistics.data.gov.uk/id/local-authority/00BU,Trafford,21/12/2020,5100399708,90798035,"1,191.00",Amey LG Limited,4521,GB813047950,High Street Safety,Contract Services Ge,220422,,231800,HWY : Services,Installation of Planters - Altrincham,232110
http://statistics.data.gov.uk/id/local-authority/00BU,Trafford,21/12/2020,5100399935,90811838,"-5,521.00",Amey LG Limited,4521,GB813047950,JVC: Residual Waste,JVC Fixed Fee,230610,,151300,CONSULTANCY : Environmental,Lot 1a Fixed 20/21,235101
http://statistics.data.gov.uk/id/local-authority/00BU,Trafford,21/12/2020,5100399969,90806866,100.00,Amey LG Limited,4521,GB813047950,LP:BACK OF ST. MARYS,EXTE STREET CLEAN,200500,,181600,ENVIRONMENT : Street Cleansing,Fly tipping,550955
http://statistics.data.gov.uk/id/local-authority/00BU,Trafford,21/12/2020,5100399983,90813107,149.25,Amey LG Limited,4521,GB813047950,NEXUS EDUCATION CENT,EXTERNAL DAY-TO-DAY,200100,,181900,ENVIRONMENT : Testing & Insp,Amey 90813107 SLA QRT4 Asbestos,120631
http://statistics.data.gov.uk/id/local-authority/00BU,Trafford,21/12/2020,5100399983,90813107,288.00,Amey LG Limited,4521,GB813047950,NEXUS EDUCATION CENT,EXTERNAL DAY-TO-DAY,200100,,181900,ENVIRONMENT : Testing & Insp,Amey 90813107 SLA QRT4 Property,120631
http://statistics.data.gov.uk/id/local-authority/00BU,Trafford,21/12/2020,5100399983,90813107,204.75,Amey LG Limited,4521,GB813047950,NEXUS EDUCATION CENT,EXTERNAL DAY-TO-DAY,200100,,181900,ENVIRONMENT : Testing & Insp,Amey 90813107 SLA QRT4 M&E,120631
http://statistics.data.gov.uk/id/local-authority/00BU,Trafford,21/12/2020,5100399983,90813107,89.75,Amey LG Limited,4521,GB813047950,NEXUS EDUCATION CENT,EXTERNAL DAY-TO-DAY,200100,,181900,ENVIRONMENT : Testing & Insp,Amey 90813107 SLA QRT4 Energy,120631
http://statistics.data.gov.uk/id/local-authority/00BU,Trafford,21/12/2020,5100399984,90749542,"1,424.72",Amey LG Limited,4521,GB813047950,TT:BROWN ST HALE,CONSULTANTS,220428,,151300,CONSULTANCY : Environmental,Signs/posts,400057
http://statistics.data.gov.uk/id/local-authority/00BU,Trafford,21/12/2020,5100399987,90802694,72.50,Amey LG Limited,4521,GB813047950,LP:DE QUINCEY ROAD (,REPAIRS TO FIXTURES,201010,,391311,Open Spaces : Maintenance,Gates,550951
http://statistics.data.gov.uk/id/local-authority/00BU,Trafford,21/12/2020,5100399988,90802698,72.50,Amey LG Limited,4521,GB813047950,LP:TAVISTOCK RD SA,REPAIRS TO FIXTURES,201010,,391311,Open Spaces : Maintenance,Gates,550971
http://statistics.data.gov.uk/id/local-authority/00BU,Trafford,21/12/2020,5100399989,90802896,552.60,Amey LG Limited,4521,GB813047950,LP:MARLBOROUGH ROAD,EXT VANDALISM,200020,,391311,Open Spaces : Maintenance,Fence posts,550959
http://statistics.data.gov.uk/id/local-authority/00BU,Trafford,21/12/2020,5100399990,90803139,180.00,Amey LG Limited,4521,GB813047950,Sanyu Daycare,EXT GR MAINT CONT WK,200405,,151300,CONSULTANCY : Environmental,Grounds Maintenance Sep 20 - Nov 20,130570
http://statistics.data.gov.uk/id/local-authority/00BU,Trafford,21/12/2020,5100399991,90811995,256.49,Amey LG Limited,4521,GB813047950,Capital Schemes,A&M PAY TO CONTRACTO,400400,,191700,FM : Property Management,Sidmouth Road / Plymouth Shops,990000
http://statistics.data.gov.uk/id/local-authority/00BU,Trafford,21/12/2020,5100399997,90793346,250.00,Amey LG Limited,4521,GB813047950,NEXUS EDUCATION CENT,EXTERNAL DAY-TO-DAY,200100,,181900,ENVIRONMENT : Testing & Insp,Amey 90793346 Fire alarm,120631
http://statistics.data.gov.uk/id/local-authority/00BU,Trafford,21/12/2020,5100399998,90793275,125.00,Amey LG Limited,4521,GB813047950,NEXUS EDUCATION CENT,EXTERNAL DAY-TO-DAY,200100,,181900,ENVIRONMENT : Testing & Insp,Amey 90793275 Fire alarm,120631
http://statistics.data.gov.uk/id/local-authority/00BU,Trafford,22/12/2020,5100400012,90807396,501.82,Amey LG Limited,4521,GB813047950,Capital Schemes,LANDSCAPING WORKS,400460,,191700,FM : Property Management,Tennis Court Fence Repairs,990000
http://statistics.data.gov.uk/id/local-authority/00BU,Trafford,22/12/2020,5100400013,90808533,"3,575.46",Amey LG Limited,4521,GB813047950,Capital Schemes,LANDSCAPING WORKS,400460,,191700,FM : Property Management,Chestnut Paling & Posts,990000
http://statistics.data.gov.uk/id/local-authority/00BU,Trafford,07/12/2020,5100398779,1800351658,"3,424.32",Engie FM Ltd,4537,GB578153121,AM:Sale Waterside,SUPP & SERV COVID 19,220495,,131300,CLEANING: Services,Cleaning Provision November 2020,621049
http://statistics.data.gov.uk/id/local-authority/00BU,Trafford,09/12/2020,5100398513,425,"2,964.61",UPS Building & Maintenance Limited,4600,GB901576633,Capital Schemes,A&M PAY TO CONTRACTO,400400,,391110,CONSTRUCTION: Bld Construction,Disabled facilities grant,990000
http://statistics.data.gov.uk/id/local-authority/00BU,Trafford,09/12/2020,5100399026,521,"5,558.18",UPS Building & Maintenance Limited,4600,GB901576633,Capital Schemes,A&M PAY TO CONTRACTO,400400,,391110,CONSTRUCTION: Bld Construction,Disabled Facilities Grant,990000
http://statistics.data.gov.uk/id/local-authority/00BU,Trafford,09/12/2020,5100399027,462,"5,682.41",UPS Building & Maintenance Limited,4600,GB901576633,Capital Schemes,A&M PAY TO CONTRACTO,400400,,391110,CONSTRUCTION: Bld Construction,Disabled facilities grant,990000
http://statistics.data.gov.uk/id/local-authority/00BU,Trafford,09/12/2020,5100399290,648,"6,137.91",UPS Building & Maintenance Limited,4600,GB901576633,Capital Schemes,A&M PAY TO CONTRACTO,400400,,391110,CONSTRUCTION: Bld Construction,Disabled Facilities Grant 17797,990000
http://statistics.data.gov.uk/id/local-authority/00BU,Trafford,09/12/2020,5100399331,657,"6,883.88",UPS Building & Maintenance Limited,4600,GB901576633,Capital Schemes,A&M PAY TO CONTRACTO,400400,,391110,CONSTRUCTION: Bld Construction,Disabled Facilities Grant,990000
http://statistics.data.gov.uk/id/local-authority/00BU,Trafford,21/12/2020,5100399756,671,"5,764.05",UPS Building & Maintenance Limited,4600,GB901576633,Capital Schemes,A&M PAY TO CONTRACTO,400400,,391110,CONSTRUCTION: Bld Construction,Disabled Facilities Grant 17656,990000
http://statistics.data.gov.uk/id/local-authority/00BU,Trafford,21/12/2020,5100399910,693,"6,182.99",UPS Building & Maintenance Limited,4600,GB901576633,Capital Schemes,A&M PAY TO CONTRACTO,400400,,391110,CONSTRUCTION: Bld Construction,Disabled Facilities Grant,990000
http://statistics.data.gov.uk/id/local-authority/00BU,Trafford,21/12/2020,5100399931,685,"5,677.29",UPS Building & Maintenance Limited,4600,GB901576633,Capital Schemes,A&M PAY TO CONTRACTO,400400,,391110,CONSTRUCTION: Bld Construction,Disabled Facilities Grant 17675,990000
http://statistics.data.gov.uk/id/local-authority/00BU,Trafford,21/12/2020,5100399946,693,"-6,182.99",UPS Building & Maintenance Limited,4600,GB901576633,Capital Schemes,A&M PAY TO CONTRACTO,400400,,391110,CONSTRUCTION: Bld Construction,Disabled Facilities Grant,990000
http://statistics.data.gov.uk/id/local-authority/00BU,Trafford,21/12/2020,5100399947,693,"6,182.99",UPS Building & Maintenance Limited,4600,GB901576633,Capital Schemes,A&M PAY TO CONTRACTO,400400,,391110,CONSTRUCTION: Bld Construction,Disabled Facilities Grant,990000
http://statistics.data.gov.uk/id/local-authority/00BU,Trafford,21/12/2020,5100400008,686,"4,513.20",UPS Building & Maintenance Limited,4600,GB901576633,Capital Schemes,A&M PAY TO CONTRACTO,400400,,391110,CONSTRUCTION: Bld Construction,Disabled Facilities Grant,990000
http://statistics.data.gov.uk/id/local-authority/00BU,Trafford,21/12/2020,5100399756,671,"5,764.05",UPS Building & Maintenance Limited,4600,GB901576633,Capital Schemes,A&M PAY TO CONTRACTO,400400,,391110,CONSTRUCTION: Bld Construction,Disabled Facilities Grant 17656,990000
http://statistics.data.gov.uk/id/local-authority/00BU,Trafford,21/12/2020,5100399910,693,"6,182.99",UPS Building & Maintenance Limited,4600,GB901576633,Capital Schemes,A&M PAY TO CONTRACTO,400400,,391110,CONSTRUCTION: Bld Construction,Disabled Facilities Grant,990000
http://statistics.data.gov.uk/id/local-authority/00BU,Trafford,21/12/2020,5100399931,685,"5,677.29",UPS Building & Maintenance Limited,4600,GB901576633,Capital Schemes,A&M PAY TO CONTRACTO,400400,,391110,CONSTRUCTION: Bld Construction,Disabled Facilities Grant 17675,990000
http://statistics.data.gov.uk/id/local-authority/00BU,Trafford,21/12/2020,5100399946,693,"-6,182.99",UPS Building & Maintenance Limited,4600,GB901576633,Capital Schemes,A&M PAY TO CONTRACTO,400400,,391110,CONSTRUCTION: Bld Construction,Disabled Facilities Grant,990000
http://statistics.data.gov.uk/id/local-authority/00BU,Trafford,21/12/2020,5100399947,693,"6,182.99",UPS Building & Maintenance Limited,4600,GB901576633,Capital Schemes,A&M PAY TO CONTRACTO,400400,,391110,CONSTRUCTION: Bld Construction,Disabled Facilities Grant,990000
http://statistics.data.gov.uk/id/local-authority/00BU,Trafford,21/12/2020,5100400008,686,"4,513.20",UPS Building & Maintenance Limited,4600,GB901576633,Capital Schemes,A&M PAY TO CONTRACTO,400400,,391110,CONSTRUCTION: Bld Construction,Disabled Facilities Grant,990000
http://statistics.data.gov.uk/id/local-authority/00BU,Trafford,24/12/2020,5100400148,702,302.76,UPS Building & Maintenance Limited,4600,GB901576633,HS:ADAPTATIONS,PROFESSIONAL FEES,220456,,391110,CONSTRUCTION: Bld Construction,Cancellation Fee,302300
http://statistics.data.gov.uk/id/local-authority/00BU,Trafford,21/12/2020,5100400005,10914,"1,700.00",Beechwood Industries Ltd,4641,GB102870639,GM ARBOR - WORKS MGT,EXT ARB MAINT COSTS,200410,,241600,HORTICULTURAL : Trees & Shrubs,Woodsend rd Highway Pruning,202408
http://statistics.data.gov.uk/id/local-authority/00BU,Trafford,22/12/2020,5100400026,109020,430.00,Beechwood Industries Ltd,4641,GB102870639,GM ARBOR - WORKS MGT,EXT ARB MAINT COSTS,200410,,241600,HORTICULTURAL : Trees & Shrubs,William Wroe Split Poplar,202408
http://statistics.data.gov.uk/id/local-authority/00BU,Trafford,22/12/2020,5100400033,10916,"2,496.00",Beechwood Industries Ltd,4641,GB102870639,GM ARBOR - WORKS MGT,EXT ARB MAINT COSTS,200410,,241600,HORTICULTURAL : Trees & Shrubs,Urgen Works William Wroe,202408
http://statistics.data.gov.uk/id/local-authority/00BU,Trafford,14/12/2020,5100399760,11479,700.00,Greater Manchester TreeStation Ltd,4643,GB974689547,GM ARBOR - WORKS MGT,EXT ARB MAINT COSTS,200410,,241600,HORTICULTURAL : Trees & Shrubs,25 Cornill Rd Sycamore Removal,202408
http://statistics.data.gov.uk/id/local-authority/00BU,Trafford,09/12/2020,5100399567,18820,"5,491.00",Hoist and Shower Chair Company Ltd,4655,GB789250193,Capital Schemes,A&M PAY TO CONTRACTO,400400,,191400,FACILITIES MGT : Lifts,Disabled facilities grant,990000
http://statistics.data.gov.uk/id/local-authority/00BU,Trafford,21/12/2020,5100399933,20220,"4,753.00",Hoist and Shower Chair Company Ltd,4655,GB789250193,Capital Schemes,A&M PAY TO CONTRACTO,400400,,191400,FACILITIES MGT : Lifts,Disabled facilities Grant,990000
http://statistics.data.gov.uk/id/local-authority/00BU,Trafford,14/12/2020,5100399600,3040002704,"272,958.11",Galliford Try Building Limited,4662,GB223413506,Capital Schemes,A&M PAY TO CONTRACTO,400400,,391110,CONSTRUCTION: Bld Construction,BTH,990000
http://statistics.data.gov.uk/id/local-authority/00BU,Trafford,14/12/2020,5100399600,3040002704,0.01,Galliford Try Building Limited,4662,GB223413506,FI:GENERAL CONTINGEN,Mat Small Price Diff,220082,,391000,CONSTRUCTION : Architect,,610500
http://statistics.data.gov.uk/id/local-authority/00BU,Trafford,21/12/2020,5100399959,0417,"263,868.72",Novo Property Solutions Ltd,4680,GB175265688,Capital Schemes,COST NEW CONS/EXTS,400411,,391110,CONSTRUCTION: Bld Construction,Residential Construction,990000
http://statistics.data.gov.uk/id/local-authority/00BU,Trafford,02/12/2020,1901387141,1000000000019,0.50,Peel Investments (North) Ltd,10025,GB927441517,CN:NWW Management Fe,GROUND RENTS,200710,,,,*GC credit-side basic rent 25.12.20,351584
http://statistics.data.gov.uk/id/local-authority/00BU,Trafford,07/12/2020,1901346669,1000000000139,5.50,Shenstone Properties Ltd,10081,,AM:GROUND RENTS,GROUND RENTS,200710,,,,*GC credit-side basic rent 25.03.20,622860
http://statistics.data.gov.uk/id/local-authority/00BU,Trafford,07/12/2020,1901346671,1000000000155,5.00,Shenstone Properties Ltd,10081,,AM:GROUND RENTS,GROUND RENTS,200710,,,,*GC credit-side basic rent 25.03.20,622860
http://statistics.data.gov.uk/id/local-authority/00BU,Trafford,07/12/2020,1901346674,1000000000169,4.00,Shenstone Properties Ltd,10081,,AM:GROUND RENTS,GROUND RENTS,200710,,,,*GC credit-side basic rent 25.03.20,622860
http://statistics.data.gov.uk/id/local-authority/00BU,Trafford,02/12/2020,1901387142,1000000001075,"1,841.00",CBRE Ltd,10161,,TPDC Ecology Park,GROUND RENTS,200710,,,,*GC credit-side basic rent 25.12.20,622835
http://statistics.data.gov.uk/id/local-authority/00BU,Trafford,02/12/2020,1901387143,1000000001076,201.75,CBRE Ltd,10161,,AM:ASHBURTON RD WES,GROUND RENTS,200710,,,,*GC credit-side basic rent 25.12.20,622770
http://statistics.data.gov.uk/id/local-authority/00BU,Trafford,07/12/2020,5100399326,9202011,"2,160.00",Redacted,Redacted,,PP:ALTRINCHAM CREMAT,MEDICAL FEES,220432,,121000,CEMETERY: Burial & Cremation,Medical Referee,540020
http://statistics.data.gov.uk/id/local-authority/00BU,Trafford,07/12/2020,1901388252,542207,"1,399.20",UBU,100030,GB687081992,LEARN DIS 18-64 LT,SUPP LIVING CONT,230530,,,,Redacted,157003
http://statistics.data.gov.uk/id/local-authority/00BU,Trafford,07/12/2020,1901388252,542207,"1,717.20",UBU,100030,GB687081992,LEARN DIS 18-64 LT,SUPP LIVING CONT,230530,,,,Redacted,157003
http://statistics.data.gov.uk/id/local-authority/00BU,Trafford,07/12/2020,1901388252,542207,"1,462.80",UBU,100030,GB687081992,LEARN DIS 18-64 LT,SUPP LIVING CONT,230530,,,,Redacted,157003
http://statistics.data.gov.uk/id/local-authority/00BU,Trafford,07/12/2020,1901388252,542207,"1,462.80",UBU,100030,GB687081992,LEARN DIS 18-64 LT,SUPP LIVING CONT,230530,,,,Redacted,157003
http://statistics.data.gov.uk/id/local-authority/00BU,Trafford,07/12/2020,1901388252,542207,"25,378.40",UBU,100030,GB687081992,Redacted,SUPP LIVING CONT,230530,,,,Redacted,251381
http://statistics.data.gov.uk/id/local-authority/00BU,Trafford,07/12/2020,1901388260,542204,"1,088.32",UBU,100030,GB687081992,LEARN DIS 18-64 LT,SUPP LIVING CONT,230530,,,,Redacted,157003
http://statistics.data.gov.uk/id/local-authority/00BU,Trafford,07/12/2020,1901388260,542204,"1,202.88",UBU,100030,GB687081992,LEARN DIS 18-64 LT,SUPP LIVING CONT,230530,,,,Redacted,157003
http://statistics.data.gov.uk/id/local-authority/00BU,Trafford,07/12/2020,1901388260,542204,572.80,UBU,100030,GB687081992,LEARN DIS 65-74 LT,SUPP LIVING CONT,230530,,,,Redacted,157013
http://statistics.data.gov.uk/id/local-authority/00BU,Trafford,07/12/2020,1901388260,542204,"1,145.60",UBU,100030,GB687081992,LEARN DIS 18-64 LT,SUPP LIVING CONT,230530,,,,Redacted,157003
http://statistics.data.gov.uk/id/local-authority/00BU,Trafford,07/12/2020,1901388260,542204,"14,490.80",UBU,100030,GB687081992,Redacted,SUPP LIVING CONT,230530,,,,Redacted,251362
http://statistics.data.gov.uk/id/local-authority/00BU,Trafford,07/12/2020,1901388264,542203,852.02,UBU,100030,GB687081992,LEARN DIS 18-64 LT,SUPP LIVING CONT,230530,,,,Redacted,157003
http://statistics.data.gov.uk/id/local-authority/00BU,Trafford,07/12/2020,1901388264,542203,"1,204.58",UBU,100030,GB687081992,LEARN DIS 18-64 LT,SUPP LIVING CONT,230530,,,,Redacted,157003
http://statistics.data.gov.uk/id/local-authority/00BU,Trafford,07/12/2020,1901388264,542203,"1,498.38",UBU,100030,GB687081992,LEARN DIS 18-64 LT,SUPP LIVING CONT,230530,,,,Redacted,157003
http://statistics.data.gov.uk/id/local-authority/00BU,Trafford,07/12/2020,1901388264,542203,"11,510.52",UBU,100030,GB687081992,Redacted,SUPP LIVING CONT,230530,,,,Redacted,251364
http://statistics.data.gov.uk/id/local-authority/00BU,Trafford,07/12/2020,1901388266,542202,515.52,UBU,100030,GB687081992,LEARN DIS 18-64 LT,SUPP LIVING CONT,230530,,,,Redacted,157003
http://statistics.data.gov.uk/id/local-authority/00BU,Trafford,07/12/2020,1901388266,542202,515.52,UBU,100030,GB687081992,LEARN DIS 75-84 LT,SUPP LIVING CONT,230530,,,,Redacted,157023
http://statistics.data.gov.uk/id/local-authority/00BU,Trafford,07/12/2020,1901388266,542202,"9,376.40",UBU,100030,GB687081992,Redacted,SUPP LIVING CONT,230530,,,,Redacted,251361
http://statistics.data.gov.uk/id/local-authority/00BU,Trafford,02/12/2020,1901387529,4822,360.00,The Counselling & Family Centre,100056,,WEST : S17 & CLIENT,PROFESSIONAL FEES,220456,,311100,MEDICAL : Counselling,Redacted,130670
http://statistics.data.gov.uk/id/local-authority/00BU,Trafford,07/12/2020,1901388183,4609,"1,020.00",The Counselling & Family Centre,100056,,CENTRAL : S17&CLIENT,PROFESSIONAL FEES,220456,,311100,MEDICAL : Counselling,Redacted,130680
http://statistics.data.gov.uk/id/local-authority/00BU,Trafford,07/12/2020,1901388184,4691,420.00,The Counselling & Family Centre,100056,,CENTRAL : S17&CLIENT,PROFESSIONAL FEES,220456,,311100,MEDICAL : Counselling,Redacted,130680
http://statistics.data.gov.uk/id/local-authority/00BU,Trafford,07/12/2020,1901388236,542185,856.72,Creative Support Ltd,100160,,MENT HLT 18-64 LT,SUPP LIVING CONT,230530,,321014,SOCIAL CARE : Domiciliary Care,Redacted,157004
http://statistics.data.gov.uk/id/local-authority/00BU,Trafford,07/12/2020,1901388236,542185,"1,247.34",Creative Support Ltd,100160,,MENT HLT 18-64 LT,SUPP LIVING CONT,230530,,321014,SOCIAL CARE : Domiciliary Care,Redacted,157004
http://statistics.data.gov.uk/id/local-authority/00BU,Trafford,07/12/2020,1901388236,542185,856.72,Creative Support Ltd,100160,,MENT HLT 18-64 LT,SUPP LIVING CONT,230530,,321014,SOCIAL CARE : Domiciliary Care,Redacted,157004
http://statistics.data.gov.uk/id/local-authority/00BU,Trafford,07/12/2020,1901388236,542185,"1,247.34",Creative Support Ltd,100160,,MENT HLT 18-64 LT,SUPP LIVING CONT,230530,,321014,SOCIAL CARE : Domiciliary Care,Redacted,157004
http://statistics.data.gov.uk/id/local-authority/00BU,Trafford,07/12/2020,1901388236,542185,856.72,Creative Support Ltd,100160,,MENT HLT 18-64 LT,SUPP LIVING CONT,230530,,321014,SOCIAL CARE : Domiciliary Care,Redacted,157004
http://statistics.data.gov.uk/id/local-authority/00BU,Trafford,07/12/2020,1901388236,542185,"1,247.34",Creative Support Ltd,100160,,MENT HLT 18-64 LT,SUPP LIVING CONT,230530,,321014,SOCIAL CARE : Domiciliary Care,Redacted,157004
http://statistics.data.gov.uk/id/local-authority/00BU,Trafford,07/12/2020,1901388236,542185,856.72,Creative Support Ltd,100160,,MENT HLT 18-64 LT,SUPP LIVING CONT,230530,,321014,SOCIAL CARE : Domiciliary Care,Redacted,157004
http://statistics.data.gov.uk/id/local-authority/00BU,Trafford,07/12/2020,1901388236,542185,"1,247.34",Creative Support Ltd,100160,,MENT HLT 18-64 LT,SUPP LIVING CONT,230530,,321014,SOCIAL CARE : Domiciliary Care,Redacted,157004
http://statistics.data.gov.uk/id/local-authority/00BU,Trafford,07/12/2020,1901388236,542185,856.72,Creative Support Ltd,100160,,MENT HLT 18-64 LT,SUPP LIVING CONT,230530,,321014,SOCIAL CARE : Domiciliary Care,Redacted,157004
http://statistics.data.gov.uk/id/local-authority/00BU,Trafford,07/12/2020,1901388236,542185,"1,247.34",Creative Support Ltd,100160,,MENT HLT 18-64 LT,SUPP LIVING CONT,230530,,321014,SOCIAL CARE : Domiciliary Care,Redacted,157004
http://statistics.data.gov.uk/id/local-authority/00BU,Trafford,07/12/2020,1901388237,542201,827.32,Creative Support Ltd,100160,,MENT HLT 18-64 LT,SUPP LIVING CONT,230530,,321014,SOCIAL CARE : Domiciliary Care,Redacted,157004
http://statistics.data.gov.uk/id/local-authority/00BU,Trafford,07/12/2020,1901388237,542201,509.12,Creative Support Ltd,100160,,MENT HLT 18-64 LT,SUPP LIVING CONT,230530,,321014,SOCIAL CARE : Domiciliary Care,Redacted,157004
http://statistics.data.gov.uk/id/local-authority/00BU,Trafford,07/12/2020,1901388237,542201,254.56,Creative Support Ltd,100160,,MENT HLT 18-64 LT,SUPP LIVING CONT,230530,,321014,SOCIAL CARE : Domiciliary Care,Redacted,157004
http://statistics.data.gov.uk/id/local-authority/00BU,Trafford,07/12/2020,1901388237,542201,763.68,Creative Support Ltd,100160,,SOCIAL SUPPORT 18-64,SUPP LIVING CONT,230530,,321014,SOCIAL CARE : Domiciliary Care,Redacted,157005
http://statistics.data.gov.uk/id/local-authority/00BU,Trafford,07/12/2020,1901388238,542188,"7,885.92",Creative Support Ltd,100160,,JOULES HOUSE PROJECT,SUPP LIVING CONT,230530,,321014,SOCIAL CARE : Domiciliary Care,Redacted,253075
http://statistics.data.gov.uk/id/local-authority/00BU,Trafford,07/12/2020,1901388239,542189,995.20,Creative Support Ltd,100160,,LEARN DIS 18-64 LT,SUPP LIVING CONT,230530,,321014,SOCIAL CARE : Domiciliary Care,Redacted,157003
http://statistics.data.gov.uk/id/local-authority/00BU,Trafford,07/12/2020,1901388239,542189,"1,990.40",Creative Support Ltd,100160,,LEARN DIS 18-64 LT,SUPP LIVING CONT,230530,,321014,SOCIAL CARE : Domiciliary Care,Redacted,157003
http://statistics.data.gov.uk/id/local-authority/00BU,Trafford,07/12/2020,1901388239,542189,995.20,Creative Support Ltd,100160,,LEARN DIS 18-64 LT,SUPP LIVING CONT,230530,,321014,SOCIAL CARE : Domiciliary Care,Redacted,157003
http://statistics.data.gov.uk/id/local-authority/00BU,Trafford,07/12/2020,1901388239,542189,"5,971.20",Creative Support Ltd,100160,,LEARN DIS 18-64 LT,SUPP LIVING CONT,230530,,321014,SOCIAL CARE : Domiciliary Care,Redacted,157003
http://statistics.data.gov.uk/id/local-authority/00BU,Trafford,07/12/2020,1901388239,542189,"1,368.40",Creative Support Ltd,100160,,LEARN DIS 65-74 LT,SUPP LIVING CONT,230530,,321014,SOCIAL CARE : Domiciliary Care,Redacted,157013
http://statistics.data.gov.uk/id/local-authority/00BU,Trafford,07/12/2020,1901388239,542189,"19,971.60",Creative Support Ltd,100160,,SUPPORTED LVG BLOCKS,SUPP LIVING CONT,230530,,321014,SOCIAL CARE : Domiciliary Care,Redacted,251342
http://statistics.data.gov.uk/id/local-authority/00BU,Trafford,07/12/2020,1901388241,542190,"2,612.40",Creative Support Ltd,100160,,LEARN DIS 18-64 LT,SUPP LIVING CONT,230530,,321014,SOCIAL CARE : Domiciliary Care,Redacted,157003
http://statistics.data.gov.uk/id/local-authority/00BU,Trafford,07/12/2020,1901388241,542190,"1,866.00",Creative Support Ltd,100160,,LEARN DIS 18-64 LT,SUPP LIVING CONT,230530,,321014,SOCIAL CARE : Domiciliary Care,Redacted,157003
http://statistics.data.gov.uk/id/local-authority/00BU,Trafford,07/12/2020,1901388241,542190,"1,555.00",Creative Support Ltd,100160,,LEARN DIS 18-64 LT,SUPP LIVING CONT,230530,,321014,SOCIAL CARE : Domiciliary Care,Redacted,157003
http://statistics.data.gov.uk/id/local-authority/00BU,Trafford,07/12/2020,1901388241,542190,"1,679.40",Creative Support Ltd,100160,,LEARN DIS 18-64 LT,SUPP LIVING CONT,230530,,321014,SOCIAL CARE : Domiciliary Care,Redacted,157003
http://statistics.data.gov.uk/id/local-authority/00BU,Trafford,07/12/2020,1901388241,542190,"13,838.04",Creative Support Ltd,100160,,SUPPORTED LVG BLOCKS,SUPP LIVING CONT,230530,,321014,SOCIAL CARE : Domiciliary Care,Redacted,251342
http://statistics.data.gov.uk/id/local-authority/00BU,Trafford,07/12/2020,1901388243,542191,812.00,Creative Support Ltd,100160,,LEARN DIS 18-64 LT,SUPP LIVING CONT,230530,,321014,SOCIAL CARE : Domiciliary Care,Redacted,157003
http://statistics.data.gov.uk/id/local-authority/00BU,Trafford,07/12/2020,1901388243,542191,986.00,Creative Support Ltd,100160,,LEARN DIS 18-64 LT,SUPP LIVING CONT,230530,,321014,SOCIAL CARE : Domiciliary Care,Redacted,157003
http://statistics.data.gov.uk/id/local-authority/00BU,Trafford,07/12/2020,1901388243,542191,"1,914.00",Creative Support Ltd,100160,,LEARN DIS 18-64 LT,SUPP LIVING CONT,230530,,321014,SOCIAL CARE : Domiciliary Care,Redacted,157003
http://statistics.data.gov.uk/id/local-authority/00BU,Trafford,07/12/2020,1901388243,542191,464.00,Creative Support Ltd,100160,,LEARN DIS 18-64 LT,SUPP LIVING CONT,230530,,321014,SOCIAL CARE : Domiciliary Care,Redacted,157003
http://statistics.data.gov.uk/id/local-authority/00BU,Trafford,07/12/2020,1901388243,542191,928.00,Creative Support Ltd,100160,,LEARN DIS 18-64 LT,SUPP LIVING CONT,230530,,321014,SOCIAL CARE : Domiciliary Care,Redacted,157003
http://statistics.data.gov.uk/id/local-authority/00BU,Trafford,07/12/2020,1901388243,542191,"16,675.68",Creative Support Ltd,100160,,Creative Support Blo,SUPP LIVING CONT,230530,,321014,SOCIAL CARE : Domiciliary Care,Redacted,251390
http://statistics.data.gov.uk/id/local-authority/00BU,Trafford,07/12/2020,1901388244,542192,761.95,Creative Support Ltd,100160,,LEARN DIS 65-74 LT,SUPP LIVING CONT,230530,,321014,SOCIAL CARE : Domiciliary Care,Redacted,157013
http://statistics.data.gov.uk/id/local-authority/00BU,Trafford,07/12/2020,1901388244,542192,761.95,Creative Support Ltd,100160,,LEARN DIS 18-64 LT,SUPP LIVING CONT,230530,,321014,SOCIAL CARE : Domiciliary Care,Redacted,157003
http://statistics.data.gov.uk/id/local-authority/00BU,Trafford,07/12/2020,1901388244,542192,761.95,Creative Support Ltd,100160,,LEARN DIS 65-74 LT,SUPP LIVING CONT,230530,,321014,SOCIAL CARE : Domiciliary Care,Redacted,157013
http://statistics.data.gov.uk/id/local-authority/00BU,Trafford,07/12/2020,1901388244,542192,"9,523.04",Creative Support Ltd,100160,,SUPPORTED LVG BLOCKS,SUPP LIVING CONT,230530,,321014,SOCIAL CARE : Domiciliary Care,Redacted,251342
http://statistics.data.gov.uk/id/local-authority/00BU,Trafford,07/12/2020,1901388250,542193,638.00,Creative Support Ltd,100160,,LEARN DIS 18-64 LT,SUPP LIVING CONT,230530,,321014,SOCIAL CARE : Domiciliary Care,Redacted,157003
http://statistics.data.gov.uk/id/local-authority/00BU,Trafford,07/12/2020,1901388250,542193,"1,044.00",Creative Support Ltd,100160,,LEARN DIS 18-64 LT,SUPP LIVING CONT,230530,,321014,SOCIAL CARE : Domiciliary Care,Redacted,157003
http://statistics.data.gov.uk/id/local-authority/00BU,Trafford,07/12/2020,1901388250,542193,"13,768.20",Creative Support Ltd,100160,,UBU-25 SEAMONS ROAD,SUPP LIVING CONT,230530,,321014,SOCIAL CARE : Domiciliary Care,Redacted,251360
http://statistics.data.gov.uk/id/local-authority/00BU,Trafford,07/12/2020,1901388254,542195,"1,461.70",Creative Support Ltd,100160,,LEARN DIS 18-64 LT,SUPP LIVING CONT,230530,,321014,SOCIAL CARE : Domiciliary Care,Redacted,157003
http://statistics.data.gov.uk/id/local-authority/00BU,Trafford,07/12/2020,1901388254,542195,"1,306.20",Creative Support Ltd,100160,,LEARN DIS 65-74 LT,SUPP LIVING CONT,230530,,321014,SOCIAL CARE : Domiciliary Care,Redacted,157013
http://statistics.data.gov.uk/id/local-authority/00BU,Trafford,07/12/2020,1901388254,542195,"12,346.40",Creative Support Ltd,100160,,SUPPORTED LVG BLOCKS,SUPP LIVING CONT,230530,,321014,SOCIAL CARE : Domiciliary Care,Redacted,251342
http://statistics.data.gov.uk/id/local-authority/00BU,Trafford,07/12/2020,1901388255,542196,"1,119.60",Creative Support Ltd,100160,,LEARN DIS 18-64 LT,SUPP LIVING CONT,230530,,321014,SOCIAL CARE : Domiciliary Care,Redacted,157003
http://statistics.data.gov.uk/id/local-authority/00BU,Trafford,07/12/2020,1901388255,542196,933.00,Creative Support Ltd,100160,,LEARN DIS 75-84 LT,SUPP LIVING CONT,230530,,321014,SOCIAL CARE : Domiciliary Care,Redacted,157023
http://statistics.data.gov.uk/id/local-authority/00BU,Trafford,07/12/2020,1901388255,542196,933.00,Creative Support Ltd,100160,,LEARN DIS 18-64 LT,SUPP LIVING CONT,230530,,321014,SOCIAL CARE : Domiciliary Care,Redacted,157003
http://statistics.data.gov.uk/id/local-authority/00BU,Trafford,07/12/2020,1901388255,542196,"18,005.00",Creative Support Ltd,100160,,SUPPORTED LVG BLOCKS,SUPP LIVING CONT,230530,,321014,SOCIAL CARE : Domiciliary Care,Redacted,251342
http://statistics.data.gov.uk/id/local-authority/00BU,Trafford,07/12/2020,1901388259,542197,"2,239.20",Creative Support Ltd,100160,,LEARN DIS 18-64 LT,SUPP LIVING CONT,230530,,321014,SOCIAL CARE : Domiciliary Care,Redacted,157003
http://statistics.data.gov.uk/id/local-authority/00BU,Trafford,07/12/2020,1901388259,542197,"2,363.60",Creative Support Ltd,100160,,LEARN DIS 18-64 LT,SUPP LIVING CONT,230530,,321014,SOCIAL CARE : Domiciliary Care,Redacted,157003
http://statistics.data.gov.uk/id/local-authority/00BU,Trafford,07/12/2020,1901388259,542197,"1,866.00",Creative Support Ltd,100160,,LEARN DIS 18-64 LT,SUPP LIVING CONT,230530,,321014,SOCIAL CARE : Domiciliary Care,Redacted,157003
http://statistics.data.gov.uk/id/local-authority/00BU,Trafford,07/12/2020,1901388259,542197,"16,543.56",Creative Support Ltd,100160,,SUPPORTED LVG BLOCKS,SUPP LIVING CONT,230530,,321014,SOCIAL CARE : Domiciliary Care,Redacted,251342
http://statistics.data.gov.uk/id/local-authority/00BU,Trafford,07/12/2020,1901388268,542200,"2,589.60",Creative Support Ltd,100160,,SOCIAL SUPPORT 18-64,SUPP LIVING CONT,230530,,321014,SOCIAL CARE : Domiciliary Care,Redacted,157005
http://statistics.data.gov.uk/id/local-authority/00BU,Trafford,07/12/2020,1901388270,542205,"1,854.72",Creative Support Ltd,100160,,JOULES HOUSE PROJECT,SUPP LIVING CONT,230530,,321014,SOCIAL CARE : Domiciliary Care,Redacted,253075
http://statistics.data.gov.uk/id/local-authority/00BU,Trafford,07/12/2020,1901388323,542208,"1,233.88",Creative Support Ltd,100160,,CRISIS BED,SUPP LIVING CONT,230530,,321014,SOCIAL CARE : Domiciliary Care,Redacted,253246
http://statistics.data.gov.uk/id/local-authority/00BU,Trafford,07/12/2020,1901388323,542208,"4,264.80",Creative Support Ltd,100160,,JOULES HOUSE PROJECT,SUPP LIVING CONT,230530,,321014,SOCIAL CARE : Domiciliary Care,Redacted,253075
http://statistics.data.gov.uk/id/local-authority/00BU,Trafford,07/12/2020,1901388377,542209,763.68,Creative Support Ltd,100160,,MENT HLT 18-64 LT,SUPP LIVING CONT,230530,,321014,SOCIAL CARE : Domiciliary Care,Redacted,157004
http://statistics.data.gov.uk/id/local-authority/00BU,Trafford,07/12/2020,1901388377,542209,763.68,Creative Support Ltd,100160,,MENT HLT 18-64 LT,SUPP LIVING CONT,230530,,321014,SOCIAL CARE : Domiciliary Care,Redacted,157004
http://statistics.data.gov.uk/id/local-authority/00BU,Trafford,07/12/2020,1901388377,542209,827.32,Creative Support Ltd,100160,,MENT HLT 18-64 LT,SUPP LIVING CONT,230530,,321014,SOCIAL CARE : Domiciliary Care,Redacted,157004
http://statistics.data.gov.uk/id/local-authority/00BU,Trafford,07/12/2020,1901388377,542209,350.02,Creative Support Ltd,100160,,MENT HLT 18-64 LT,SUPP LIVING CONT,230530,,321014,SOCIAL CARE : Domiciliary Care,Redacted,157004
http://statistics.data.gov.uk/id/local-authority/00BU,Trafford,07/12/2020,1901388393,542206,"20,626.44",Creative Support Ltd,100160,,JOULES HOUSE PROJECT,SUPP LIVING CONT,230530,,321014,SOCIAL CARE : Domiciliary Care,Redacted,253075
http://statistics.data.gov.uk/id/local-authority/00BU,Trafford,07/12/2020,1901388432,542198,"5,880.00",Creative Support Ltd,100160,,LEARN DIS 18-64 LT,SUPP LIVING CONT,230530,,321014,SOCIAL CARE : Domiciliary Care,Redacted,157003
http://statistics.data.gov.uk/id/local-authority/00BU,Trafford,07/12/2020,1901388432,542198,"7,080.00",Creative Support Ltd,100160,,LEARN DIS 18-64 LT,SUPP LIVING CONT,230530,,321014,SOCIAL CARE : Domiciliary Care,Redacted,157003
http://statistics.data.gov.uk/id/local-authority/00BU,Trafford,07/12/2020,1901388432,542198,"6,797.12",Creative Support Ltd,100160,,Creative Support Blo,SUPP LIVING CONT,230530,,321014,SOCIAL CARE : Domiciliary Care,Redacted,251390
http://statistics.data.gov.uk/id/local-authority/00BU,Trafford,07/12/2020,1901388454,542194,"2,442.72",Creative Support Ltd,100160,,LEARN DIS 65-74 LT,SUPP LIVING CONT,230530,,321014,SOCIAL CARE : Domiciliary Care,Redacted,157013
http://statistics.data.gov.uk/id/local-authority/00BU,Trafford,07/12/2020,1901388454,542194,"5,974.48",Creative Support Ltd,100160,,LEARN DIS 65-74 LT,SUPP LIVING CONT,230530,,321014,SOCIAL CARE : Domiciliary Care,Redacted,157013
http://statistics.data.gov.uk/id/local-authority/00BU,Trafford,07/12/2020,1901388454,542194,174.48,Creative Support Ltd,100160,,LEARN DIS 18-64 LT,SUPP LIVING CONT,230530,,321014,SOCIAL CARE : Domiciliary Care,Redacted,157003
http://statistics.data.gov.uk/id/local-authority/00BU,Trafford,07/12/2020,1901388454,542194,"5,974.48",Creative Support Ltd,100160,,LEARN DIS 18-64 LT,SUPP LIVING CONT,230530,,321014,SOCIAL CARE : Domiciliary Care,Redacted,157003
http://statistics.data.gov.uk/id/local-authority/00BU,Trafford,07/12/2020,1901388463,542184,"1,181.68",Creative Support Ltd,100160,,LEARN DIS 18-64 LT,SUPP LIVING CONT,230530,,321014,SOCIAL CARE : Domiciliary Care,Redacted,157003
http://statistics.data.gov.uk/id/local-authority/00BU,Trafford,07/12/2020,1901388463,542184,"1,810.84",Creative Support Ltd,100160,,LEARN DIS 18-64 LT,SUPP LIVING CONT,230530,,321014,SOCIAL CARE : Domiciliary Care,Redacted,157003
http://statistics.data.gov.uk/id/local-authority/00BU,Trafford,07/12/2020,1901388463,542184,"2,233.32",Creative Support Ltd,100160,,LEARN DIS 18-64 LT,SUPP LIVING CONT,230530,,321014,SOCIAL CARE : Domiciliary Care,Redacted,157003
http://statistics.data.gov.uk/id/local-authority/00BU,Trafford,07/12/2020,1901388463,542184,"1,181.68",Creative Support Ltd,100160,,LEARN DIS 18-64 LT,SUPP LIVING CONT,230530,,321014,SOCIAL CARE : Domiciliary Care,Redacted,157003
http://statistics.data.gov.uk/id/local-authority/00BU,Trafford,07/12/2020,1901388463,542184,"1,810.84",Creative Support Ltd,100160,,LEARN DIS 18-64 LT,SUPP LIVING CONT,230530,,321014,SOCIAL CARE : Domiciliary Care,Redacted,157003
http://statistics.data.gov.uk/id/local-authority/00BU,Trafford,07/12/2020,1901388463,542184,"2,535.12",Creative Support Ltd,100160,,LEARN DIS 18-64 LT,SUPP LIVING CONT,230530,,321014,SOCIAL CARE : Domiciliary Care,Redacted,157003
http://statistics.data.gov.uk/id/local-authority/00BU,Trafford,07/12/2020,1901388570,471775,"9,780.96",Creative Support Ltd,100160,,LEARN DIS 18-64 LT,SUPP LIVING CONT,230530,,321014,SOCIAL CARE : Domiciliary Care,Redacted,157003
http://statistics.data.gov.uk/id/local-authority/00BU,Trafford,07/12/2020,1901388570,471775,417.48,Creative Support Ltd,100160,,Recharge Enhanced Ca,SUPP LIVING CONT,230530,,321014,SOCIAL CARE : Domiciliary Care,Redacted,157040
http://statistics.data.gov.uk/id/local-authority/00BU,Trafford,07/12/2020,1901388571,476709,"9,780.96",Creative Support Ltd,100160,,LEARN DIS 18-64 LT,SUPP LIVING CONT,230530,,321014,SOCIAL CARE : Domiciliary Care,Redacted,157003
http://statistics.data.gov.uk/id/local-authority/00BU,Trafford,07/12/2020,1901388571,476709,417.48,Creative Support Ltd,100160,,Recharge Enhanced Ca,SUPP LIVING CONT,230530,,321014,SOCIAL CARE : Domiciliary Care,Redacted,157040
http://statistics.data.gov.uk/id/local-authority/00BU,Trafford,07/12/2020,1901388572,001,"10,198.44",Creative Support Ltd,100160,,LEARN DIS 18-64 LT,SUPP LIVING CONT,230530,,321014,SOCIAL CARE : Domiciliary Care,Redacted,157003
http://statistics.data.gov.uk/id/local-authority/00BU,Trafford,09/12/2020,1901388869,479315,"21,041.92",Creative Support Ltd,100160,,CreativeSupp Respite,EXT RES CARE FEES,230842,,321014,SOCIAL CARE : Domiciliary Care,Redacted,251216
http://statistics.data.gov.uk/id/local-authority/00BU,Trafford,14/12/2020,1901389504,480019,383.76,Creative Support Ltd,100160,,MENT HLT 18-64 LT,EXT DOM CARE SPOT CO,230845,,321014,SOCIAL CARE : Domiciliary Care,Redacted,157004
http://statistics.data.gov.uk/id/local-authority/00BU,Trafford,14/12/2020,1901389504,480019,351.78,Creative Support Ltd,100160,,MENT HLT 18-64 LT,EXT DOM CARE SPOT CO,230845,,321014,SOCIAL CARE : Domiciliary Care,Redacted,157004
http://statistics.data.gov.uk/id/local-authority/00BU,Trafford,14/12/2020,1901389504,480019,639.60,Creative Support Ltd,100160,,MENT HLT 18-64 LT,EXT DOM CARE SPOT CO,230845,,321014,SOCIAL CARE : Domiciliary Care,Redacted,157004
http://statistics.data.gov.uk/id/local-authority/00BU,Trafford,14/12/2020,1901389504,480019,255.84,Creative Support Ltd,100160,,MENT HLT 18-64 LT,EXT DOM CARE SPOT CO,230845,,321014,SOCIAL CARE : Domiciliary Care,Redacted,157004
http://statistics.data.gov.uk/id/local-authority/00BU,Trafford,14/12/2020,1901389504,480019,255.84,Creative Support Ltd,100160,,MENT HLT 18-64 LT,EXT DOM CARE SPOT CO,230845,,321014,SOCIAL CARE : Domiciliary Care,Redacted,157004
http://statistics.data.gov.uk/id/local-authority/00BU,Trafford,14/12/2020,1901389504,480019,255.84,Creative Support Ltd,100160,,MENT HLT 18-64 LT,EXT DOM CARE SPOT CO,230845,,321014,SOCIAL CARE : Domiciliary Care,Redacted,157004
http://statistics.data.gov.uk/id/local-authority/00BU,Trafford,14/12/2020,1901389504,480019,447.72,Creative Support Ltd,100160,,MENT HLT 18-64 LT,EXT DOM CARE SPOT CO,230845,,321014,SOCIAL CARE : Domiciliary Care,Redacted,157004
http://statistics.data.gov.uk/id/local-authority/00BU,Trafford,14/12/2020,1901389504,480019,255.84,Creative Support Ltd,100160,,MENT HLT 18-64 LT,EXT DOM CARE SPOT CO,230845,,321014,SOCIAL CARE : Domiciliary Care,Redacted,157004
http://statistics.data.gov.uk/id/local-authority/00BU,Trafford,14/12/2020,1901389504,480019,255.84,Creative Support Ltd,100160,,MENT HLT 18-64 LT,EXT DOM CARE SPOT CO,230845,,321014,SOCIAL CARE : Domiciliary Care,Redacted,157004
http://statistics.data.gov.uk/id/local-authority/00BU,Trafford,14/12/2020,1901389504,480019,959.40,Creative Support Ltd,100160,,LEARN DIS 18-64 LT,EXT DOM CARE SPOT CO,230845,,321014,SOCIAL CARE : Domiciliary Care,Redacted,157003
http://statistics.data.gov.uk/id/local-authority/00BU,Trafford,14/12/2020,1901389504,480019,959.40,Creative Support Ltd,100160,,LEARN DIS 18-64 LT,EXT DOM CARE SPOT CO,230845,,321014,SOCIAL CARE : Domiciliary Care,Redacted,157003
http://statistics.data.gov.uk/id/local-authority/00BU,Trafford,14/12/2020,1901389504,480019,959.40,Creative Support Ltd,100160,,LEARN DIS 18-64 LT,EXT DOM CARE SPOT CO,230845,,321014,SOCIAL CARE : Domiciliary Care,Redacted,157003
http://statistics.data.gov.uk/id/local-authority/00BU,Trafford,14/12/2020,1901389504,480019,959.40,Creative Support Ltd,100160,,LEARN DIS 18-64 LT,EXT DOM CARE SPOT CO,230845,,321014,SOCIAL CARE : Domiciliary Care,Redacted,157003
http://statistics.data.gov.uk/id/local-authority/00BU,Trafford,14/12/2020,1901389504,480019,-959.40,Creative Support Ltd,100160,,LEARN DIS 18-64 LT,EXT DOM CARE SPOT CO,230845,,321014,SOCIAL CARE : Domiciliary Care,Redacted,157003
http://statistics.data.gov.uk/id/local-authority/00BU,Trafford,14/12/2020,1901389504,480019,-959.40,Creative Support Ltd,100160,,LEARN DIS 18-64 LT,EXT DOM CARE SPOT CO,230845,,321014,SOCIAL CARE : Domiciliary Care,Redacted,157003
http://statistics.data.gov.uk/id/local-authority/00BU,Trafford,14/12/2020,1901389504,480019,-959.40,Creative Support Ltd,100160,,LEARN DIS 18-64 LT,EXT DOM CARE SPOT CO,230845,,321014,SOCIAL CARE : Domiciliary Care,Redacted,157003
http://statistics.data.gov.uk/id/local-authority/00BU,Trafford,14/12/2020,1901389504,480019,-959.40,Creative Support Ltd,100160,,LEARN DIS 18-64 LT,EXT DOM CARE SPOT CO,230845,,321014,SOCIAL CARE : Domiciliary Care,Redacted,157003
http://statistics.data.gov.uk/id/local-authority/00BU,Trafford,14/12/2020,1901389505,480020,415.74,Creative Support Ltd,100160,,MENT HLT 18-64 LT,EXT DOM CARE SPOT CO,230845,,321014,SOCIAL CARE : Domiciliary Care,Redacted,157004
http://statistics.data.gov.uk/id/local-authority/00BU,Trafford,14/12/2020,1901389506,480028,191.88,Creative Support Ltd,100160,,MENT HLT 18-64 LT,EXT DOM CARE SPOT CO,230845,,321014,SOCIAL CARE : Domiciliary Care,Redacted,157004
http://statistics.data.gov.uk/id/local-authority/00BU,Trafford,14/12/2020,1901389507,480033,383.76,Creative Support Ltd,100160,,MENT HLT 18-64 LT,EXT DOM CARE SPOT CO,230845,,321014,SOCIAL CARE : Domiciliary Care,Redacted,157004
http://statistics.data.gov.uk/id/local-authority/00BU,Trafford,14/12/2020,1901389508,480110,255.84,Creative Support Ltd,100160,,MENT HLT 18-64 LT,EXT DOM CARE SPOT CO,230845,,321014,SOCIAL CARE : Domiciliary Care,Redacted,157004
http://statistics.data.gov.uk/id/local-authority/00BU,Trafford,14/12/2020,1901389509,480111,191.88,Creative Support Ltd,100160,,MENT HLT 18-64 LT,EXT DOM CARE SPOT CO,230845,,321014,SOCIAL CARE : Domiciliary Care,Redacted,157004
http://statistics.data.gov.uk/id/local-authority/00BU,Trafford,14/12/2020,1901389510,480112,191.88,Creative Support Ltd,100160,,MENT HLT 18-64 LT,EXT DOM CARE SPOT CO,230845,,321014,SOCIAL CARE : Domiciliary Care,Redacted,157004
http://statistics.data.gov.uk/id/local-authority/00BU,Trafford,14/12/2020,1901389511,480113,671.58,Creative Support Ltd,100160,,MENT HLT 65-74 LT,EXT DOM CARE SPOT CO,230845,,321014,SOCIAL CARE : Domiciliary Care,Redacted,157014
http://statistics.data.gov.uk/id/local-authority/00BU,Trafford,14/12/2020,1901389512,480114,735.54,Creative Support Ltd,100160,,MENT HLT 18-64 LT,EXT DOM CARE SPOT CO,230845,,321014,SOCIAL CARE : Domiciliary Care,Redacted,157004
http://statistics.data.gov.uk/id/local-authority/00BU,Trafford,14/12/2020,1901389513,480115,"1,119.30",Creative Support Ltd,100160,,MENT HLT 18-64 LT,EXT DOM CARE SPOT CO,230845,,321014,SOCIAL CARE : Domiciliary Care,Redacted,157004
http://statistics.data.gov.uk/id/local-authority/00BU,Trafford,14/12/2020,1901389514,480116,255.84,Creative Support Ltd,100160,,PHYS SUPP 18-64 LT,EXT DOM CARE SPOT CO,230845,,321014,SOCIAL CARE : Domiciliary Care,Redacted,157000
http://statistics.data.gov.uk/id/local-authority/00BU,Trafford,14/12/2020,1901389515,480135,255.84,Creative Support Ltd,100160,,MENT HLT 18-64 LT,EXT DOM CARE SPOT CO,230845,,321014,SOCIAL CARE : Domiciliary Care,Redacted,157004
http://statistics.data.gov.uk/id/local-authority/00BU,Trafford,14/12/2020,1901389516,480136,159.90,Creative Support Ltd,100160,,MENT HLT 18-64 LT,EXT DOM CARE SPOT CO,230845,,321014,SOCIAL CARE : Domiciliary Care,Redacted,157004
http://statistics.data.gov.uk/id/local-authority/00BU,Trafford,14/12/2020,1901389517,480137,223.86,Creative Support Ltd,100160,,MENT HLT 18-64 LT,EXT DOM CARE SPOT CO,230845,,321014,SOCIAL CARE : Domiciliary Care,Redacted,157004
http://statistics.data.gov.uk/id/local-authority/00BU,Trafford,14/12/2020,1901389518,480138,255.84,Creative Support Ltd,100160,,MENT HLT 18-64 LT,EXT DOM CARE SPOT CO,230845,,321014,SOCIAL CARE : Domiciliary Care,Redacted,157004
http://statistics.data.gov.uk/id/local-authority/00BU,Trafford,14/12/2020,1901389519,480139,479.70,Creative Support Ltd,100160,,MENT HLT 18-64 LT,EXT DOM CARE SPOT CO,230845,,321014,SOCIAL CARE : Domiciliary Care,Redacted,157004
http://statistics.data.gov.uk/id/local-authority/00BU,Trafford,14/12/2020,1901389520,480140,63.96,Creative Support Ltd,100160,,MENT HLT 18-64 LT,EXT DOM CARE SPOT CO,230845,,321014,SOCIAL CARE : Domiciliary Care,Redacted,157004
http://statistics.data.gov.uk/id/local-authority/00BU,Trafford,14/12/2020,1901389521,480141,127.92,Creative Support Ltd,100160,,PHYS SUPP 18-64 LT,EXT DOM CARE SPOT CO,230845,,321014,SOCIAL CARE : Domiciliary Care,Redacted,157000
http://statistics.data.gov.uk/id/local-authority/00BU,Trafford,14/12/2020,1901389522,480142,159.90,Creative Support Ltd,100160,,MENT HLT 18-64 LT,EXT DOM CARE SPOT CO,230845,,321014,SOCIAL CARE : Domiciliary Care,Redacted,157004
http://statistics.data.gov.uk/id/local-authority/00BU,Trafford,14/12/2020,1901389523,480143,63.96,Creative Support Ltd,100160,,PHYS SUPP 18-64 LT,EXT DOM CARE SPOT CO,230845,,321014,SOCIAL CARE : Domiciliary Care,Redacted,157000
http://statistics.data.gov.uk/id/local-authority/00BU,Trafford,14/12/2020,1901389524,480144,127.92,Creative Support Ltd,100160,,MENT HLT 18-64 LT,EXT DOM CARE SPOT CO,230845,,321014,SOCIAL CARE : Domiciliary Care,Redacted,157004
http://statistics.data.gov.uk/id/local-authority/00BU,Trafford,14/12/2020,1901389525,480145,127.92,Creative Support Ltd,100160,,MENT HLT 18-64 LT,EXT DOM CARE SPOT CO,230845,,321014,SOCIAL CARE : Domiciliary Care,Redacted,157004
http://statistics.data.gov.uk/id/local-authority/00BU,Trafford,14/12/2020,1901389526,480146,255.84,Creative Support Ltd,100160,,MENT HLT 18-64 LT,EXT DOM CARE SPOT CO,230845,,321014,SOCIAL CARE : Domiciliary Care,Redacted,157004
http://statistics.data.gov.uk/id/local-authority/00BU,Trafford,14/12/2020,1901389527,480147,223.86,Creative Support Ltd,100160,,MENT HLT 65-74 LT,EXT DOM CARE SPOT CO,230845,,321014,SOCIAL CARE : Domiciliary Care,Redacted,157014
http://statistics.data.gov.uk/id/local-authority/00BU,Trafford,14/12/2020,1901389528,480149,"1,119.30",Creative Support Ltd,100160,,MENT HLT 18-64 LT,EXT DOM CARE SPOT CO,230845,,321014,SOCIAL CARE : Domiciliary Care,Redacted,157004
http://statistics.data.gov.uk/id/local-authority/00BU,Trafford,22/12/2020,1901391039,20,"2,046.52",Creative Support Ltd,100160,,Council Covid 19 mon,EXT RES CARE FEES,230842,,321014,SOCIAL CARE : Domiciliary Care,ICF 20%,157041
http://statistics.data.gov.uk/id/local-authority/00BU,Trafford,21/12/2020,1901390269,18521,250.00,Trafford Domestic Abuse Svc (TDAS),100166,,CENTRAL : S17&CLIENT,SECT 17 PAY ITEM 6,220760,,321010,SOCIAL CARE : Counselling,Redacted,130680
http://statistics.data.gov.uk/id/local-authority/00BU,Trafford,21/12/2020,5100399881,48,"14,677.93",Mosscare St Vincents Housing Group,100167,GB279776624,Leaving Care Placeme,BOARDED OUT SEC23,230849,,251000,HOUSING MANAGEMENT: Outsourced,Redacted,130102
http://statistics.data.gov.uk/id/local-authority/00BU,Trafford,09/12/2020,5100399544,217518,122.00,Child Poverty Action Group,100213,GB690808117,BENEFIT ADVICE TEAM,SUBSCRIPTIONS,220770,,202100,FINANCIAL : Subscriptions,Social Security Legislation 20-21 Vol I.,254010
http://statistics.data.gov.uk/id/local-authority/00BU,Trafford,09/12/2020,5100399544,217518,122.00,Child Poverty Action Group,100213,GB690808117,BENEFIT ADVICE TEAM,SUBSCRIPTIONS,220770,,202100,FINANCIAL : Subscriptions,Social Security Legislation 20-21 Vol II,254010
http://statistics.data.gov.uk/id/local-authority/00BU,Trafford,09/12/2020,5100399544,217518,122.00,Child Poverty Action Group,100213,GB690808117,BENEFIT ADVICE TEAM,SUBSCRIPTIONS,220770,,202100,FINANCIAL : Subscriptions,Social Security Legisl 20-21 Vol III,254010
http://statistics.data.gov.uk/id/local-authority/00BU,Trafford,09/12/2020,5100399544,217518,122.00,Child Poverty Action Group,100213,GB690808117,BENEFIT ADVICE TEAM,SUBSCRIPTIONS,220770,,202100,FINANCIAL : Subscriptions,Social Security Legisl 20-21 Vol IV,254010
http://statistics.data.gov.uk/id/local-authority/00BU,Trafford,09/12/2020,5100399544,217518,11.49,Child Poverty Action Group,100213,GB690808117,BENEFIT ADVICE TEAM,SUBSCRIPTIONS,220770,,202100,FINANCIAL : Subscriptions,Postage and packaging,254010
http://statistics.data.gov.uk/id/local-authority/00BU,Trafford,09/12/2020,5100399544,217518,122.00,Child Poverty Action Group,100213,GB690808117,BENEFIT ADVICE TEAM,SUBSCRIPTIONS,220770,,202100,FINANCIAL : Subscriptions,Social Security Legislation 20-21 Vol V,254010
http://statistics.data.gov.uk/id/local-authority/00BU,Trafford,09/12/2020,1901389182,9062004913,3.08,Royal Mail Group Ltd,100228,GB243170002,BENEFIT ADVICE TEAM,POSTAGES,220515,,301200,MAIL SERVICES : Postage,CONTRACT,254010
http://statistics.data.gov.uk/id/local-authority/00BU,Trafford,09/12/2020,1901389182,9062004913,2.82,Royal Mail Group Ltd,100228,GB243170002,HS:ADAPTATIONS,POSTAGES,220515,,301200,MAIL SERVICES : Postage,CONTRACT,302300
http://statistics.data.gov.uk/id/local-authority/00BU,Trafford,09/12/2020,1901389182,9062004913,1.23,Royal Mail Group Ltd,100228,GB243170002,OTP: Recycling Inits,POSTAGES,220515,,301200,MAIL SERVICES : Postage,CONTRACT,233004
http://statistics.data.gov.uk/id/local-authority/00BU,Trafford,09/12/2020,1901389182,9062004913,0.62,Royal Mail Group Ltd,100228,GB243170002,CYPS Corp Director,POSTAGES,220515,,301200,MAIL SERVICES : Postage,CONTRACT,140305
http://statistics.data.gov.uk/id/local-authority/00BU,Trafford,09/12/2020,1901389182,9062004913,0.62,Royal Mail Group Ltd,100228,GB243170002,HOUSING STRATEGY,POSTAGES,220515,,301200,MAIL SERVICES : Postage,CONTRACT,546200
http://statistics.data.gov.uk/id/local-authority/00BU,Trafford,09/12/2020,1901389182,9062004913,138.65,Royal Mail Group Ltd,100228,GB243170002,CENTRAL OVERHEADS,POSTAGES,220515,,301200,MAIL SERVICES : Postage,CONTRACT,145000
http://statistics.data.gov.uk/id/local-authority/00BU,Trafford,21/12/2020,5100399853,9061505440,153.53,Royal Mail Group Ltd,100228,GB243170002,REGISTRATION TEAM,POSTAGES,220515,,301200,MAIL SERVICES : Postage,Royal Mail 9061505440 07/09/20,602020
http://statistics.data.gov.uk/id/local-authority/00BU,Trafford,11/12/2020,5100399679,42155,165.00,Carrington Business Park Limited,100239,GB177608867,Early Years Service,HIRE OF ROOMS,200735,,261500,HR : Training & Conferences,PFA Room Hire - 07/11/2020,141300
http://statistics.data.gov.uk/id/local-authority/00BU,Trafford,11/12/2020,5100399679,42155,100.00,Carrington Business Park Limited,100239,GB177608867,Early Years Service,HIRE OF ROOMS,200735,,261500,HR : Training & Conferences,PFA Room Hire - 10/11//2020,141300
http://statistics.data.gov.uk/id/local-authority/00BU,Trafford,11/12/2020,5100399679,42155,100.00,Carrington Business Park Limited,100239,GB177608867,Early Years Service,HIRE OF ROOMS,200735,,261500,HR : Training & Conferences,PFA Room Hire - 11/11//2020,141300
http://statistics.data.gov.uk/id/local-authority/00BU,Trafford,11/12/2020,5100399679,42155,125.00,Carrington Business Park Limited,100239,GB177608867,Early Years Service,HIRE OF ROOMS,200735,,261500,HR : Training & Conferences,PFA Room Hire - 21/11/2020,141300
http://statistics.data.gov.uk/id/local-authority/00BU,Trafford,07/12/2020,1901388249,542254,"1,620.60",Deepdene Care Ltd,100282,GB945776864,MENT HLT 18-64 LT,SUPP LIVING CONT,230530,,321000,SOCIAL CARE SERVICES : Adult,Redacted,157004
http://statistics.data.gov.uk/id/local-authority/00BU,Trafford,07/12/2020,1901388337,542050,"2,374.72",Deepdene Care Ltd,100282,GB945776864,MENT HLT 18-64 LT,EXT RES CARE FEES,230842,,321000,SOCIAL CARE SERVICES : Adult,Redacted,157004
http://statistics.data.gov.uk/id/local-authority/00BU,Trafford,07/12/2020,1901388337,542050,"3,019.88",Deepdene Care Ltd,100282,GB945776864,SENS SUPP 18-64 LT,EXT RES CARE FEES,230842,,321000,SOCIAL CARE SERVICES : Adult,Redacted,157001
http://statistics.data.gov.uk/id/local-authority/00BU,Trafford,07/12/2020,1901388337,542050,"2,413.28",Deepdene Care Ltd,100282,GB945776864,MENT HLT 18-64 LT,EXT RES CARE FEES,230842,,321000,SOCIAL CARE SERVICES : Adult,Redacted,157004
http://statistics.data.gov.uk/id/local-authority/00BU,Trafford,07/12/2020,1901388337,542050,"3,448.32",Deepdene Care Ltd,100282,GB945776864,MENT HLT 18-64 LT,EXT RES CARE FEES,230842,,321000,SOCIAL CARE SERVICES : Adult,Redacted,157004
http://statistics.data.gov.uk/id/local-authority/00BU,Trafford,07/12/2020,1901388337,542050,"3,032.12",Deepdene Care Ltd,100282,GB945776864,MENT HLT 18-64 LT,EXT RES CARE FEES,230842,,321000,SOCIAL CARE SERVICES : Adult,Redacted,157004
http://statistics.data.gov.uk/id/local-authority/00BU,Trafford,07/12/2020,1901388337,542050,"2,374.72",Deepdene Care Ltd,100282,GB945776864,MENT HLT 18-64 LT,EXT RES CARE FEES,230842,,321000,SOCIAL CARE SERVICES : Adult,Redacted,157004
http://statistics.data.gov.uk/id/local-authority/00BU,Trafford,07/12/2020,1901388458,542144,"3,400.20",Deepdene Care Ltd,100282,GB945776864,MENT HLT 18-64 LT,EXT RES CARE FEES,230842,,321000,SOCIAL CARE SERVICES : Adult,Redacted,157004
http://statistics.data.gov.uk/id/local-authority/00BU,Trafford,07/12/2020,1901388458,542144,"4,237.92",Deepdene Care Ltd,100282,GB945776864,MENT HLT 18-64 LT,EXT RES CARE FEES,230842,,321000,SOCIAL CARE SERVICES : Adult,Redacted,157004
http://statistics.data.gov.uk/id/local-authority/00BU,Trafford,07/12/2020,1901388458,542144,"3,735.72",Deepdene Care Ltd,100282,GB945776864,MENT HLT 18-64 LT,EXT RES CARE FEES,230842,,321000,SOCIAL CARE SERVICES : Adult,Redacted,157004
http://statistics.data.gov.uk/id/local-authority/00BU,Trafford,07/12/2020,1901388458,542144,"5,846.12",Deepdene Care Ltd,100282,GB945776864,MENT HLT 18-64 LT,EXT RES CARE FEES,230842,,321000,SOCIAL CARE SERVICES : Adult,Redacted,157004
http://statistics.data.gov.uk/id/local-authority/00BU,Trafford,07/12/2020,1901388458,542144,"5,202.80",Deepdene Care Ltd,100282,GB945776864,MENT HLT 18-64 LT,EXT RES CARE FEES,230842,,321000,SOCIAL CARE SERVICES : Adult,Redacted,157004
http://statistics.data.gov.uk/id/local-authority/00BU,Trafford,22/12/2020,1901391057,20,"7,308.99",Deepdene Care Ltd,100282,GB945776864,Council Covid 19 mon,EXT RES CARE FEES,230842,,321000,SOCIAL CARE SERVICES : Adult,ICF 20% NS,157041
http://statistics.data.gov.uk/id/local-authority/00BU,Trafford,22/12/2020,1901391062,20,"12,863.83",Deepdene Care Ltd,100282,GB945776864,Council Covid 19 mon,EXT RES CARE FEES,230842,,321000,SOCIAL CARE SERVICES : Adult,ICF 20% PC,157041
http://statistics.data.gov.uk/id/local-authority/00BU,Trafford,16/12/2020,1901388324,542039,8.00,Trinity Merchants Ltd,100294,,MENT HLT 85+ LT,EXT RES CARE FEES,230842,,321017,SOCIAL CARE : Residential Care,Redacted,157034
http://statistics.data.gov.uk/id/local-authority/00BU,Trafford,16/12/2020,1901388324,542039,"1,934.88",Trinity Merchants Ltd,100294,,MENT HLT 85+ LT,EXT RES CARE FEES,230842,,321017,SOCIAL CARE : Residential Care,Redacted,157034
http://statistics.data.gov.uk/id/local-authority/00BU,Trafford,16/12/2020,1901388324,542039,936.48,Trinity Merchants Ltd,100294,,PHYS SUPP 75-84 LT,EXT RES CARE FEES,230842,,321017,SOCIAL CARE : Residential Care,Redacted,157020
http://statistics.data.gov.uk/id/local-authority/00BU,Trafford,16/12/2020,1901388324,542039,"1,934.88",Trinity Merchants Ltd,100294,,PHYS SUPP 75-84 LT,EXT RES CARE FEES,230842,,321017,SOCIAL CARE : Residential Care,Redacted,157020
http://statistics.data.gov.uk/id/local-authority/00BU,Trafford,16/12/2020,1901388324,542039,955.16,Trinity Merchants Ltd,100294,,Social Support 75-84,Social Care-3rd Prty,230805,,321017,SOCIAL CARE : Residential Care,Redacted,157025
http://statistics.data.gov.uk/id/local-authority/00BU,Trafford,16/12/2020,1901388324,542039,"1,811.68",Trinity Merchants Ltd,100294,,Social Support 75-84,EXT RES CARE FEES,230842,,321017,SOCIAL CARE : Residential Care,Redacted,157025
http://statistics.data.gov.uk/id/local-authority/00BU,Trafford,16/12/2020,1901388324,542039,909.28,Trinity Merchants Ltd,100294,,PHYS SUPP 65-74 LT,EXT RES CARE FEES,230842,,321017,SOCIAL CARE : Residential Care,Redacted,157010
http://statistics.data.gov.uk/id/local-authority/00BU,Trafford,16/12/2020,1901388324,542039,"1,811.68",Trinity Merchants Ltd,100294,,PHYS SUPP 65-74 LT,EXT RES CARE FEES,230842,,321017,SOCIAL CARE : Residential Care,Redacted,157010
http://statistics.data.gov.uk/id/local-authority/00BU,Trafford,16/12/2020,1901388324,542039,790.52,Trinity Merchants Ltd,100294,,PHYS SUPP 75-84 LT,Social Care-3rd Prty,230805,,321017,SOCIAL CARE : Residential Care,Redacted,157020
http://statistics.data.gov.uk/id/local-authority/00BU,Trafford,16/12/2020,1901388324,542039,"2,086.44",Trinity Merchants Ltd,100294,,PHYS SUPP 75-84 LT,EXT RES CARE FEES,230842,,321017,SOCIAL CARE : Residential Care,Redacted,157020
http://statistics.data.gov.uk/id/local-authority/00BU,Trafford,16/12/2020,1901388324,542039,955.16,Trinity Merchants Ltd,100294,,PHYS SUPP 65-74 LT,Social Care-3rd Prty,230805,,321017,SOCIAL CARE : Residential Care,Redacted,157010
http://statistics.data.gov.uk/id/local-authority/00BU,Trafford,16/12/2020,1901388324,542039,"1,811.68",Trinity Merchants Ltd,100294,,PHYS SUPP 65-74 LT,EXT RES CARE FEES,230842,,321017,SOCIAL CARE : Residential Care,Redacted,157010
http://statistics.data.gov.uk/id/local-authority/00BU,Trafford,16/12/2020,1901388324,542039,150.00,Trinity Merchants Ltd,100294,,PHYS SUPP 75-84 LT,Social Care-3rd Prty,230805,,321017,SOCIAL CARE : Residential Care,Redacted,157020
http://statistics.data.gov.uk/id/local-authority/00BU,Trafford,16/12/2020,1901388324,542039,786.48,Trinity Merchants Ltd,100294,,PHYS SUPP 75-84 LT,EXT RES CARE FEES,230842,,321017,SOCIAL CARE : Residential Care,Redacted,157020
http://statistics.data.gov.uk/id/local-authority/00BU,Trafford,16/12/2020,1901388324,542039,"1,934.88",Trinity Merchants Ltd,100294,,PHYS SUPP 75-84 LT,EXT RES CARE FEES,230842,,321017,SOCIAL CARE : Residential Care,Redacted,157020
http://statistics.data.gov.uk/id/local-authority/00BU,Trafford,16/12/2020,1901388324,542039,936.48,Trinity Merchants Ltd,100294,,PHYS SUPP 85+ LT,EXT RES CARE FEES,230842,,321017,SOCIAL CARE : Residential Care,Redacted,157030
http://statistics.data.gov.uk/id/local-authority/00BU,Trafford,16/12/2020,1901388324,542039,"1,934.88",Trinity Merchants Ltd,100294,,PHYS SUPP 85+ LT,EXT RES CARE FEES,230842,,321017,SOCIAL CARE : Residential Care,Redacted,157030
http://statistics.data.gov.uk/id/local-authority/00BU,Trafford,16/12/2020,1901388329,542043,"2,240.00",Trinity Merchants Ltd,100294,,MENT HLT 75-84 LT,EXT RES CARE FEES,230842,,321017,SOCIAL CARE : Residential Care,Redacted,157024
http://statistics.data.gov.uk/id/local-authority/00BU,Trafford,16/12/2020,1901388329,542043,"2,031.00",Trinity Merchants Ltd,100294,,MENT HLT 75-84 LT,EXT RES CARE FEES,230842,,321017,SOCIAL CARE : Residential Care,Redacted,157024
http://statistics.data.gov.uk/id/local-authority/00BU,Trafford,16/12/2020,1901388329,542043,767.08,Trinity Merchants Ltd,100294,,MENT HLT 65-74 LT,EXT RES CARE FEES,230842,,321017,SOCIAL CARE : Residential Care,Redacted,157014
http://statistics.data.gov.uk/id/local-authority/00BU,Trafford,16/12/2020,1901388329,542043,"2,086.44",Trinity Merchants Ltd,100294,,MENT HLT 65-74 LT,EXT RES CARE FEES,230842,,321017,SOCIAL CARE : Residential Care,Redacted,157014
http://statistics.data.gov.uk/id/local-authority/00BU,Trafford,16/12/2020,1901388329,542043,855.16,Trinity Merchants Ltd,100294,,PHYS SUPP 75-84 LT,EXT RES CARE FEES,230842,,321017,SOCIAL CARE : Residential Care,Redacted,157020
http://statistics.data.gov.uk/id/local-authority/00BU,Trafford,16/12/2020,1901388329,542043,"1,811.68",Trinity Merchants Ltd,100294,,PHYS SUPP 75-84 LT,EXT RES CARE FEES,230842,,321017,SOCIAL CARE : Residential Care,Redacted,157020
http://statistics.data.gov.uk/id/local-authority/00BU,Trafford,16/12/2020,1901388329,542043,760.00,Trinity Merchants Ltd,100294,,PHYS SUPP 65-74 LT,EXT RES CARE FEES,230842,,321017,SOCIAL CARE : Residential Care,Redacted,157010
http://statistics.data.gov.uk/id/local-authority/00BU,Trafford,16/12/2020,1901388329,542043,"2,240.00",Trinity Merchants Ltd,100294,,PHYS SUPP 65-74 LT,EXT RES CARE FEES,230842,,321017,SOCIAL CARE : Residential Care,Redacted,157010
http://statistics.data.gov.uk/id/local-authority/00BU,Trafford,16/12/2020,1901388329,542043,"1,336.48",Trinity Merchants Ltd,100294,,MENT HLT 85+ LT,Social Care-3rd Prty,230805,,321017,SOCIAL CARE : Residential Care,Redacted,157034
http://statistics.data.gov.uk/id/local-authority/00BU,Trafford,16/12/2020,1901388329,542043,"1,934.88",Trinity Merchants Ltd,100294,,MENT HLT 85+ LT,EXT RES CARE FEES,230842,,321017,SOCIAL CARE : Residential Care,Redacted,157034
http://statistics.data.gov.uk/id/local-authority/00BU,Trafford,16/12/2020,1901389716,544466,-5.43,Trinity Merchants Ltd,100294,,MENT HLT 85+ LT,EXT RES CARE FEES,230842,,321017,SOCIAL CARE : Residential Care,Redacted,157034
http://statistics.data.gov.uk/id/local-authority/00BU,Trafford,16/12/2020,1901389716,544466,"-1,312.95",Trinity Merchants Ltd,100294,,MENT HLT 85+ LT,EXT RES CARE FEES,230842,,321017,SOCIAL CARE : Residential Care,Redacted,157034
http://statistics.data.gov.uk/id/local-authority/00BU,Trafford,16/12/2020,1901389716,544466,-635.47,Trinity Merchants Ltd,100294,,PHYS SUPP 75-84 LT,EXT RES CARE FEES,230842,,321017,SOCIAL CARE : Residential Care,Redacted,157020
http://statistics.data.gov.uk/id/local-authority/00BU,Trafford,16/12/2020,1901389716,544466,"-1,312.95",Trinity Merchants Ltd,100294,,PHYS SUPP 75-84 LT,EXT RES CARE FEES,230842,,321017,SOCIAL CARE : Residential Care,Redacted,157020
http://statistics.data.gov.uk/id/local-authority/00BU,Trafford,16/12/2020,1901389716,544466,-648.14,Trinity Merchants Ltd,100294,,Social Support 75-84,Social Care-3rd Prty,230805,,321017,SOCIAL CARE : Residential Care,Redacted,157025
http://statistics.data.gov.uk/id/local-authority/00BU,Trafford,16/12/2020,1901389716,544466,"-1,229.35",Trinity Merchants Ltd,100294,,Social Support 75-84,EXT RES CARE FEES,230842,,321017,SOCIAL CARE : Residential Care,Redacted,157025
http://statistics.data.gov.uk/id/local-authority/00BU,Trafford,16/12/2020,1901389716,544466,-617.01,Trinity Merchants Ltd,100294,,PHYS SUPP 65-74 LT,EXT RES CARE FEES,230842,,321017,SOCIAL CARE : Residential Care,Redacted,157010
http://statistics.data.gov.uk/id/local-authority/00BU,Trafford,16/12/2020,1901389716,544466,"-1,229.35",Trinity Merchants Ltd,100294,,PHYS SUPP 65-74 LT,EXT RES CARE FEES,230842,,321017,SOCIAL CARE : Residential Care,Redacted,157010
http://statistics.data.gov.uk/id/local-authority/00BU,Trafford,16/12/2020,1901389716,544466,-536.42,Trinity Merchants Ltd,100294,,PHYS SUPP 75-84 LT,Social Care-3rd Prty,230805,,321017,SOCIAL CARE : Residential Care,Redacted,157020
http://statistics.data.gov.uk/id/local-authority/00BU,Trafford,16/12/2020,1901389716,544466,"-1,415.80",Trinity Merchants Ltd,100294,,PHYS SUPP 75-84 LT,EXT RES CARE FEES,230842,,321017,SOCIAL CARE : Residential Care,Redacted,157020
http://statistics.data.gov.uk/id/local-authority/00BU,Trafford,16/12/2020,1901389716,544466,-648.14,Trinity Merchants Ltd,100294,,PHYS SUPP 65-74 LT,Social Care-3rd Prty,230805,,321017,SOCIAL CARE : Residential Care,Redacted,157010
http://statistics.data.gov.uk/id/local-authority/00BU,Trafford,16/12/2020,1901389716,544466,"-1,229.35",Trinity Merchants Ltd,100294,,PHYS SUPP 65-74 LT,EXT RES CARE FEES,230842,,321017,SOCIAL CARE : Residential Care,Redacted,157010
http://statistics.data.gov.uk/id/local-authority/00BU,Trafford,16/12/2020,1901389716,544466,-101.79,Trinity Merchants Ltd,100294,,PHYS SUPP 75-84 LT,Social Care-3rd Prty,230805,,321017,SOCIAL CARE : Residential Care,Redacted,157020
http://statistics.data.gov.uk/id/local-authority/00BU,Trafford,16/12/2020,1901389716,544466,-533.68,Trinity Merchants Ltd,100294,,PHYS SUPP 75-84 LT,EXT RES CARE FEES,230842,,321017,SOCIAL CARE : Residential Care,Redacted,157020
http://statistics.data.gov.uk/id/local-authority/00BU,Trafford,16/12/2020,1901389716,544466,"-1,312.95",Trinity Merchants Ltd,100294,,PHYS SUPP 75-84 LT,EXT RES CARE FEES,230842,,321017,SOCIAL CARE : Residential Care,Redacted,157020
http://statistics.data.gov.uk/id/local-authority/00BU,Trafford,16/12/2020,1901389716,544466,-635.47,Trinity Merchants Ltd,100294,,PHYS SUPP 85+ LT,EXT RES CARE FEES,230842,,321017,SOCIAL CARE : Residential Care,Redacted,157030
http://statistics.data.gov.uk/id/local-authority/00BU,Trafford,16/12/2020,1901389716,544466,"-1,312.95",Trinity Merchants Ltd,100294,,PHYS SUPP 85+ LT,EXT RES CARE FEES,230842,,321017,SOCIAL CARE : Residential Care,Redacted,157030
http://statistics.data.gov.uk/id/local-authority/00BU,Trafford,16/12/2020,1901389717,544467,"-1,520.00",Trinity Merchants Ltd,100294,,MENT HLT 75-84 LT,EXT RES CARE FEES,230842,,321017,SOCIAL CARE : Residential Care,Redacted,157024
http://statistics.data.gov.uk/id/local-authority/00BU,Trafford,16/12/2020,1901389717,544467,"-1,378.18",Trinity Merchants Ltd,100294,,MENT HLT 75-84 LT,EXT RES CARE FEES,230842,,321017,SOCIAL CARE : Residential Care,Redacted,157024
http://statistics.data.gov.uk/id/local-authority/00BU,Trafford,16/12/2020,1901389717,544467,-520.52,Trinity Merchants Ltd,100294,,MENT HLT 65-74 LT,EXT RES CARE FEES,230842,,321017,SOCIAL CARE : Residential Care,Redacted,157014
http://statistics.data.gov.uk/id/local-authority/00BU,Trafford,16/12/2020,1901389717,544467,"-1,415.80",Trinity Merchants Ltd,100294,,MENT HLT 65-74 LT,EXT RES CARE FEES,230842,,321017,SOCIAL CARE : Residential Care,Redacted,157014
http://statistics.data.gov.uk/id/local-authority/00BU,Trafford,16/12/2020,1901389717,544467,-580.29,Trinity Merchants Ltd,100294,,PHYS SUPP 75-84 LT,EXT RES CARE FEES,230842,,321017,SOCIAL CARE : Residential Care,Redacted,157020
http://statistics.data.gov.uk/id/local-authority/00BU,Trafford,16/12/2020,1901389717,544467,"-1,229.35",Trinity Merchants Ltd,100294,,PHYS SUPP 75-84 LT,EXT RES CARE FEES,230842,,321017,SOCIAL CARE : Residential Care,Redacted,157020
http://statistics.data.gov.uk/id/local-authority/00BU,Trafford,16/12/2020,1901389717,544467,-515.71,Trinity Merchants Ltd,100294,,PHYS SUPP 65-74 LT,EXT RES CARE FEES,230842,,321017,SOCIAL CARE : Residential Care,Redacted,157010
http://statistics.data.gov.uk/id/local-authority/00BU,Trafford,16/12/2020,1901389717,544467,"-1,520.00",Trinity Merchants Ltd,100294,,PHYS SUPP 65-74 LT,EXT RES CARE FEES,230842,,321017,SOCIAL CARE : Residential Care,Redacted,157010
http://statistics.data.gov.uk/id/local-authority/00BU,Trafford,16/12/2020,1901389717,544467,-906.90,Trinity Merchants Ltd,100294,,MENT HLT 85+ LT,Social Care-3rd Prty,230805,,321017,SOCIAL CARE : Residential Care,Redacted,157034
http://statistics.data.gov.uk/id/local-authority/00BU,Trafford,16/12/2020,1901389717,544467,"-1,312.95",Trinity Merchants Ltd,100294,,MENT HLT 85+ LT,EXT RES CARE FEES,230842,,321017,SOCIAL CARE : Residential Care,Redacted,157034
http://statistics.data.gov.uk/id/local-authority/00BU,Trafford,21/12/2020,1901390338,545793,5.43,Trinity Merchants Ltd,100294,,MENT HLT 85+ LT,EXT RES CARE FEES,230842,,321017,SOCIAL CARE : Residential Care,Redacted,157034
http://statistics.data.gov.uk/id/local-authority/00BU,Trafford,21/12/2020,1901390338,545793,"1,312.95",Trinity Merchants Ltd,100294,,MENT HLT 85+ LT,EXT RES CARE FEES,230842,,321017,SOCIAL CARE : Residential Care,Redacted,157034
http://statistics.data.gov.uk/id/local-authority/00BU,Trafford,21/12/2020,1901390338,545793,635.47,Trinity Merchants Ltd,100294,,PHYS SUPP 75-84 LT,EXT RES CARE FEES,230842,,321017,SOCIAL CARE : Residential Care,Redacted,157020
http://statistics.data.gov.uk/id/local-authority/00BU,Trafford,21/12/2020,1901390338,545793,"1,312.95",Trinity Merchants Ltd,100294,,PHYS SUPP 75-84 LT,EXT RES CARE FEES,230842,,321017,SOCIAL CARE : Residential Care,Redacted,157020
http://statistics.data.gov.uk/id/local-authority/00BU,Trafford,21/12/2020,1901390338,545793,34.11,Trinity Merchants Ltd,100294,,Social Support 75-84,EXT RES CARE FEES,230842,,321017,SOCIAL CARE : Residential Care,Redacted,157025
http://statistics.data.gov.uk/id/local-authority/00BU,Trafford,21/12/2020,1901390338,545793,68.23,Trinity Merchants Ltd,100294,,Social Support 75-84,EXT RES CARE FEES,230842,,321017,SOCIAL CARE : Residential Care,Redacted,157025
http://statistics.data.gov.uk/id/local-authority/00BU,Trafford,21/12/2020,1901390338,545793,852.82,Trinity Merchants Ltd,100294,,Social Support 75-84,EXT RES CARE FEES,230842,,321017,SOCIAL CARE : Residential Care,Redacted,157025
http://statistics.data.gov.uk/id/local-authority/00BU,Trafford,21/12/2020,1901390338,545793,886.93,Trinity Merchants Ltd,100294,,Social Support 75-84,EXT RES CARE FEES,230842,,321017,SOCIAL CARE : Residential Care,Redacted,157025
http://statistics.data.gov.uk/id/local-authority/00BU,Trafford,21/12/2020,1901390338,545793,921.05,Trinity Merchants Ltd,100294,,Social Support 75-84,EXT RES CARE FEES,230842,,321017,SOCIAL CARE : Residential Care,Redacted,157025
http://statistics.data.gov.uk/id/local-authority/00BU,Trafford,21/12/2020,1901390338,545793,955.16,Trinity Merchants Ltd,100294,,Social Support 75-84,EXT RES CARE FEES,230842,,321017,SOCIAL CARE : Residential Care,Redacted,157025
http://statistics.data.gov.uk/id/local-authority/00BU,Trafford,21/12/2020,1901390338,545793,955.16,Trinity Merchants Ltd,100294,,Social Support 75-84,EXT RES CARE FEES,230842,,321017,SOCIAL CARE : Residential Care,Redacted,157025
http://statistics.data.gov.uk/id/local-authority/00BU,Trafford,21/12/2020,1901390338,545793,955.16,Trinity Merchants Ltd,100294,,Social Support 75-84,EXT RES CARE FEES,230842,,321017,SOCIAL CARE : Residential Care,Redacted,157025
http://statistics.data.gov.uk/id/local-authority/00BU,Trafford,21/12/2020,1901390338,545793,955.16,Trinity Merchants Ltd,100294,,Social Support 75-84,EXT RES CARE FEES,230842,,321017,SOCIAL CARE : Residential Care,Redacted,157025
http://statistics.data.gov.uk/id/local-authority/00BU,Trafford,21/12/2020,1901390338,545793,955.16,Trinity Merchants Ltd,100294,,Social Support 75-84,EXT RES CARE FEES,230842,,321017,SOCIAL CARE : Residential Care,Redacted,157025
http://statistics.data.gov.uk/id/local-authority/00BU,Trafford,21/12/2020,1901390338,545793,955.16,Trinity Merchants Ltd,100294,,Social Support 75-84,EXT RES CARE FEES,230842,,321017,SOCIAL CARE : Residential Care,Redacted,157025
http://statistics.data.gov.uk/id/local-authority/00BU,Trafford,21/12/2020,1901390338,545793,955.16,Trinity Merchants Ltd,100294,,Social Support 75-84,EXT RES CARE FEES,230842,,321017,SOCIAL CARE : Residential Care,Redacted,157025
http://statistics.data.gov.uk/id/local-authority/00BU,Trafford,21/12/2020,1901390338,545793,955.16,Trinity Merchants Ltd,100294,,Social Support 75-84,EXT RES CARE FEES,230842,,321017,SOCIAL CARE : Residential Care,Redacted,157025
http://statistics.data.gov.uk/id/local-authority/00BU,Trafford,21/12/2020,1901390338,545793,955.16,Trinity Merchants Ltd,100294,,Social Support 75-84,EXT RES CARE FEES,230842,,321017,SOCIAL CARE : Residential Care,Redacted,157025
http://statistics.data.gov.uk/id/local-authority/00BU,Trafford,21/12/2020,1901390338,545793,955.16,Trinity Merchants Ltd,100294,,Social Support 75-84,EXT RES CARE FEES,230842,,321017,SOCIAL CARE : Residential Care,Redacted,157025
http://statistics.data.gov.uk/id/local-authority/00BU,Trafford,21/12/2020,1901390338,545793,955.16,Trinity Merchants Ltd,100294,,Social Support 75-84,EXT RES CARE FEES,230842,,321017,SOCIAL CARE : Residential Care,Redacted,157025
http://statistics.data.gov.uk/id/local-authority/00BU,Trafford,21/12/2020,1901390338,545793,955.16,Trinity Merchants Ltd,100294,,Social Support 75-84,EXT RES CARE FEES,230842,,321017,SOCIAL CARE : Residential Care,Redacted,157025
http://statistics.data.gov.uk/id/local-authority/00BU,Trafford,21/12/2020,1901390338,545793,955.16,Trinity Merchants Ltd,100294,,Social Support 75-84,EXT RES CARE FEES,230842,,321017,SOCIAL CARE : Residential Care,Redacted,157025
http://statistics.data.gov.uk/id/local-authority/00BU,Trafford,21/12/2020,1901390338,545793,955.16,Trinity Merchants Ltd,100294,,Social Support 75-84,EXT RES CARE FEES,230842,,321017,SOCIAL CARE : Residential Care,Redacted,157025
http://statistics.data.gov.uk/id/local-authority/00BU,Trafford,21/12/2020,1901390338,545793,955.16,Trinity Merchants Ltd,100294,,Social Support 75-84,EXT RES CARE FEES,230842,,321017,SOCIAL CARE : Residential Care,Redacted,157025
http://statistics.data.gov.uk/id/local-authority/00BU,Trafford,21/12/2020,1901390338,545793,955.16,Trinity Merchants Ltd,100294,,Social Support 75-84,EXT RES CARE FEES,230842,,321017,SOCIAL CARE : Residential Care,Redacted,157025
http://statistics.data.gov.uk/id/local-authority/00BU,Trafford,21/12/2020,1901390338,545793,955.16,Trinity Merchants Ltd,100294,,Social Support 75-84,EXT RES CARE FEES,230842,,321017,SOCIAL CARE : Residential Care,Redacted,157025
http://statistics.data.gov.uk/id/local-authority/00BU,Trafford,21/12/2020,1901390338,545793,955.16,Trinity Merchants Ltd,100294,,Social Support 75-84,EXT RES CARE FEES,230842,,321017,SOCIAL CARE : Residential Care,Redacted,157025
http://statistics.data.gov.uk/id/local-authority/00BU,Trafford,21/12/2020,1901390338,545793,955.16,Trinity Merchants Ltd,100294,,Social Support 75-84,EXT RES CARE FEES,230842,,321017,SOCIAL CARE : Residential Care,Redacted,157025
http://statistics.data.gov.uk/id/local-authority/00BU,Trafford,21/12/2020,1901390338,545793,955.16,Trinity Merchants Ltd,100294,,Social Support 75-84,EXT RES CARE FEES,230842,,321017,SOCIAL CARE : Residential Care,Redacted,157025
http://statistics.data.gov.uk/id/local-authority/00BU,Trafford,21/12/2020,1901390338,545793,955.16,Trinity Merchants Ltd,100294,,Social Support 75-84,EXT RES CARE FEES,230842,,321017,SOCIAL CARE : Residential Care,Redacted,157025
http://statistics.data.gov.uk/id/local-authority/00BU,Trafford,21/12/2020,1901390338,545793,955.16,Trinity Merchants Ltd,100294,,Social Support 75-84,EXT RES CARE FEES,230842,,321017,SOCIAL CARE : Residential Care,Redacted,157025
http://statistics.data.gov.uk/id/local-authority/00BU,Trafford,21/12/2020,1901390338,545793,955.16,Trinity Merchants Ltd,100294,,Social Support 75-84,EXT RES CARE FEES,230842,,321017,SOCIAL CARE : Residential Care,Redacted,157025
http://statistics.data.gov.uk/id/local-authority/00BU,Trafford,21/12/2020,1901390338,545793,955.16,Trinity Merchants Ltd,100294,,Social Support 75-84,EXT RES CARE FEES,230842,,321017,SOCIAL CARE : Residential Care,Redacted,157025
http://statistics.data.gov.uk/id/local-authority/00BU,Trafford,21/12/2020,1901390338,545793,955.16,Trinity Merchants Ltd,100294,,Social Support 75-84,EXT RES CARE FEES,230842,,321017,SOCIAL CARE : Residential Care,Redacted,157025
http://statistics.data.gov.uk/id/local-authority/00BU,Trafford,21/12/2020,1901390338,545793,955.16,Trinity Merchants Ltd,100294,,Social Support 75-84,EXT RES CARE FEES,230842,,321017,SOCIAL CARE : Residential Care,Redacted,157025
http://statistics.data.gov.uk/id/local-authority/00BU,Trafford,21/12/2020,1901390338,545793,955.16,Trinity Merchants Ltd,100294,,Social Support 75-84,EXT RES CARE FEES,230842,,321017,SOCIAL CARE : Residential Care,Redacted,157025
http://statistics.data.gov.uk/id/local-authority/00BU,Trafford,21/12/2020,1901390338,545793,955.16,Trinity Merchants Ltd,100294,,Social Support 75-84,EXT RES CARE FEES,230842,,321017,SOCIAL CARE : Residential Care,Redacted,157025
http://statistics.data.gov.uk/id/local-authority/00BU,Trafford,21/12/2020,1901390338,545793,955.16,Trinity Merchants Ltd,100294,,Social Support 75-84,EXT RES CARE FEES,230842,,321017,SOCIAL CARE : Residential Care,Redacted,157025
http://statistics.data.gov.uk/id/local-authority/00BU,Trafford,21/12/2020,1901390338,545793,955.16,Trinity Merchants Ltd,100294,,Social Support 75-84,EXT RES CARE FEES,230842,,321017,SOCIAL CARE : Residential Care,Redacted,157025
http://statistics.data.gov.uk/id/local-authority/00BU,Trafford,21/12/2020,1901390338,545793,955.16,Trinity Merchants Ltd,100294,,Social Support 75-84,EXT RES CARE FEES,230842,,321017,SOCIAL CARE : Residential Care,Redacted,157025
http://statistics.data.gov.uk/id/local-authority/00BU,Trafford,21/12/2020,1901390338,545793,955.16,Trinity Merchants Ltd,100294,,Social Support 75-84,EXT RES CARE FEES,230842,,321017,SOCIAL CARE : Residential Care,Redacted,157025
http://statistics.data.gov.uk/id/local-authority/00BU,Trafford,21/12/2020,1901390338,545793,955.16,Trinity Merchants Ltd,100294,,Social Support 75-84,EXT RES CARE FEES,230842,,321017,SOCIAL CARE : Residential Care,Redacted,157025
http://statistics.data.gov.uk/id/local-authority/00BU,Trafford,21/12/2020,1901390338,545793,955.16,Trinity Merchants Ltd,100294,,Social Support 75-84,EXT RES CARE FEES,230842,,321017,SOCIAL CARE : Residential Care,Redacted,157025
http://statistics.data.gov.uk/id/local-authority/00BU,Trafford,21/12/2020,1901390338,545793,955.16,Trinity Merchants Ltd,100294,,Social Support 75-84,EXT RES CARE FEES,230842,,321017,SOCIAL CARE : Residential Care,Redacted,157025
http://statistics.data.gov.uk/id/local-authority/00BU,Trafford,21/12/2020,1901390338,545793,955.16,Trinity Merchants Ltd,100294,,Social Support 75-84,EXT RES CARE FEES,230842,,321017,SOCIAL CARE : Residential Care,Redacted,157025
http://statistics.data.gov.uk/id/local-authority/00BU,Trafford,21/12/2020,1901390338,545793,"1,229.35",Trinity Merchants Ltd,100294,,Social Support 75-84,EXT RES CARE FEES,230842,,321017,SOCIAL CARE : Residential Care,Redacted,157025
http://statistics.data.gov.uk/id/local-authority/00BU,Trafford,21/12/2020,1901390338,545793,-34.11,Trinity Merchants Ltd,100294,,Social Support 75-84,Social Care-3rd Prty,230805,,321017,SOCIAL CARE : Residential Care,Redacted,157025
http://statistics.data.gov.uk/id/local-authority/00BU,Trafford,21/12/2020,1901390338,545793,-68.23,Trinity Merchants Ltd,100294,,Social Support 75-84,Social Care-3rd Prty,230805,,321017,SOCIAL CARE : Residential Care,Redacted,157025
http://statistics.data.gov.uk/id/local-authority/00BU,Trafford,21/12/2020,1901390338,545793,-307.02,Trinity Merchants Ltd,100294,,Social Support 75-84,Social Care-3rd Prty,230805,,321017,SOCIAL CARE : Residential Care,Redacted,157025
http://statistics.data.gov.uk/id/local-authority/00BU,Trafford,21/12/2020,1901390338,545793,-852.82,Trinity Merchants Ltd,100294,,Social Support 75-84,Social Care-3rd Prty,230805,,321017,SOCIAL CARE : Residential Care,Redacted,157025
http://statistics.data.gov.uk/id/local-authority/00BU,Trafford,21/12/2020,1901390338,545793,-886.93,Trinity Merchants Ltd,100294,,Social Support 75-84,Social Care-3rd Prty,230805,,321017,SOCIAL CARE : Residential Care,Redacted,157025
http://statistics.data.gov.uk/id/local-authority/00BU,Trafford,21/12/2020,1901390338,545793,-921.05,Trinity Merchants Ltd,100294,,Social Support 75-84,Social Care-3rd Prty,230805,,321017,SOCIAL CARE : Residential Care,Redacted,157025
http://statistics.data.gov.uk/id/local-authority/00BU,Trafford,21/12/2020,1901390338,545793,-955.16,Trinity Merchants Ltd,100294,,Social Support 75-84,Social Care-3rd Prty,230805,,321017,SOCIAL CARE : Residential Care,Redacted,157025
http://statistics.data.gov.uk/id/local-authority/00BU,Trafford,21/12/2020,1901390338,545793,-955.16,Trinity Merchants Ltd,100294,,Social Support 75-84,Social Care-3rd Prty,230805,,321017,SOCIAL CARE : Residential Care,Redacted,157025
http://statistics.data.gov.uk/id/local-authority/00BU,Trafford,21/12/2020,1901390338,545793,-955.16,Trinity Merchants Ltd,100294,,Social Support 75-84,Social Care-3rd Prty,230805,,321017,SOCIAL CARE : Residential Care,Redacted,157025
http://statistics.data.gov.uk/id/local-authority/00BU,Trafford,21/12/2020,1901390338,545793,-955.16,Trinity Merchants Ltd,100294,,Social Support 75-84,Social Care-3rd Prty,230805,,321017,SOCIAL CARE : Residential Care,Redacted,157025
http://statistics.data.gov.uk/id/local-authority/00BU,Trafford,21/12/2020,1901390338,545793,-955.16,Trinity Merchants Ltd,100294,,Social Support 75-84,Social Care-3rd Prty,230805,,321017,SOCIAL CARE : Residential Care,Redacted,157025
http://statistics.data.gov.uk/id/local-authority/00BU,Trafford,21/12/2020,1901390338,545793,-955.16,Trinity Merchants Ltd,100294,,Social Support 75-84,Social Care-3rd Prty,230805,,321017,SOCIAL CARE : Residential Care,Redacted,157025
http://statistics.data.gov.uk/id/local-authority/00BU,Trafford,21/12/2020,1901390338,545793,-955.16,Trinity Merchants Ltd,100294,,Social Support 75-84,Social Care-3rd Prty,230805,,321017,SOCIAL CARE : Residential Care,Redacted,157025
http://statistics.data.gov.uk/id/local-authority/00BU,Trafford,21/12/2020,1901390338,545793,-955.16,Trinity Merchants Ltd,100294,,Social Support 75-84,Social Care-3rd Prty,230805,,321017,SOCIAL CARE : Residential Care,Redacted,157025
http://statistics.data.gov.uk/id/local-authority/00BU,Trafford,21/12/2020,1901390338,545793,-955.16,Trinity Merchants Ltd,100294,,Social Support 75-84,Social Care-3rd Prty,230805,,321017,SOCIAL CARE : Residential Care,Redacted,157025
http://statistics.data.gov.uk/id/local-authority/00BU,Trafford,21/12/2020,1901390338,545793,-955.16,Trinity Merchants Ltd,100294,,Social Support 75-84,Social Care-3rd Prty,230805,,321017,SOCIAL CARE : Residential Care,Redacted,157025
http://statistics.data.gov.uk/id/local-authority/00BU,Trafford,21/12/2020,1901390338,545793,-955.16,Trinity Merchants Ltd,100294,,Social Support 75-84,Social Care-3rd Prty,230805,,321017,SOCIAL CARE : Residential Care,Redacted,157025
http://statistics.data.gov.uk/id/local-authority/00BU,Trafford,21/12/2020,1901390338,545793,-955.16,Trinity Merchants Ltd,100294,,Social Support 75-84,Social Care-3rd Prty,230805,,321017,SOCIAL CARE : Residential Care,Redacted,157025
http://statistics.data.gov.uk/id/local-authority/00BU,Trafford,21/12/2020,1901390338,545793,-955.16,Trinity Merchants Ltd,100294,,Social Support 75-84,Social Care-3rd Prty,230805,,321017,SOCIAL CARE : Residential Care,Redacted,157025
http://statistics.data.gov.uk/id/local-authority/00BU,Trafford,21/12/2020,1901390338,545793,-955.16,Trinity Merchants Ltd,100294,,Social Support 75-84,Social Care-3rd Prty,230805,,321017,SOCIAL CARE : Residential Care,Redacted,157025
http://statistics.data.gov.uk/id/local-authority/00BU,Trafford,21/12/2020,1901390338,545793,-955.16,Trinity Merchants Ltd,100294,,Social Support 75-84,Social Care-3rd Prty,230805,,321017,SOCIAL CARE : Residential Care,Redacted,157025
http://statistics.data.gov.uk/id/local-authority/00BU,Trafford,21/12/2020,1901390338,545793,-955.16,Trinity Merchants Ltd,100294,,Social Support 75-84,Social Care-3rd Prty,230805,,321017,SOCIAL CARE : Residential Care,Redacted,157025
http://statistics.data.gov.uk/id/local-authority/00BU,Trafford,21/12/2020,1901390338,545793,-955.16,Trinity Merchants Ltd,100294,,Social Support 75-84,Social Care-3rd Prty,230805,,321017,SOCIAL CARE : Residential Care,Redacted,157025
http://statistics.data.gov.uk/id/local-authority/00BU,Trafford,21/12/2020,1901390338,545793,-955.16,Trinity Merchants Ltd,100294,,Social Support 75-84,Social Care-3rd Prty,230805,,321017,SOCIAL CARE : Residential Care,Redacted,157025
http://statistics.data.gov.uk/id/local-authority/00BU,Trafford,21/12/2020,1901390338,545793,-955.16,Trinity Merchants Ltd,100294,,Social Support 75-84,Social Care-3rd Prty,230805,,321017,SOCIAL CARE : Residential Care,Redacted,157025
http://statistics.data.gov.uk/id/local-authority/00BU,Trafford,21/12/2020,1901390338,545793,-955.16,Trinity Merchants Ltd,100294,,Social Support 75-84,Social Care-3rd Prty,230805,,321017,SOCIAL CARE : Residential Care,Redacted,157025
http://statistics.data.gov.uk/id/local-authority/00BU,Trafford,21/12/2020,1901390338,545793,-955.16,Trinity Merchants Ltd,100294,,Social Support 75-84,Social Care-3rd Prty,230805,,321017,SOCIAL CARE : Residential Care,Redacted,157025
http://statistics.data.gov.uk/id/local-authority/00BU,Trafford,21/12/2020,1901390338,545793,-955.16,Trinity Merchants Ltd,100294,,Social Support 75-84,Social Care-3rd Prty,230805,,321017,SOCIAL CARE : Residential Care,Redacted,157025
http://statistics.data.gov.uk/id/local-authority/00BU,Trafford,21/12/2020,1901390338,545793,-955.16,Trinity Merchants Ltd,100294,,Social Support 75-84,Social Care-3rd Prty,230805,,321017,SOCIAL CARE : Residential Care,Redacted,157025
http://statistics.data.gov.uk/id/local-authority/00BU,Trafford,21/12/2020,1901390338,545793,-955.16,Trinity Merchants Ltd,100294,,Social Support 75-84,Social Care-3rd Prty,230805,,321017,SOCIAL CARE : Residential Care,Redacted,157025
http://statistics.data.gov.uk/id/local-authority/00BU,Trafford,21/12/2020,1901390338,545793,-955.16,Trinity Merchants Ltd,100294,,Social Support 75-84,Social Care-3rd Prty,230805,,321017,SOCIAL CARE : Residential Care,Redacted,157025
http://statistics.data.gov.uk/id/local-authority/00BU,Trafford,21/12/2020,1901390338,545793,-955.16,Trinity Merchants Ltd,100294,,Social Support 75-84,Social Care-3rd Prty,230805,,321017,SOCIAL CARE : Residential Care,Redacted,157025
http://statistics.data.gov.uk/id/local-authority/00BU,Trafford,21/12/2020,1901390338,545793,-955.16,Trinity Merchants Ltd,100294,,Social Support 75-84,Social Care-3rd Prty,230805,,321017,SOCIAL CARE : Residential Care,Redacted,157025
http://statistics.data.gov.uk/id/local-authority/00BU,Trafford,21/12/2020,1901390338,545793,-955.16,Trinity Merchants Ltd,100294,,Social Support 75-84,Social Care-3rd Prty,230805,,321017,SOCIAL CARE : Residential Care,Redacted,157025
http://statistics.data.gov.uk/id/local-authority/00BU,Trafford,21/12/2020,1901390338,545793,-955.16,Trinity Merchants Ltd,100294,,Social Support 75-84,Social Care-3rd Prty,230805,,321017,SOCIAL CARE : Residential Care,Redacted,157025
http://statistics.data.gov.uk/id/local-authority/00BU,Trafford,21/12/2020,1901390338,545793,-955.16,Trinity Merchants Ltd,100294,,Social Support 75-84,Social Care-3rd Prty,230805,,321017,SOCIAL CARE : Residential Care,Redacted,157025
http://statistics.data.gov.uk/id/local-authority/00BU,Trafford,21/12/2020,1901390338,545793,-955.16,Trinity Merchants Ltd,100294,,Social Support 75-84,Social Care-3rd Prty,230805,,321017,SOCIAL CARE : Residential Care,Redacted,157025
http://statistics.data.gov.uk/id/local-authority/00BU,Trafford,21/12/2020,1901390338,545793,-955.16,Trinity Merchants Ltd,100294,,Social Support 75-84,Social Care-3rd Prty,230805,,321017,SOCIAL CARE : Residential Care,Redacted,157025
http://statistics.data.gov.uk/id/local-authority/00BU,Trafford,21/12/2020,1901390338,545793,-955.16,Trinity Merchants Ltd,100294,,Social Support 75-84,Social Care-3rd Prty,230805,,321017,SOCIAL CARE : Residential Care,Redacted,157025
http://statistics.data.gov.uk/id/local-authority/00BU,Trafford,21/12/2020,1901390338,545793,-955.16,Trinity Merchants Ltd,100294,,Social Support 75-84,Social Care-3rd Prty,230805,,321017,SOCIAL CARE : Residential Care,Redacted,157025
http://statistics.data.gov.uk/id/local-authority/00BU,Trafford,21/12/2020,1901390338,545793,-955.16,Trinity Merchants Ltd,100294,,Social Support 75-84,Social Care-3rd Prty,230805,,321017,SOCIAL CARE : Residential Care,Redacted,157025
http://statistics.data.gov.uk/id/local-authority/00BU,Trafford,21/12/2020,1901390338,545793,617.01,Trinity Merchants Ltd,100294,,PHYS SUPP 65-74 LT,EXT RES CARE FEES,230842,,321017,SOCIAL CARE : Residential Care,Redacted,157010
http://statistics.data.gov.uk/id/local-authority/00BU,Trafford,21/12/2020,1901390338,545793,"1,229.35",Trinity Merchants Ltd,100294,,PHYS SUPP 65-74 LT,EXT RES CARE FEES,230842,,321017,SOCIAL CARE : Residential Care,Redacted,157010
http://statistics.data.gov.uk/id/local-authority/00BU,Trafford,21/12/2020,1901390338,545793,536.42,Trinity Merchants Ltd,100294,,PHYS SUPP 75-84 LT,Social Care-3rd Prty,230805,,321017,SOCIAL CARE : Residential Care,Redacted,157020
http://statistics.data.gov.uk/id/local-authority/00BU,Trafford,21/12/2020,1901390338,545793,"1,415.80",Trinity Merchants Ltd,100294,,PHYS SUPP 75-84 LT,EXT RES CARE FEES,230842,,321017,SOCIAL CARE : Residential Care,Redacted,157020
http://statistics.data.gov.uk/id/local-authority/00BU,Trafford,21/12/2020,1901390338,545793,648.14,Trinity Merchants Ltd,100294,,PHYS SUPP 65-74 LT,Social Care-3rd Prty,230805,,321017,SOCIAL CARE : Residential Care,Redacted,157010
http://statistics.data.gov.uk/id/local-authority/00BU,Trafford,21/12/2020,1901390338,545793,"1,229.35",Trinity Merchants Ltd,100294,,PHYS SUPP 65-74 LT,EXT RES CARE FEES,230842,,321017,SOCIAL CARE : Residential Care,Redacted,157010
http://statistics.data.gov.uk/id/local-authority/00BU,Trafford,21/12/2020,1901390338,545793,101.79,Trinity Merchants Ltd,100294,,PHYS SUPP 75-84 LT,Social Care-3rd Prty,230805,,321017,SOCIAL CARE : Residential Care,Redacted,157020
http://statistics.data.gov.uk/id/local-authority/00BU,Trafford,21/12/2020,1901390338,545793,533.68,Trinity Merchants Ltd,100294,,PHYS SUPP 75-84 LT,EXT RES CARE FEES,230842,,321017,SOCIAL CARE : Residential Care,Redacted,157020
http://statistics.data.gov.uk/id/local-authority/00BU,Trafford,21/12/2020,1901390338,545793,"1,312.95",Trinity Merchants Ltd,100294,,PHYS SUPP 75-84 LT,EXT RES CARE FEES,230842,,321017,SOCIAL CARE : Residential Care,Redacted,157020
http://statistics.data.gov.uk/id/local-authority/00BU,Trafford,21/12/2020,1901390338,545793,635.47,Trinity Merchants Ltd,100294,,PHYS SUPP 85+ LT,EXT RES CARE FEES,230842,,321017,SOCIAL CARE : Residential Care,Redacted,157030
http://statistics.data.gov.uk/id/local-authority/00BU,Trafford,21/12/2020,1901390338,545793,"1,312.95",Trinity Merchants Ltd,100294,,PHYS SUPP 85+ LT,EXT RES CARE FEES,230842,,321017,SOCIAL CARE : Residential Care,Redacted,157030
http://statistics.data.gov.uk/id/local-authority/00BU,Trafford,21/12/2020,1901390339,545794,"1,520.00",Trinity Merchants Ltd,100294,,MENT HLT 75-84 LT,EXT RES CARE FEES,230842,,321017,SOCIAL CARE : Residential Care,Redacted,157024
http://statistics.data.gov.uk/id/local-authority/00BU,Trafford,21/12/2020,1901390339,545794,"1,378.18",Trinity Merchants Ltd,100294,,MENT HLT 75-84 LT,EXT RES CARE FEES,230842,,321017,SOCIAL CARE : Residential Care,Redacted,157024
http://statistics.data.gov.uk/id/local-authority/00BU,Trafford,21/12/2020,1901390339,545794,520.52,Trinity Merchants Ltd,100294,,MENT HLT 65-74 LT,EXT RES CARE FEES,230842,,321017,SOCIAL CARE : Residential Care,Redacted,157014
http://statistics.data.gov.uk/id/local-authority/00BU,Trafford,21/12/2020,1901390339,545794,"1,415.80",Trinity Merchants Ltd,100294,,MENT HLT 65-74 LT,EXT RES CARE FEES,230842,,321017,SOCIAL CARE : Residential Care,Redacted,157014
http://statistics.data.gov.uk/id/local-authority/00BU,Trafford,21/12/2020,1901390339,545794,580.29,Trinity Merchants Ltd,100294,,PHYS SUPP 75-84 LT,EXT RES CARE FEES,230842,,321017,SOCIAL CARE : Residential Care,Redacted,157020
http://statistics.data.gov.uk/id/local-authority/00BU,Trafford,21/12/2020,1901390339,545794,"1,229.35",Trinity Merchants Ltd,100294,,PHYS SUPP 75-84 LT,EXT RES CARE FEES,230842,,321017,SOCIAL CARE : Residential Care,Redacted,157020
http://statistics.data.gov.uk/id/local-authority/00BU,Trafford,21/12/2020,1901390339,545794,515.71,Trinity Merchants Ltd,100294,,PHYS SUPP 65-74 LT,EXT RES CARE FEES,230842,,321017,SOCIAL CARE : Residential Care,Redacted,157010
http://statistics.data.gov.uk/id/local-authority/00BU,Trafford,21/12/2020,1901390339,545794,"1,520.00",Trinity Merchants Ltd,100294,,PHYS SUPP 65-74 LT,EXT RES CARE FEES,230842,,321017,SOCIAL CARE : Residential Care,Redacted,157010
http://statistics.data.gov.uk/id/local-authority/00BU,Trafford,21/12/2020,1901390339,545794,906.90,Trinity Merchants Ltd,100294,,MENT HLT 85+ LT,Social Care-3rd Prty,230805,,321017,SOCIAL CARE : Residential Care,Redacted,157034
http://statistics.data.gov.uk/id/local-authority/00BU,Trafford,21/12/2020,1901390339,545794,"1,312.95",Trinity Merchants Ltd,100294,,MENT HLT 85+ LT,EXT RES CARE FEES,230842,,321017,SOCIAL CARE : Residential Care,Redacted,157034
http://statistics.data.gov.uk/id/local-authority/00BU,Trafford,07/12/2020,1901388275,542004,665.12,Jemcare Ltd,100306,,PHYS SUPP 85+ LT,Social Care-3rd Prty,230805,,321017,SOCIAL CARE : Residential Care,Redacted,157030
http://statistics.data.gov.uk/id/local-authority/00BU,Trafford,07/12/2020,1901388275,542004,"1,934.88",Jemcare Ltd,100306,,PHYS SUPP 85+ LT,EXT RES CARE FEES,230842,,321017,SOCIAL CARE : Residential Care,Redacted,157030
http://statistics.data.gov.uk/id/local-authority/00BU,Trafford,07/12/2020,1901388275,542004,736.48,Jemcare Ltd,100306,,PHYS SUPP 85+ LT,Social Care-3rd Prty,230805,,321017,SOCIAL CARE : Residential Care,Redacted,157030
http://statistics.data.gov.uk/id/local-authority/00BU,Trafford,07/12/2020,1901388275,542004,"1,934.88",Jemcare Ltd,100306,,PHYS SUPP 85+ LT,EXT RES CARE FEES,230842,,321017,SOCIAL CARE : Residential Care,Redacted,157030
http://statistics.data.gov.uk/id/local-authority/00BU,Trafford,07/12/2020,1901388275,542004,733.08,Jemcare Ltd,100306,,MEM SUPP 65-74 LT,EXT RES CARE FEES,230842,,321017,SOCIAL CARE : Residential Care,Redacted,157012
http://statistics.data.gov.uk/id/local-authority/00BU,Trafford,07/12/2020,1901388275,542004,"1,934.88",Jemcare Ltd,100306,,MEM SUPP 65-74 LT,EXT RES CARE FEES,230842,,321017,SOCIAL CARE : Residential Care,Redacted,157012
http://statistics.data.gov.uk/id/local-authority/00BU,Trafford,07/12/2020,1901388275,542004,"1,934.88",Jemcare Ltd,100306,,PHYS SUPP 75-84 LT,EXT RES CARE FEES,230842,,321017,SOCIAL CARE : Residential Care,Redacted,157020
http://statistics.data.gov.uk/id/local-authority/00BU,Trafford,07/12/2020,1901388275,542004,456.48,Jemcare Ltd,100306,,SENS SUPP 75-84 LT,EXT RES CARE FEES,230842,,321017,SOCIAL CARE : Residential Care,Redacted,157021
http://statistics.data.gov.uk/id/local-authority/00BU,Trafford,07/12/2020,1901388275,542004,"1,934.88",Jemcare Ltd,100306,,SENS SUPP 75-84 LT,EXT RES CARE FEES,230842,,321017,SOCIAL CARE : Residential Care,Redacted,157021
http://statistics.data.gov.uk/id/local-authority/00BU,Trafford,07/12/2020,1901388275,542004,308.57,Jemcare Ltd,100306,,MENT HLT 18-64 LT,EXT RES CARE FEES,230842,,321017,SOCIAL CARE : Residential Care,Redacted,157004
http://statistics.data.gov.uk/id/local-authority/00BU,Trafford,07/12/2020,1901388275,542004,480.00,Jemcare Ltd,100306,,MENT HLT 18-64 LT,EXT RES CARE FEES,230842,,321017,SOCIAL CARE : Residential Care,Redacted,157004
http://statistics.data.gov.uk/id/local-authority/00BU,Trafford,07/12/2020,1901388275,542004,480.00,Jemcare Ltd,100306,,MENT HLT 18-64 LT,EXT RES CARE FEES,230842,,321017,SOCIAL CARE : Residential Care,Redacted,157004
http://statistics.data.gov.uk/id/local-authority/00BU,Trafford,07/12/2020,1901388275,542004,480.00,Jemcare Ltd,100306,,MENT HLT 18-64 LT,EXT RES CARE FEES,230842,,321017,SOCIAL CARE : Residential Care,Redacted,157004
http://statistics.data.gov.uk/id/local-authority/00BU,Trafford,07/12/2020,1901388275,542004,"1,440.00",Jemcare Ltd,100306,,MENT HLT 18-64 LT,EXT RES CARE FEES,230842,,321017,SOCIAL CARE : Residential Care,Redacted,157004
http://statistics.data.gov.uk/id/local-authority/00BU,Trafford,07/12/2020,1901388275,542004,"2,240.00",Jemcare Ltd,100306,,MENT HLT 18-64 LT,EXT RES CARE FEES,230842,,321017,SOCIAL CARE : Residential Care,Redacted,157004
http://statistics.data.gov.uk/id/local-authority/00BU,Trafford,07/12/2020,1901388275,542004,"2,240.00",Jemcare Ltd,100306,,MENT HLT 18-64 LT,EXT RES CARE FEES,230842,,321017,SOCIAL CARE : Residential Care,Redacted,157004
http://statistics.data.gov.uk/id/local-authority/00BU,Trafford,07/12/2020,1901388275,542004,"2,240.00",Jemcare Ltd,100306,,MENT HLT 18-64 LT,EXT RES CARE FEES,230842,,321017,SOCIAL CARE : Residential Care,Redacted,157004
http://statistics.data.gov.uk/id/local-authority/00BU,Trafford,07/12/2020,1901388275,542004,207.48,Jemcare Ltd,100306,,PHYS SUPP 18-64 LT,EXT RES CARE FEES,230842,,321017,SOCIAL CARE : Residential Care,Redacted,157000
http://statistics.data.gov.uk/id/local-authority/00BU,Trafford,07/12/2020,1901388275,542004,"1,934.88",Jemcare Ltd,100306,,PHYS SUPP 18-64 LT,EXT RES CARE FEES,230842,,321017,SOCIAL CARE : Residential Care,Redacted,157000
http://statistics.data.gov.uk/id/local-authority/00BU,Trafford,07/12/2020,1901388275,542004,"1,934.88",Jemcare Ltd,100306,,PHYS SUPP 65-74 LT,EXT RES CARE FEES,230842,,321017,SOCIAL CARE : Residential Care,Redacted,157010
http://statistics.data.gov.uk/id/local-authority/00BU,Trafford,07/12/2020,1901388275,542004,"1,934.88",Jemcare Ltd,100306,,PHYS SUPP 75-84 LT,EXT RES CARE FEES,230842,,321017,SOCIAL CARE : Residential Care,Redacted,157020
http://statistics.data.gov.uk/id/local-authority/00BU,Trafford,07/12/2020,1901388275,542004,120.00,Jemcare Ltd,100306,,MENT HLT 75-84 LT,Social Care-3rd Prty,230805,,321017,SOCIAL CARE : Residential Care,Redacted,157024
http://statistics.data.gov.uk/id/local-authority/00BU,Trafford,07/12/2020,1901388275,542004,"1,934.88",Jemcare Ltd,100306,,MENT HLT 75-84 LT,EXT RES CARE FEES,230842,,321017,SOCIAL CARE : Residential Care,Redacted,157024
http://statistics.data.gov.uk/id/local-authority/00BU,Trafford,07/12/2020,1901388275,542004,336.48,Jemcare Ltd,100306,,PHYS SUPP 65-74 LT,EXT RES CARE FEES,230842,,321017,SOCIAL CARE : Residential Care,Redacted,157010
http://statistics.data.gov.uk/id/local-authority/00BU,Trafford,07/12/2020,1901388275,542004,"1,934.88",Jemcare Ltd,100306,,PHYS SUPP 65-74 LT,EXT RES CARE FEES,230842,,321017,SOCIAL CARE : Residential Care,Redacted,157010
http://statistics.data.gov.uk/id/local-authority/00BU,Trafford,07/12/2020,1901388275,542004,785.12,Jemcare Ltd,100306,,PHYS SUPP 85+ LT,EXT RES CARE FEES,230842,,321017,SOCIAL CARE : Residential Care,Redacted,157030
http://statistics.data.gov.uk/id/local-authority/00BU,Trafford,07/12/2020,1901388275,542004,"1,934.88",Jemcare Ltd,100306,,PHYS SUPP 85+ LT,EXT RES CARE FEES,230842,,321017,SOCIAL CARE : Residential Care,Redacted,157030
http://statistics.data.gov.uk/id/local-authority/00BU,Trafford,07/12/2020,1901388275,542004,200.00,Jemcare Ltd,100306,,MEM SUPP 75-84 LT,EXT RES CARE FEES,230842,,321017,SOCIAL CARE : Residential Care,Redacted,157022
http://statistics.data.gov.uk/id/local-authority/00BU,Trafford,07/12/2020,1901388275,542004,536.48,Jemcare Ltd,100306,,MEM SUPP 75-84 LT,EXT RES CARE FEES,230842,,321017,SOCIAL CARE : Residential Care,Redacted,157022
http://statistics.data.gov.uk/id/local-authority/00BU,Trafford,07/12/2020,1901388275,542004,"1,934.88",Jemcare Ltd,100306,,MEM SUPP 75-84 LT,EXT RES CARE FEES,230842,,321017,SOCIAL CARE : Residential Care,Redacted,157022
http://statistics.data.gov.uk/id/local-authority/00BU,Trafford,07/12/2020,1901388275,542004,360.00,Jemcare Ltd,100306,,MEM SUPP 75-84 LT,Social Care-3rd Prty,230805,,321017,SOCIAL CARE : Residential Care,Redacted,157022
http://statistics.data.gov.uk/id/local-authority/00BU,Trafford,07/12/2020,1901388275,542004,"2,240.00",Jemcare Ltd,100306,,MEM SUPP 75-84 LT,EXT RES CARE FEES,230842,,321017,SOCIAL CARE : Residential Care,Redacted,157022
http://statistics.data.gov.uk/id/local-authority/00BU,Trafford,07/12/2020,1901388275,542004,536.48,Jemcare Ltd,100306,,PHYS SUPP 85+ LT,EXT RES CARE FEES,230842,,321017,SOCIAL CARE : Residential Care,Redacted,157030
http://statistics.data.gov.uk/id/local-authority/00BU,Trafford,07/12/2020,1901388275,542004,"1,934.88",Jemcare Ltd,100306,,PHYS SUPP 85+ LT,EXT RES CARE FEES,230842,,321017,SOCIAL CARE : Residential Care,Redacted,157030
http://statistics.data.gov.uk/id/local-authority/00BU,Trafford,07/12/2020,1901388275,542004,665.12,Jemcare Ltd,100306,,MENT HLT 75-84 LT,EXT RES CARE FEES,230842,,321017,SOCIAL CARE : Residential Care,Redacted,157024
http://statistics.data.gov.uk/id/local-authority/00BU,Trafford,07/12/2020,1901388275,542004,"1,934.88",Jemcare Ltd,100306,,MENT HLT 75-84 LT,EXT RES CARE FEES,230842,,321017,SOCIAL CARE : Residential Care,Redacted,157024
http://statistics.data.gov.uk/id/local-authority/00BU,Trafford,07/12/2020,1901388275,542004,736.48,Jemcare Ltd,100306,,PHYS SUPP 75-84 LT,Social Care-3rd Prty,230805,,321017,SOCIAL CARE : Residential Care,Redacted,157020
http://statistics.data.gov.uk/id/local-authority/00BU,Trafford,07/12/2020,1901388275,542004,"1,934.88",Jemcare Ltd,100306,,PHYS SUPP 75-84 LT,EXT RES CARE FEES,230842,,321017,SOCIAL CARE : Residential Care,Redacted,157020
http://statistics.data.gov.uk/id/local-authority/00BU,Trafford,22/12/2020,1901391027,20,"6,724.27",Jemcare Ltd,100306,,Council Covid 19 mon,EXT RES CARE FEES,230842,,321017,SOCIAL CARE : Residential Care,ICF 20%,157041
http://statistics.data.gov.uk/id/local-authority/00BU,Trafford,07/12/2020,1901388473,542152,"2,190.52",The Knoll Care Partnership ltd,100311,GB927406812,PHYS SUPP 75-84 LT,Social Care-3rd Prty,230805,,321017,SOCIAL CARE : Residential Care,Redacted,157020
http://statistics.data.gov.uk/id/local-authority/00BU,Trafford,07/12/2020,1901388473,542152,"2,086.44",The Knoll Care Partnership ltd,100311,GB927406812,PHYS SUPP 75-84 LT,EXT RES CARE FEES,230842,,321017,SOCIAL CARE : Residential Care,Redacted,157020
http://statistics.data.gov.uk/id/local-authority/00BU,Trafford,07/12/2020,1901388473,542152,"-2,160.00",The Knoll Care Partnership ltd,100311,GB927406812,PHYS SUPP 85+ LT,EXT RES CARE FEES,230842,,321017,SOCIAL CARE : Residential Care,Redacted,157030
http://statistics.data.gov.uk/id/local-authority/00BU,Trafford,07/12/2020,1901388473,542152,"-2,240.00",The Knoll Care Partnership ltd,100311,GB927406812,PHYS SUPP 85+ LT,EXT RES CARE FEES,230842,,321017,SOCIAL CARE : Residential Care,Redacted,157030
http://statistics.data.gov.uk/id/local-authority/00BU,Trafford,07/12/2020,1901388473,542152,"1,230.52",The Knoll Care Partnership ltd,100311,GB927406812,PHYS SUPP 75-84 LT,Social Care-3rd Prty,230805,,321017,SOCIAL CARE : Residential Care,Redacted,157020
http://statistics.data.gov.uk/id/local-authority/00BU,Trafford,07/12/2020,1901388473,542152,"2,086.44",The Knoll Care Partnership ltd,100311,GB927406812,PHYS SUPP 75-84 LT,EXT RES CARE FEES,230842,,321017,SOCIAL CARE : Residential Care,Redacted,157020
http://statistics.data.gov.uk/id/local-authority/00BU,Trafford,22/12/2020,1901391035,20,"11,694.39",The Knoll Care Partnership ltd,100311,GB927406812,Council Covid 19 mon,EXT RES CARE FEES,230842,,321017,SOCIAL CARE : Residential Care,ICF 20%,157041
http://statistics.data.gov.uk/id/local-authority/00BU,Trafford,07/12/2020,1901388374,542078,200.00,Ixora Healthcare Limited,100313,,SOCIAL SUPPORT 65-74,EXT RES CARE FEES,230842,,,,Redacted,157015
http://statistics.data.gov.uk/id/local-authority/00BU,Trafford,07/12/2020,1901388374,542078,"2,083.92",Ixora Healthcare Limited,100313,,SOCIAL SUPPORT 65-74,EXT RES CARE FEES,230842,,,,Redacted,157015
http://statistics.data.gov.uk/id/local-authority/00BU,Trafford,07/12/2020,1901388374,542078,7.14,Ixora Healthcare Limited,100313,,PHYS SUPP 75-84 LT,EXT RES CARE FEES,230842,,,,Redacted,157020
http://statistics.data.gov.uk/id/local-authority/00BU,Trafford,07/12/2020,1901388374,542078,171.43,Ixora Healthcare Limited,100313,,PHYS SUPP 75-84 LT,EXT RES CARE FEES,230842,,,,Redacted,157020
http://statistics.data.gov.uk/id/local-authority/00BU,Trafford,07/12/2020,1901388374,542078,192.86,Ixora Healthcare Limited,100313,,PHYS SUPP 75-84 LT,EXT RES CARE FEES,230842,,,,Redacted,157020
http://statistics.data.gov.uk/id/local-authority/00BU,Trafford,07/12/2020,1901388374,542078,200.00,Ixora Healthcare Limited,100313,,PHYS SUPP 75-84 LT,EXT RES CARE FEES,230842,,,,Redacted,157020
http://statistics.data.gov.uk/id/local-authority/00BU,Trafford,07/12/2020,1901388374,542078,200.00,Ixora Healthcare Limited,100313,,PHYS SUPP 75-84 LT,EXT RES CARE FEES,230842,,,,Redacted,157020
http://statistics.data.gov.uk/id/local-authority/00BU,Trafford,07/12/2020,1901388374,542078,200.00,Ixora Healthcare Limited,100313,,PHYS SUPP 75-84 LT,EXT RES CARE FEES,230842,,,,Redacted,157020
http://statistics.data.gov.uk/id/local-authority/00BU,Trafford,07/12/2020,1901388374,542078,200.00,Ixora Healthcare Limited,100313,,PHYS SUPP 75-84 LT,EXT RES CARE FEES,230842,,,,Redacted,157020
http://statistics.data.gov.uk/id/local-authority/00BU,Trafford,07/12/2020,1901388374,542078,200.00,Ixora Healthcare Limited,100313,,PHYS SUPP 75-84 LT,EXT RES CARE FEES,230842,,,,Redacted,157020
http://statistics.data.gov.uk/id/local-authority/00BU,Trafford,07/12/2020,1901388374,542078,200.00,Ixora Healthcare Limited,100313,,PHYS SUPP 75-84 LT,EXT RES CARE FEES,230842,,,,Redacted,157020
http://statistics.data.gov.uk/id/local-authority/00BU,Trafford,07/12/2020,1901388374,542078,"2,009.49",Ixora Healthcare Limited,100313,,PHYS SUPP 75-84 LT,EXT RES CARE FEES,230842,,,,Redacted,157020
http://statistics.data.gov.uk/id/local-authority/00BU,Trafford,07/12/2020,1901388374,542078,"2,083.92",Ixora Healthcare Limited,100313,,PHYS SUPP 75-84 LT,EXT RES CARE FEES,230842,,,,Redacted,157020
http://statistics.data.gov.uk/id/local-authority/00BU,Trafford,07/12/2020,1901388374,542078,"2,083.92",Ixora Healthcare Limited,100313,,PHYS SUPP 75-84 LT,EXT RES CARE FEES,230842,,,,Redacted,157020
http://statistics.data.gov.uk/id/local-authority/00BU,Trafford,07/12/2020,1901388374,542078,74.43,Ixora Healthcare Limited,100313,,Recharge Enhanced Ca,EXT RES CARE FEES,230842,,,,Redacted,157040
http://statistics.data.gov.uk/id/local-authority/00BU,Trafford,07/12/2020,1901388374,542078,"1,786.22",Ixora Healthcare Limited,100313,,Recharge Enhanced Ca,EXT RES CARE FEES,230842,,,,Redacted,157040
http://statistics.data.gov.uk/id/local-authority/00BU,Trafford,07/12/2020,1901388374,542078,"2,083.92",Ixora Healthcare Limited,100313,,Recharge Enhanced Ca,EXT RES CARE FEES,230842,,,,Redacted,157040
http://statistics.data.gov.uk/id/local-authority/00BU,Trafford,07/12/2020,1901388374,542078,"2,083.92",Ixora Healthcare Limited,100313,,Recharge Enhanced Ca,EXT RES CARE FEES,230842,,,,Redacted,157040
http://statistics.data.gov.uk/id/local-authority/00BU,Trafford,07/12/2020,1901388374,542078,"2,083.92",Ixora Healthcare Limited,100313,,Recharge Enhanced Ca,EXT RES CARE FEES,230842,,,,Redacted,157040
http://statistics.data.gov.uk/id/local-authority/00BU,Trafford,07/12/2020,1901388374,542078,"2,083.92",Ixora Healthcare Limited,100313,,Recharge Enhanced Ca,EXT RES CARE FEES,230842,,,,Redacted,157040
http://statistics.data.gov.uk/id/local-authority/00BU,Trafford,07/12/2020,1901388374,542078,150.00,Ixora Healthcare Limited,100313,,PHYS SUPP 75-84 LT,EXT RES CARE FEES,230842,,,,Redacted,157020
http://statistics.data.gov.uk/id/local-authority/00BU,Trafford,07/12/2020,1901388374,542078,200.00,Ixora Healthcare Limited,100313,,PHYS SUPP 75-84 LT,EXT RES CARE FEES,230842,,,,Redacted,157020
http://statistics.data.gov.uk/id/local-authority/00BU,Trafford,11/12/2020,1901389198,2020,"1,617,554.70",Greater Manchester Combined Authori,100320,GB287158171,FI:PASSENGER TRANSPO,GMITA LEVY (GMCA),230264,,151612,CONSULTANCY :Traffic Planning,,610745
http://statistics.data.gov.uk/id/local-authority/00BU,Trafford,17/12/2020,1901390070,2020,"1,340,000.00",Greater Manchester Combined Authori,100320,GB287158171,EN:WASTE DISPOSAL LE,WASTE DISPOSAL LEVY,230266,,151612,CONSULTANCY :Traffic Planning,,201005
http://statistics.data.gov.uk/id/local-authority/00BU,Trafford,17/12/2020,1901390071,1220,"582,384.00",Greater Manchester Combined Authori,100320,GB287158171,,GMFA CFUND CTAX CRED,702961,,151612,CONSULTANCY :Traffic Planning,,
http://statistics.data.gov.uk/id/local-authority/00BU,Trafford,17/12/2020,1901390071,1220,"135,876.00",Greater Manchester Combined Authori,100320,GB287158171,,GMFRA CFUND NDR CRED,702963,,151612,CONSULTANCY :Traffic Planning,,
http://statistics.data.gov.uk/id/local-authority/00BU,Trafford,17/12/2020,1901390071,1220,"1,358,292.00",Greater Manchester Combined Authori,100320,GB287158171,,GMP CFUND CTAX CRED,702960,,151612,CONSULTANCY :Traffic Planning,,
http://statistics.data.gov.uk/id/local-authority/00BU,Trafford,21/12/2020,1901390061,Redacted,"7,565.36",Greater Manchester Combined Authori,100320,GB287158171,,PURCHASING REBATES,605042,,151612,CONSULTANCY :Traffic Planning,fire and rescue,
http://statistics.data.gov.uk/id/local-authority/00BU,Trafford,07/12/2020,1901388416,542252,"10,452.96",Macintyre Care,100324,,LEARN DIS 18-64 LT,SUPP LIVING CONT,230530,,171011,EDUCATION :  Children,Redacted,157003
http://statistics.data.gov.uk/id/local-authority/00BU,Trafford,21/12/2020,5100399974,37792050,430.00,Reed Elsevier Ltd/t/a Lexisnexis UK,100351,GB730859520,LEGAL CENTRAL OFFICE,BOOKS PURCHASE,220012,,171100,EDUCATION : Supplies,LexisNexis,600000
http://statistics.data.gov.uk/id/local-authority/00BU,Trafford,02/12/2020,5100398218,6168444,44.60,Banner Group Limited,100353,GB391085740,FAMILY SUP. NORTH,DP COVID-19 CONTGY,230859,,341100,STATIONERY : Paper,1158481,130205
http://statistics.data.gov.uk/id/local-authority/00BU,Trafford,02/12/2020,5100398218,6168444,44.60,Banner Group Limited,100353,GB391085740,FAMILY SUP. CENTRAL,DP COVID-19 CONTGY,230859,,341100,STATIONERY : Paper,1158481,130210
http://statistics.data.gov.uk/id/local-authority/00BU,Trafford,02/12/2020,5100399076,6241314,14.72,Banner Group Limited,100353,GB391085740,ADVISORY INSP ADMIN,STATIONERY,220310,,341100,STATIONERY : Paper,Q-CONNECT SPIRAL PAD EXEC A4 RULED,120006
http://statistics.data.gov.uk/id/local-authority/00BU,Trafford,02/12/2020,5100399076,6241314,11.44,Banner Group Limited,100353,GB391085740,ADVISORY INSP ADMIN,STATIONERY,220310,,341100,STATIONERY : Paper,Q-CONNECT SPIRAL PAD EXEC A5+ PACK5,120006
http://statistics.data.gov.uk/id/local-authority/00BU,Trafford,02/12/2020,5100399078,6241315,22.08,Banner Group Limited,100353,GB391085740,ADVISORY INSP ADMIN,STATIONERY,220310,,341100,STATIONERY : Paper,QCONNECT ENV WHITE C4 324 X229MM,120006
http://statistics.data.gov.uk/id/local-authority/00BU,Trafford,02/12/2020,5100399078,6241315,15.55,Banner Group Limited,100353,GB391085740,ADVISORY INSP ADMIN,STATIONERY,220310,,341100,STATIONERY : Paper,QCONNECT SHORT HAND NOTEBOOKS RULED,120006
http://statistics.data.gov.uk/id/local-authority/00BU,Trafford,09/12/2020,1700055364,4515762,-20.29,Banner Group Limited,100353,GB391085740,EN:Tree Maint,STATIONERY,220310,,341100,STATIONERY : Paper,,411450
http://statistics.data.gov.uk/id/local-authority/00BU,Trafford,09/12/2020,5100398439,6182815,18.72,Banner Group Limited,100353,GB391085740,CMHT NORTH,STATIONERY,220310,,341100,STATIONERY : Paper,1152542 Day per page black A5,151025
http://statistics.data.gov.uk/id/local-authority/00BU,Trafford,09/12/2020,5100398890,6227889,1.06,Banner Group Limited,100353,GB391085740,PP:ALTRINCHAM CREMAT,STATIONERY,220310,,341100,STATIONERY : Paper,REXEL STAPLES 23/8MM PK1000,540020
http://statistics.data.gov.uk/id/local-authority/00BU,Trafford,09/12/2020,5100398890,6227889,8.68,Banner Group Limited,100353,GB391085740,PP:ALTRINCHAM CREMAT,STATIONERY,220310,,341100,STATIONERY : Paper,POST-IT SPR STCKY NTE 76X127 CAPE P5,540020
http://statistics.data.gov.uk/id/local-authority/00BU,Trafford,09/12/2020,5100398890,6227889,3.92,Banner Group Limited,100353,GB391085740,PP:ALTRINCHAM CREMAT,STATIONERY,220310,,341100,STATIONERY : Paper,QCONNECT MULTI-FUNCTIONAL LBLS 8,540020
http://statistics.data.gov.uk/id/local-authority/00BU,Trafford,09/12/2020,5100398890,6227889,23.12,Banner Group Limited,100353,GB391085740,PP:ALTRINCHAM CREMAT,STATIONERY,220310,,341100,STATIONERY : Paper,AVERY LSR ADD LBLS WHT 14L/SHT BX100,540020
http://statistics.data.gov.uk/id/local-authority/00BU,Trafford,09/12/2020,5100399199,6242435,-18.72,Banner Group Limited,100353,GB391085740,CMHT NORTH,STATIONERY,220310,,341100,STATIONERY : Paper,1152542 Day per page black A5,151025
http://statistics.data.gov.uk/id/local-authority/00BU,Trafford,09/12/2020,5100399201,6242692,7.45,Banner Group Limited,100353,GB391085740,AT SALE,STATIONERY,220310,,341100,STATIONERY : Paper,Q-CONNECT LAMINATING POUCH A3 PK100,532010
